Workbook

Sheet Introduction
A3: EPA Simplified GHG Emissions Calculator ("the Calculator") | I3: June 2024
A4: The EPA Simplified GHG Emissions Calculator ("the Calculator") is designed as a simplified calculation tool to help organizations estimate and inventory their annual greenhouse gas (GHG) emissions for US-based operations. All methodologies and default values provided are based on the most current Center for Corporate Climate Leadership Greenhouse Gas Inventory Guidance Documents and the Emission Factors Hub. The Calculator will quantify the direct and indirect emissions from sources at an organization when activity data are entered into the various sections of the workbook for one annual period.
A6: Before entering data, please: 1) Enable Macros and 2) Familiarize yourself with the Simplified Guide to GHG Management for Organizations.
B7: Access the guide: | D7: https://www.epa.gov/system/files/documents/2022-09/Simplified_Guide_GHG_Management_Organizations.pdf
D8: The simplified guide presents more details and information covered in the calculator; please check the guide for more info if you have questions
A10: There are three primary steps in completing a GHG inventory. Each emissions source also has these three steps.
B11: (1) DEFINE: The first step in completing a GHG inventory is to determine the boundaries and emissions sources included within those boundaries. After you have defined your organizational and operational boundaries, you can use the questions on the "Boundary Questions" worksheet to help you determine which emissions sources are relevant to your business.
C12: Go to Boundary Questions
B13: (2) COLLECT: The second step is to collect data for the defined annual period. This step is typically the most time consuming, since the data can be difficult to gather. This Calculator has help sheets with suggestions and guidance for each emissions source and a general help sheet for data management. Click the drop down menu boxes below to navigate to these sheets.
D14: Help - Market-Based Method
B15: (3) QUANTIFY: The third step is to calculate emissions. This Calculator is designed to complete the emissions quantification step for you. Once the user enters data in this MS Excel spreadsheet, the emissions will be calculated and totaled on the "Summary" sheet.
A17: Calculator Guidance - Important Information
A18: (A) Navigate to the data entry sheets using the drop down menu in the dark grey cell below and then clicking on the "Go To Data Entry Sheet" button. On the data entry sheets enter data in ORANGE cells only.
A19: (B) This Calculator has several "Tool Sheets" with useful reference data such as unit conversions, heat contents, and emission factors. Click on the buttons below to go to the appropriate Tool Sheet.
A20: (C) Data must be entered in the units specified on the data entry sheets. Use the "Unit Conversions" or "Heat Content" sheets if unit conversion is necessary prior to entering data into the Calculator.
A21: (D) If more guidance is needed, you can reference the emission factor data sources found on the "Emission Factors" sheet.
D23: Tool Sheets | E23: Quick Data Entry Navigation
E25: Stationary Combustion
A35: Calculator Notes
A36: Emission sources of all seven major GHGs are accounted for in the inventory and in this Calculator: carbon dioxide (CO2), methane (CH4), nitrous oxide (N2O), hydroﬂuorocarbons (HFCs), perﬂuorocarbons (PFCs), sulfur hexaﬂuoride (SF6), and nitrogen trifluoride (NF3). The Calculator allows the user to estimate GHG emissions from scope 1 (direct), scope 2 (indirect), and some scope 3 (other indirect) sources.
A37: The Calculator uses U.S.-specific cross-sector emission factors from the Emission Factors Hub. Many industrial sectors also have process-related emissions sources that are specific to their sector. EPA’s Greenhouse Gas Reporting Program provides guidance and tools that can aid in the calculation and reporting of these emissions:
B38: https://www.epa.gov/ghgreporting
A39: The GHG Protocol also provides guidance on calculating emissions from industrial processes.

Sheet Boundary Questions
A3: Operational Boundary Questions - Emissions Sources to Include
A5: Guidance
A6: Use the questions below to help you determine which emissions sources should be included in the inventory.
A8: Emissions Source Questions
A9: A typical office-based organization will likely have the following (scope 1 and scope 2) emissions sources:
B10: - Stationary Combustion
B11: - Refrigeration and AC
B12: - Electricity
A14: If you answer "yes" to a question below, that emissions source should be included in your inventory. For each facility within the defined organizational boundary, collect the necessary data for the selected time period. Use the corresponding Excel sheet to quantify these emissions.
A15: Tip: you may need to ask your landlord about heating sources, steam purchased and refrigerants
A16: Stationary Combustion | E16: Yes or No?
A17: Do you have facilities that burn fuels on-site (e.g., natural gas, propane, coal, fuel oil for heating, diesel fuel for backup generators, biomass fuels)? | E17: ?
A18: Mobile Sources
A19: Do any vehicles fall within your organizational boundary? This can include cars, trucks, propane forklifts, aircraft, boats. Only vehicles owned or leased by your organization should be included here. | E19: ?
A20: Refrigeration and Air Conditioning
A21: Do your facilities use refrigeration or air conditioning equipment? | E21: ?
A22: Fire Suppression
A23: Do your facilities use chemical fire suppressants? | E23: ?
A24: Purchased Gases
A25: Do you purchase any industrial gases for use in your business? These gases may be purchased for use in manufacturing, testing, or laboratories. | E25: ?
A26: Electricity
A27: Does your inventory include facilities that use electricity? | E27: ?
A28: Steam
A29: Do you purchase steam for heating or cooling in your facilities? | E29: ?
A30: Market-Based Emission Factors (entered on Electricity and or Steam tabs)
A31: Do you purchase renewable energy certificates (RECs) or green power products? Do you purchase electricity through a power purchase agreement (PPA)? Do you have supplier-specific emission factors? | E31: ?
A33: The questions below refer to scope 3 emissions sources and offsets. If you answer "yes" you may choose whether or not to include these emissions sources in your inventory. Use the corresponding sheet to enter data.
A34: Business Travel | E34: Yes or No?
A35: Do your employees travel for business using transportation other than owned or leased vehicles (e.g., commercial airline flights, rental cars, trains)? | E35: ?
A36: Employee Commuting
A37: Do your employees commute to work in personal vehicles or use public transportation? | E37: ?
A38: Upstream Transportation and Distribution
A39: Do you hire another company to transport products or other materials to or from your facilities? | E39: ?
A40: Waste Generated in Operations
A41: Do you generate waste that is disposed of in a facility owned by another organization? | E41: ?
A42: Offsets
A43: Do you purchase greenhouse gas offsets? | E43: ?

Sheet Summary
A3: Emissions Summary
A5: Guidance
A6: The total GHG emissions from each source category are provided below. You may also use this summary sheet to fill out the Annual GHG Inventory Summary and Target Tracking Form (.xls) as this Calculator only quantifies one year of emissions at a time. The form is available here:
A7: https://www.epa.gov/climateleadership/target-setting
A8: By entering the data below into the appropriate cell of the Annual GHG Inventory Summary and Target Tracking Form, you will be able to compare multiple years of data.
A9: If you have multiple Calculator files covering sub-sets of your inventory for a particular reporting period, sum each of the emission categories (e.g. Stationary Combustion) to an organizational total, which then can be entered into the Annual GHG Inventory Summary and Target Tracking Form.
A11: (A) Enter organization information into the orange cells. Other cells on this sheet will be automatically calculated from the data entered in the sheets in this workbook. Blue cells indicate required emission sources if applicable. Green cells indicate scope 3 emission sources and offsets, which organizations may optionally include in its inventory.
A12: (B) The "Go To Sheet" buttons can be used to navigate to the data entry sheets.
A14: Organizational Information:
B15: Organization Name:
B17: Organization Address:
B20: Inventory Reporting Period: | E20: e.g., Calendar Year 2023, Fiscal Year 2023
E21: Start: | F21: MM/DD/YY | G21: End: | H21: MM/DD/YY
B23: Name of Preparer:
B24: Contact Information of Preparer:
B25: Date Prepared:
A27: Summary of Organization's Emissions:
B29: Scope 1 Emissions
G31: CO2-e (metric tons)
B32: Stationary Combustion | G32: ='Stationary Combustion'!E141 -> 0
B33: Mobile Sources | G33: ='Mobile Sources'!E315 -> 0
B34: Refrigeration / AC Equipment Use | G34: ='Refrigeration and AC'!F138 -> 0
B35: Fire Suppression | G35: ='Fire Suppression'!F115 -> 0
B36: Purchased Gases | G36: ='Purchased Gases'!E30 -> 0
G38: CO2-e (metric tons)
G39: Gross | H39: Offsets | I39: Net
B40: Scope 1 Summary | G40: =SUM(G32:G36) -> 0 | H40: =Offsets!D27 -> 0 | I40: =IF(G40-H40<0,0,G40-H40) -> 0
B42: Scope 2 Emissions
B44: Location-Based Scope 2 Emissions | G44: CO2-e (metric tons)
B45: Purchased and Consumed Electricity | G45: =Electricity!E63 -> 0
B46: Purchased and Consumed Steam | G46: =Steam!F87 -> 0
G48: CO2-e (metric tons)
G49: Gross | H49: Offsets | I49: Net
B50: Location-Based Scope 2 Summary | G50: =SUM(G45:G46) -> 0 | H50: =Offsets!D28 -> 0 | I50: =IF(G50-H50<0,0,G50-H50) -> 0
B53: Market-Based Scope 2 Emissions | G53: CO2-e (metric tons)
B54: Purchased and Consumed Electricity | G54: =Electricity!E64 -> 0
B55: Purchased and Consumed Steam | G55: =Steam!F88 -> 0
G57: CO2-e (metric tons)
G58: Gross | H58: Offsets | I58: Net
B59: Market-Based Scope 2 Summary | G59: =SUM(G54:G55) -> 0 | H59: =Offsets!D29 -> 0 | I59: =IF(G59-H59<0,0,G59-H59) -> 0
B61: Scope 1 & 2 Summary
G63: CO2-e (metric tons)
G64: Gross | H64: Net
B65: Total Scope 1 & Location-Based Scope 2 | G65: =SUM(G32:G36,G45:G46) -> 0 | H65: =SUM(I40,I50) -> 0
B66: Total Scope 1 & Market-Based Scope 2 | G66: =SUM(G32:G36,G54:G55) -> 0 | H66: =SUM(I40,I59) -> 0
B68: Scope 3 Emissions
G70: CO2-e (metric tons)
G71: Gross | H71: Offsets | I71: Net
B72: Business Travel | G72: ='Business Travel'!D166 -> 0 | H72: =Offsets!D30 -> 0 | I72: =IF(G72-H72<0,0,G72-H72) -> 0
B73: Employee Commuting | G73: =Commuting!D123 -> 0 | H73: =Offsets!D31 -> 0 | I73: =IF(G73-H73<0,0,G73-H73) -> 0
B74: Upstream Transportation and Distribution | G74: ='Upstream Trans and Dist'!D111 -> 0 | H74: =Offsets!D32 -> 0 | I74: 0
B75: Waste | G75: =Waste!D99 -> 0 | H75: =Offsets!D33 -> 0 | I75: 0
B77: Required Supplemental Information
G79: CO2-e (metric tons)
B80: Biomass CO2 Emissions from Stationary Sources | G80: ='Stationary Combustion'!E143 -> 0
B81: Biomass CO2 Emissions from Mobile Sources | G81: ='Mobile Sources'!E317 -> 0

Sheet Stationary Combustion
A3: Scope 1 Emissions from Stationary Combustion Sources
A5: Guidance
A6: (A) Enter annual data for each combustion unit, facility, or site (by fuel type) in ORANGE cells on Table 1. Example entry is shown in first row (GREEN Italics).
A7: - Select "Fuel Combusted" from drop down box.
A8: - Enter "Quantity Combusted" and choose the appropriate units from the drop down box in the unit column. If it's necessary to convert units, common heat contents can be found on the "Heat Content" sheet and unit conversions on the "Unit Conversion" sheet.
A9: (B) If fuel is consumed in a facility but stationary fuel consumption data are not available, an estimate should be made for completeness. See the "Items to Note" section of the Help sheet for suggested estimation approaches.
A10: (C) Biomass CO2 emissions are not reported in the total emissions, but are reported separately at the bottom of the sheet.
A12: Table 1. Stationary Source Fuel Combustion
A13: Source | B13: Source | C13: Source | D13: Fuel | E13: Fuel State | F13: Quantity | G13: Units
A14: ID | B14: Description | C14: Area (sq ft) | D14: Combusted | E14: (solid, liquid, gas) | F14: Combusted
A15: BLR-012 | B15: East Power Plant | C15: 12517 | D15: Natural Gas | E15: =IF(D15="","",VLOOKUP(D15,DropDown!$R$2:$S$29,2,FALSE)) -> Gas | F15: 10000 | G15: MMBtu
E16: =IF(D16="","",VLOOKUP(D16,DropDown!$R$2:$S$29,2,FALSE)) -> 
E17: =IF(D17="","",VLOOKUP(D17,DropDown!$R$2:$S$29,2,FALSE)) -> 
E18: =IF(D18="","",VLOOKUP(D18,DropDown!$R$2:$S$29,2,FALSE)) -> 
E19: =IF(D19="","",VLOOKUP(D19,DropDown!$R$2:$S$29,2,FALSE)) -> 
E20: =IF(D20="","",VLOOKUP(D20,DropDown!$R$2:$S$29,2,FALSE)) -> 
E21: =IF(D21="","",VLOOKUP(D21,DropDown!$R$2:$S$29,2,FALSE)) -> 
E22: =IF(D22="","",VLOOKUP(D22,DropDown!$R$2:$S$29,2,FALSE)) -> 
E23: =IF(D23="","",VLOOKUP(D23,DropDown!$R$2:$S$29,2,FALSE)) -> 
E24: =IF(D24="","",VLOOKUP(D24,DropDown!$R$2:$S$29,2,FALSE)) -> 
E25: =IF(D25="","",VLOOKUP(D25,DropDown!$R$2:$S$29,2,FALSE)) -> 
E26: =IF(D26="","",VLOOKUP(D26,DropDown!$R$2:$S$29,2,FALSE)) -> 
E27: =IF(D27="","",VLOOKUP(D27,DropDown!$R$2:$S$29,2,FALSE)) -> 
E28: =IF(D28="","",VLOOKUP(D28,DropDown!$R$2:$S$29,2,FALSE)) -> 
E29: =IF(D29="","",VLOOKUP(D29,DropDown!$R$2:$S$29,2,FALSE)) -> 
E30: =IF(D30="","",VLOOKUP(D30,DropDown!$R$2:$S$29,2,FALSE)) -> 
E31: =IF(D31="","",VLOOKUP(D31,DropDown!$R$2:$S$29,2,FALSE)) -> 
E32: =IF(D32="","",VLOOKUP(D32,DropDown!$R$2:$S$29,2,FALSE)) -> 
E33: =IF(D33="","",VLOOKUP(D33,DropDown!$R$2:$S$29,2,FALSE)) -> 
E34: =IF(D34="","",VLOOKUP(D34,DropDown!$R$2:$S$29,2,FALSE)) -> 
E35: =IF(D35="","",VLOOKUP(D35,DropDown!$R$2:$S$29,2,FALSE)) -> 
E36: =IF(D36="","",VLOOKUP(D36,DropDown!$R$2:$S$29,2,FALSE)) -> 
E37: =IF(D37="","",VLOOKUP(D37,DropDown!$R$2:$S$29,2,FALSE)) -> 
E38: =IF(D38="","",VLOOKUP(D38,DropDown!$R$2:$S$29,2,FALSE)) -> 
E39: =IF(D39="","",VLOOKUP(D39,DropDown!$R$2:$S$29,2,FALSE)) -> 
E40: =IF(D40="","",VLOOKUP(D40,DropDown!$R$2:$S$29,2,FALSE)) -> 
E41: =IF(D41="","",VLOOKUP(D41,DropDown!$R$2:$S$29,2,FALSE)) -> 
E42: =IF(D42="","",VLOOKUP(D42,DropDown!$R$2:$S$29,2,FALSE)) -> 
E43: =IF(D43="","",VLOOKUP(D43,DropDown!$R$2:$S$29,2,FALSE)) ->  | V43: =IF(D43="","",VLOOKUP(D43,DropDown!$R$2:$S$12,2,FALSE)) -> 
E44: =IF(D44="","",VLOOKUP(D44,DropDown!$R$2:$S$29,2,FALSE)) ->  | V44: =IF(D44="","",VLOOKUP(D44,DropDown!$R$2:$S$12,2,FALSE)) -> 
E45: =IF(D45="","",VLOOKUP(D45,DropDown!$R$2:$S$29,2,FALSE)) ->  | V45: =IF(D45="","",VLOOKUP(D45,DropDown!$R$2:$S$12,2,FALSE)) -> 
E46: =IF(D46="","",VLOOKUP(D46,DropDown!$R$2:$S$29,2,FALSE)) ->  | V46: =IF(D46="","",VLOOKUP(D46,DropDown!$R$2:$S$12,2,FALSE)) -> 
E47: =IF(D47="","",VLOOKUP(D47,DropDown!$R$2:$S$29,2,FALSE)) ->  | V47: =IF(D47="","",VLOOKUP(D47,DropDown!$R$2:$S$12,2,FALSE)) -> 
E48: =IF(D48="","",VLOOKUP(D48,DropDown!$R$2:$S$29,2,FALSE)) ->  | V48: =IF(D48="","",VLOOKUP(D48,DropDown!$R$2:$S$12,2,FALSE)) -> 
E49: =IF(D49="","",VLOOKUP(D49,DropDown!$R$2:$S$29,2,FALSE)) ->  | V49: =IF(D49="","",VLOOKUP(D49,DropDown!$R$2:$S$12,2,FALSE)) -> 
E50: =IF(D50="","",VLOOKUP(D50,DropDown!$R$2:$S$29,2,FALSE)) ->  | V50: =IF(D50="","",VLOOKUP(D50,DropDown!$R$2:$S$12,2,FALSE)) -> 
E51: =IF(D51="","",VLOOKUP(D51,DropDown!$R$2:$S$29,2,FALSE)) ->  | V51: =IF(D51="","",VLOOKUP(D51,DropDown!$R$2:$S$12,2,FALSE)) -> 
E52: =IF(D52="","",VLOOKUP(D52,DropDown!$R$2:$S$29,2,FALSE)) ->  | V52: =IF(D52="","",VLOOKUP(D52,DropDown!$R$2:$S$12,2,FALSE)) -> 
E53: =IF(D53="","",VLOOKUP(D53,DropDown!$R$2:$S$29,2,FALSE)) ->  | V53: =IF(D53="","",VLOOKUP(D53,DropDown!$R$2:$S$12,2,FALSE)) -> 
E54: =IF(D54="","",VLOOKUP(D54,DropDown!$R$2:$S$29,2,FALSE)) ->  | V54: =IF(D54="","",VLOOKUP(D54,DropDown!$R$2:$S$12,2,FALSE)) -> 
E55: =IF(D55="","",VLOOKUP(D55,DropDown!$R$2:$S$29,2,FALSE)) ->  | V55: =IF(D55="","",VLOOKUP(D55,DropDown!$R$2:$S$12,2,FALSE)) -> 
E56: =IF(D56="","",VLOOKUP(D56,DropDown!$R$2:$S$29,2,FALSE)) ->  | V56: =IF(D56="","",VLOOKUP(D56,DropDown!$R$2:$S$12,2,FALSE)) -> 
E57: =IF(D57="","",VLOOKUP(D57,DropDown!$R$2:$S$29,2,FALSE)) ->  | V57: =IF(D57="","",VLOOKUP(D57,DropDown!$R$2:$S$12,2,FALSE)) -> 
E58: =IF(D58="","",VLOOKUP(D58,DropDown!$R$2:$S$29,2,FALSE)) ->  | V58: =IF(D58="","",VLOOKUP(D58,DropDown!$R$2:$S$12,2,FALSE)) -> 
A60: GHG Emissions
A62: Total Organization-Wide Stationary Source Combustion by Fuel Type
A63: Fuel Type | C63: Quantity | D63: Units
C64: Combusted
A65: Coal and Coke - Solid
A66: Anthracite Coal | C66: =SUMIFS($F$16:$F$58,$D$16:$D$58,$A66,$G$16:$G$58,D66)+(SUMIFS($F$16:$F$58,$D$16:$D$58,$A66,$G$16:$G$58,"MMBtu")*(VLOOKUP(A66,'Heat Content'!$A$14:$E$41,4,0))) -> 0 | D66: short ton
A67: Bituminous Coal | C67: =SUMIFS($F$16:$F$58,$D$16:$D$58,$A67,$G$16:$G$58,D67)+(SUMIFS($F$16:$F$58,$D$16:$D$58,$A67,$G$16:$G$58,"MMBtu")*(VLOOKUP(A67,'Heat Content'!$A$14:$E$41,4,0))) -> 0 | D67: short ton
A68: Sub-bituminous Coal | C68: =SUMIFS($F$16:$F$58,$D$16:$D$58,$A68,$G$16:$G$58,D68)+(SUMIFS($F$16:$F$58,$D$16:$D$58,$A68,$G$16:$G$58,"MMBtu")*(VLOOKUP(A68,'Heat Content'!$A$14:$E$41,4,0))) -> 0 | D68: short ton
A69: Lignite Coal | C69: =SUMIFS($F$16:$F$58,$D$16:$D$58,$A69,$G$16:$G$58,D69)+(SUMIFS($F$16:$F$58,$D$16:$D$58,$A69,$G$16:$G$58,"MMBtu")*(VLOOKUP(A69,'Heat Content'!$A$14:$E$41,4,0))) -> 0 | D69: short ton
A70: Mixed (Commercial Sector) | C70: =SUMIFS($F$16:$F$58,$D$16:$D$58,$A70,$G$16:$G$58,D70)+(SUMIFS($F$16:$F$58,$D$16:$D$58,$A70,$G$16:$G$58,"MMBtu")*(VLOOKUP(A70,'Heat Content'!$A$14:$E$41,4,0))) -> 0 | D70: short ton
A71: Mixed (Electric Power Sector) | C71: =SUMIFS($F$16:$F$58,$D$16:$D$58,$A71,$G$16:$G$58,D71)+(SUMIFS($F$16:$F$58,$D$16:$D$58,$A71,$G$16:$G$58,"MMBtu")*(VLOOKUP(A71,'Heat Content'!$A$14:$E$41,4,0))) -> 0 | D71: short ton
A72: Mixed (Industrial Coking) | C72: =SUMIFS($F$16:$F$58,$D$16:$D$58,$A72,$G$16:$G$58,D72)+(SUMIFS($F$16:$F$58,$D$16:$D$58,$A72,$G$16:$G$58,"MMBtu")*(VLOOKUP(A72,'Heat Content'!$A$14:$E$41,4,0))) -> 0 | D72: short ton
A73: Mixed (Industrial Sector) | C73: =SUMIFS($F$16:$F$58,$D$16:$D$58,$A73,$G$16:$G$58,D73)+(SUMIFS($F$16:$F$58,$D$16:$D$58,$A73,$G$16:$G$58,"MMBtu")*(VLOOKUP(A73,'Heat Content'!$A$14:$E$41,4,0))) -> 0 | D73: short ton
A74: Coal Coke | C74: =SUMIFS($F$16:$F$58,$D$16:$D$58,$A74,$G$16:$G$58,D74)+(SUMIFS($F$16:$F$58,$D$16:$D$58,$A74,$G$16:$G$58,"MMBtu")*(VLOOKUP(A74,'Heat Content'!$A$14:$E$41,4,0))) -> 0 | D74: short ton
A75: Other Fuels - Solid
A76: Municipal Solid Waste | C76: =SUMIFS($F$16:$F$58,$D$16:$D$58,$A76,$G$16:$G$58,D76)+(SUMIFS($F$16:$F$58,$D$16:$D$58,$A76,$G$16:$G$58,"MMBtu")*(VLOOKUP(A76,'Heat Content'!$A$14:$E$41,4,0))) -> 0 | D76: short ton
A77: Petroleum Coke (Solid) | C77: =SUMIFS($F$16:$F$58,$D$16:$D$58,$A77,$G$16:$G$58,D77)+(SUMIFS($F$16:$F$58,$D$16:$D$58,$A77,$G$16:$G$58,"MMBtu")*(VLOOKUP(A77,'Heat Content'!$A$14:$E$41,4,0))) -> 0 | D77: short ton
A78: Plastics | C78: =SUMIFS($F$16:$F$58,$D$16:$D$58,$A78,$G$16:$G$58,D78)+(SUMIFS($F$16:$F$58,$D$16:$D$58,$A78,$G$16:$G$58,"MMBtu")*(VLOOKUP(A78,'Heat Content'!$A$14:$E$41,4,0))) -> 0 | D78: short ton
A79: Tires | C79: =SUMIFS($F$16:$F$58,$D$16:$D$58,$A79,$G$16:$G$58,D79)+(SUMIFS($F$16:$F$58,$D$16:$D$58,$A79,$G$16:$G$58,"MMBtu")*(VLOOKUP(A79,'Heat Content'!$A$14:$E$41,4,0))) -> 0 | D79: short ton
A80: Biomass Fuels - Solid
A81: Agricultural Byproducts | C81: =SUMIFS($F$16:$F$58,$D$16:$D$58,$A81,$G$16:$G$58,D81)+(SUMIFS($F$16:$F$58,$D$16:$D$58,$A81,$G$16:$G$58,"MMBtu")*(VLOOKUP(A81,'Heat Content'!$A$14:$E$41,4,0))) -> 0 | D81: short ton
A82: Peat | C82: =SUMIFS($F$16:$F$58,$D$16:$D$58,$A82,$G$16:$G$58,D82)+(SUMIFS($F$16:$F$58,$D$16:$D$58,$A82,$G$16:$G$58,"MMBtu")*(VLOOKUP(A82,'Heat Content'!$A$14:$E$41,4,0))) -> 0 | D82: short ton
A83: Solid Byproducts | C83: =SUMIFS($F$16:$F$58,$D$16:$D$58,$A83,$G$16:$G$58,D83)+(SUMIFS($F$16:$F$58,$D$16:$D$58,$A83,$G$16:$G$58,"MMBtu")*(VLOOKUP(A83,'Heat Content'!$A$14:$E$41,4,0))) -> 0 | D83: short ton
A84: Wood and Wood Residuals | C84: =SUMIFS($F$16:$F$58,$D$16:$D$58,$A84,$G$16:$G$58,D84)+(SUMIFS($F$16:$F$58,$D$16:$D$58,$A84,$G$16:$G$58,"MMBtu")*(VLOOKUP(A84,'Heat Content'!$A$14:$E$41,4,0))) -> 0 | D84: short ton
A85: Gaseous Fuels
A86: Natural Gas | C86: =SUMIFS($F$16:$F$58,$D$16:$D$58,$A86,$G$16:$G$58,D86)+(SUMIFS($F$16:$F$58,$D$16:$D$58,$A86,$G$16:$G$58,"MMBtu")*Natural_Gas_scf_per_mmBtu)+(SUMIFS($F$16:$F$58,$D$16:$D$58,$A86,$G$16:$G$58,"Therm")*Natural_Gas_scf_per_therm) -> 0 | D86: scf
A87: Propane Gas | C87: =SUMIFS($F$16:$F$58,$D$16:$D$58,$A87,$G$16:$G$58,D87)+(SUMIFS($F$16:$F$58,$D$16:$D$58,$A87,$G$16:$G$58,"MMBtu")*Propane_Gas_scf_per_mmBtu)+(SUMIFS($F$16:$F$58,$D$16:$D$58,$A87,$G$16:$G$58,"Therm")*Propane_Gas_scf_per_therm) -> 0 | D87: scf
A88: Landfill Gas | C88: =SUMIFS($F$16:$F$58,$D$16:$D$58,$A88,$G$16:$G$58,D88)+(SUMIFS($F$16:$F$58,$D$16:$D$58,$A88,$G$16:$G$58,"MMBtu")*Landfill_Gas_scf_per_mmBtu)+(SUMIFS($F$16:$F$58,$D$16:$D$58,$A88,$G$16:$G$58,"Therm")*Landfill_Gas_scf_per_therm) -> 0 | D88: scf
A89: Petroleum Products
A90: Distillate Fuel Oil No. 2 | C90: =SUMIFS($F$16:$F$58,$D$16:$D$58,$A90,$G$16:$G$58,D90)+(SUMIFS($F$16:$F$58,$D$16:$D$58,$A90,$G$16:$G$58,"MMBtu")*(VLOOKUP(A90,'Heat Content'!$A$14:$E$41,4,0))) -> 0 | D90: gallons
A91: Residual Fuel Oil No. 6 | C91: =SUMIFS($F$16:$F$58,$D$16:$D$58,$A91,$G$16:$G$58,D91)+(SUMIFS($F$16:$F$58,$D$16:$D$58,$A91,$G$16:$G$58,"MMBtu")*(VLOOKUP(A91,'Heat Content'!$A$14:$E$41,4,0))) -> 0 | D91: gallons
A92: Kerosene | C92: =SUMIFS($F$16:$F$58,$D$16:$D$58,$A92,$G$16:$G$58,D92)+(SUMIFS($F$16:$F$58,$D$16:$D$58,$A92,$G$16:$G$58,"MMBtu")*(VLOOKUP(A92,'Heat Content'!$A$14:$E$41,4,0))) -> 0 | D92: gallons
A93: Liquefied Petroleum Gases (LPG) | C93: =SUMIFS($F$16:$F$58,$D$16:$D$58,$A93,$G$16:$G$58,D93)+(SUMIFS($F$16:$F$58,$D$16:$D$58,$A93,$G$16:$G$58,"MMBtu")*(VLOOKUP(A93,'Heat Content'!$A$14:$E$41,4,0))) -> 0 | D93: gallons
A94: Biomass Fuels - Liquid
A95: Biodiesel (100%) | C95: =SUMIFS($F$16:$F$58,$D$16:$D$58,$A95,$G$16:$G$58,D95)+(SUMIFS($F$16:$F$58,$D$16:$D$58,$A95,$G$16:$G$58,"MMBtu")*(VLOOKUP(A95,'Heat Content'!$A$14:$E$41,4,0))) -> 0 | D95: gallons
A96: Ethanol (100%) | C96: =SUMIFS($F$16:$F$58,$D$16:$D$58,$A96,$G$16:$G$58,D96)+(SUMIFS($F$16:$F$58,$D$16:$D$58,$A96,$G$16:$G$58,"MMBtu")*(VLOOKUP(A96,'Heat Content'!$A$14:$E$41,4,0))) -> 0 | D96: gallons
A97: Rendered Animal Fat | C97: =SUMIFS($F$16:$F$58,$D$16:$D$58,$A97,$G$16:$G$58,D97)+(SUMIFS($F$16:$F$58,$D$16:$D$58,$A97,$G$16:$G$58,"MMBtu")*(VLOOKUP(A97,'Heat Content'!$A$14:$E$41,4,0))) -> 0 | D97: gallons
A98: Vegetable Oil | C98: =SUMIFS($F$16:$F$58,$D$16:$D$58,$A98,$G$16:$G$58,D98)+(SUMIFS($F$16:$F$58,$D$16:$D$58,$A98,$G$16:$G$58,"MMBtu")*(VLOOKUP(A98,'Heat Content'!$A$14:$E$41,4,0))) -> 0 | D98: gallons
A100: Total Organization-Wide CO2, CH4 and N2O Emissions from Stationary Source Fuel Combustion
A101: Fuel Type | C101: CO2 (kg) | D101: CH4 (g) | E101: N2O (g)
A102: Coal and Coke - Solid
A103: Anthracite Coal | C103: =_xlfn.XLOOKUP($A103,$A$66:$A$98,$C$66:$C$98)*VLOOKUP($A103,Stationary_Fuel_Fctrs_unit,5,FALSE) -> 0 | D103: =_xlfn.XLOOKUP($A103,$A$66:$A$98,$C$66:$C$98)*VLOOKUP($A103,Stationary_Fuel_Fctrs_unit,6,FALSE) -> 0 | E103: =_xlfn.XLOOKUP($A103,$A$66:$A$98,$C$66:$C$98)*VLOOKUP($A103,Stationary_Fuel_Fctrs_unit,7,FALSE) -> 0
A104: Bituminous Coal | C104: 0 | D104: 0 | E104: 0
A105: Sub-bituminous Coal | C105: 0 | D105: 0 | E105: 0
A106: Lignite Coal | C106: 0 | D106: 0 | E106: 0
A107: Mixed (Commercial Sector) | C107: 0 | D107: 0 | E107: 0
A108: Mixed (Electric Power Sector) | C108: 0 | D108: 0 | E108: 0
A109: Mixed (Industrial Coking) | C109: 0 | D109: 0 | E109: 0
A110: Mixed (Industrial Sector) | C110: 0 | D110: 0 | E110: 0
A111: Coal Coke | C111: 0 | D111: 0 | E111: 0
A112: Other Fuels - Solid
A113: Municipal Solid Waste | C113: =_xlfn.XLOOKUP($A113,$A$66:$A$98,$C$66:$C$98)*VLOOKUP($A113,Stationary_Fuel_Fctrs_unit,5,FALSE) -> 0 | D113: =_xlfn.XLOOKUP($A113,$A$66:$A$98,$C$66:$C$98)*VLOOKUP($A113,Stationary_Fuel_Fctrs_unit,6,FALSE) -> 0 | E113: =_xlfn.XLOOKUP($A113,$A$66:$A$98,$C$66:$C$98)*VLOOKUP($A113,Stationary_Fuel_Fctrs_unit,7,FALSE) -> 0
A114: Petroleum Coke (Solid) | C114: =_xlfn.XLOOKUP($A114,$A$66:$A$98,$C$66:$C$98)*VLOOKUP($A114,Stationary_Fuel_Fctrs_unit,5,FALSE) -> 0 | D114: =_xlfn.XLOOKUP($A114,$A$66:$A$98,$C$66:$C$98)*VLOOKUP($A114,Stationary_Fuel_Fctrs_unit,6,FALSE) -> 0 | E114: =_xlfn.XLOOKUP($A114,$A$66:$A$98,$C$66:$C$98)*VLOOKUP($A114,Stationary_Fuel_Fctrs_unit,7,FALSE) -> 0
A115: Plastics | C115: =_xlfn.XLOOKUP($A115,$A$66:$A$98,$C$66:$C$98)*VLOOKUP($A115,Stationary_Fuel_Fctrs_unit,5,FALSE) -> 0 | D115: =_xlfn.XLOOKUP($A115,$A$66:$A$98,$C$66:$C$98)*VLOOKUP($A115,Stationary_Fuel_Fctrs_unit,6,FALSE) -> 0 | E115: =_xlfn.XLOOKUP($A115,$A$66:$A$98,$C$66:$C$98)*VLOOKUP($A115,Stationary_Fuel_Fctrs_unit,7,FALSE) -> 0
A116: Tires | C116: =_xlfn.XLOOKUP($A116,$A$66:$A$98,$C$66:$C$98)*VLOOKUP($A116,Stationary_Fuel_Fctrs_unit,5,FALSE) -> 0 | D116: =_xlfn.XLOOKUP($A116,$A$66:$A$98,$C$66:$C$98)*VLOOKUP($A116,Stationary_Fuel_Fctrs_unit,6,FALSE) -> 0 | E116: =_xlfn.XLOOKUP($A116,$A$66:$A$98,$C$66:$C$98)*VLOOKUP($A116,Stationary_Fuel_Fctrs_unit,7,FALSE) -> 0
A117: Gaseous Fuels
A118: Natural Gas | C118: =_xlfn.XLOOKUP($A118,$A$66:$A$98,$C$66:$C$98)*VLOOKUP($A118,Stationary_Fuel_Fctrs_unit,5,FALSE) -> 0 | D118: =_xlfn.XLOOKUP($A118,$A$66:$A$98,$C$66:$C$98)*VLOOKUP($A118,Stationary_Fuel_Fctrs_unit,6,FALSE) -> 0 | E118: =_xlfn.XLOOKUP($A118,$A$66:$A$98,$C$66:$C$98)*VLOOKUP($A118,Stationary_Fuel_Fctrs_unit,7,FALSE) -> 0
A119: Propane Gas | C119: =_xlfn.XLOOKUP($A119,$A$66:$A$98,$C$66:$C$98)*VLOOKUP($A119,Stationary_Fuel_Fctrs_unit,5,FALSE) -> 0 | D119: =_xlfn.XLOOKUP($A119,$A$66:$A$98,$C$66:$C$98)*VLOOKUP($A119,Stationary_Fuel_Fctrs_unit,6,FALSE) -> 0 | E119: =_xlfn.XLOOKUP($A119,$A$66:$A$98,$C$66:$C$98)*VLOOKUP($A119,Stationary_Fuel_Fctrs_unit,7,FALSE) -> 0
A120: Landfill Gas | C120: =_xlfn.XLOOKUP($A120,$A$66:$A$98,$C$66:$C$98)*VLOOKUP($A120,Stationary_Fuel_Fctrs_unit,5,FALSE) -> 0 | D120: =_xlfn.XLOOKUP($A120,$A$66:$A$98,$C$66:$C$98)*VLOOKUP($A120,Stationary_Fuel_Fctrs_unit,6,FALSE) -> 0 | E120: =_xlfn.XLOOKUP($A120,$A$66:$A$98,$C$66:$C$98)*VLOOKUP($A120,Stationary_Fuel_Fctrs_unit,7,FALSE) -> 0
A121: Petroleum Products
A122: Distillate Fuel Oil No. 2 | C122: =_xlfn.XLOOKUP($A122,$A$66:$A$98,$C$66:$C$98)*VLOOKUP($A122,Stationary_Fuel_Fctrs_unit,5,FALSE) -> 0 | D122: =_xlfn.XLOOKUP($A122,$A$66:$A$98,$C$66:$C$98)*VLOOKUP($A122,Stationary_Fuel_Fctrs_unit,6,FALSE) -> 0 | E122: =_xlfn.XLOOKUP($A122,$A$66:$A$98,$C$66:$C$98)*VLOOKUP($A122,Stationary_Fuel_Fctrs_unit,7,FALSE) -> 0
A123: Residual Fuel Oil No. 6 | C123: =_xlfn.XLOOKUP($A123,$A$66:$A$98,$C$66:$C$98)*VLOOKUP($A123,Stationary_Fuel_Fctrs_unit,5,FALSE) -> 0 | D123: =_xlfn.XLOOKUP($A123,$A$66:$A$98,$C$66:$C$98)*VLOOKUP($A123,Stationary_Fuel_Fctrs_unit,6,FALSE) -> 0 | E123: =_xlfn.XLOOKUP($A123,$A$66:$A$98,$C$66:$C$98)*VLOOKUP($A123,Stationary_Fuel_Fctrs_unit,7,FALSE) -> 0
A124: Kerosene | C124: =_xlfn.XLOOKUP($A124,$A$66:$A$98,$C$66:$C$98)*VLOOKUP($A124,Stationary_Fuel_Fctrs_unit,5,FALSE) -> 0 | D124: =_xlfn.XLOOKUP($A124,$A$66:$A$98,$C$66:$C$98)*VLOOKUP($A124,Stationary_Fuel_Fctrs_unit,6,FALSE) -> 0 | E124: =_xlfn.XLOOKUP($A124,$A$66:$A$98,$C$66:$C$98)*VLOOKUP($A124,Stationary_Fuel_Fctrs_unit,7,FALSE) -> 0
A125: Liquefied Petroleum Gases (LPG) | C125: =_xlfn.XLOOKUP($A125,$A$66:$A$98,$C$66:$C$98)*VLOOKUP($A125,Stationary_Fuel_Fctrs_unit,5,FALSE) -> 0 | D125: =_xlfn.XLOOKUP($A125,$A$66:$A$98,$C$66:$C$98)*VLOOKUP($A125,Stationary_Fuel_Fctrs_unit,6,FALSE) -> 0 | E125: =_xlfn.XLOOKUP($A125,$A$66:$A$98,$C$66:$C$98)*VLOOKUP($A125,Stationary_Fuel_Fctrs_unit,7,FALSE) -> 0
A126: Total Fossil Fuel Emissions | C126: =SUM(C102:C125) -> 0 | D126: =SUM(D102:D125) -> 0 | E126: 0
A127: Biomass Fuels - Solid
A128: Agricultural Byproducts | C128: =_xlfn.XLOOKUP($A128,$A$66:$A$98,$C$66:$C$98)*VLOOKUP($A128,Stationary_Fuel_Fctrs_unit,5,FALSE) -> 0 | D128: =_xlfn.XLOOKUP($A128,$A$66:$A$98,$C$66:$C$98)*VLOOKUP($A128,Stationary_Fuel_Fctrs_unit,6,FALSE) -> 0 | E128: =_xlfn.XLOOKUP($A128,$A$66:$A$98,$C$66:$C$98)*VLOOKUP($A128,Stationary_Fuel_Fctrs_unit,7,FALSE) -> 0
A129: Peat | C129: =_xlfn.XLOOKUP($A129,$A$66:$A$98,$C$66:$C$98)*VLOOKUP($A129,Stationary_Fuel_Fctrs_unit,5,FALSE) -> 0 | D129: =_xlfn.XLOOKUP($A129,$A$66:$A$98,$C$66:$C$98)*VLOOKUP($A129,Stationary_Fuel_Fctrs_unit,6,FALSE) -> 0 | E129: =_xlfn.XLOOKUP($A129,$A$66:$A$98,$C$66:$C$98)*VLOOKUP($A129,Stationary_Fuel_Fctrs_unit,7,FALSE) -> 0
A130: Solid Byproducts | C130: =_xlfn.XLOOKUP($A130,$A$66:$A$98,$C$66:$C$98)*VLOOKUP($A130,Stationary_Fuel_Fctrs_unit,5,FALSE) -> 0 | D130: =_xlfn.XLOOKUP($A130,$A$66:$A$98,$C$66:$C$98)*VLOOKUP($A130,Stationary_Fuel_Fctrs_unit,6,FALSE) -> 0 | E130: =_xlfn.XLOOKUP($A130,$A$66:$A$98,$C$66:$C$98)*VLOOKUP($A130,Stationary_Fuel_Fctrs_unit,7,FALSE) -> 0
A131: Wood and Wood Residuals | C131: =_xlfn.XLOOKUP($A131,$A$66:$A$98,$C$66:$C$98)*VLOOKUP($A131,Stationary_Fuel_Fctrs_unit,5,FALSE) -> 0 | D131: =_xlfn.XLOOKUP($A131,$A$66:$A$98,$C$66:$C$98)*VLOOKUP($A131,Stationary_Fuel_Fctrs_unit,6,FALSE) -> 0 | E131: =_xlfn.XLOOKUP($A131,$A$66:$A$98,$C$66:$C$98)*VLOOKUP($A131,Stationary_Fuel_Fctrs_unit,7,FALSE) -> 0
A132: Biomass Fuels - Liquid
A133: Biodiesel (100%) | C133: =_xlfn.XLOOKUP($A133,$A$66:$A$98,$C$66:$C$98)*VLOOKUP($A133,Stationary_Fuel_Fctrs_unit,5,FALSE) -> 0 | D133: =_xlfn.XLOOKUP($A133,$A$66:$A$98,$C$66:$C$98)*VLOOKUP($A133,Stationary_Fuel_Fctrs_unit,6,FALSE) -> 0 | E133: =_xlfn.XLOOKUP($A133,$A$66:$A$98,$C$66:$C$98)*VLOOKUP($A133,Stationary_Fuel_Fctrs_unit,7,FALSE) -> 0
A134: Ethanol (100%) | C134: =_xlfn.XLOOKUP($A134,$A$66:$A$98,$C$66:$C$98)*VLOOKUP($A134,Stationary_Fuel_Fctrs_unit,5,FALSE) -> 0 | D134: =_xlfn.XLOOKUP($A134,$A$66:$A$98,$C$66:$C$98)*VLOOKUP($A134,Stationary_Fuel_Fctrs_unit,6,FALSE) -> 0 | E134: =_xlfn.XLOOKUP($A134,$A$66:$A$98,$C$66:$C$98)*VLOOKUP($A134,Stationary_Fuel_Fctrs_unit,7,FALSE) -> 0
A135: Rendered Animal Fat | C135: =_xlfn.XLOOKUP($A135,$A$66:$A$98,$C$66:$C$98)*VLOOKUP($A135,Stationary_Fuel_Fctrs_unit,5,FALSE) -> 0 | D135: =_xlfn.XLOOKUP($A135,$A$66:$A$98,$C$66:$C$98)*VLOOKUP($A135,Stationary_Fuel_Fctrs_unit,6,FALSE) -> 0 | E135: =_xlfn.XLOOKUP($A135,$A$66:$A$98,$C$66:$C$98)*VLOOKUP($A135,Stationary_Fuel_Fctrs_unit,7,FALSE) -> 0
A136: Vegetable Oil | C136: =_xlfn.XLOOKUP($A136,$A$66:$A$98,$C$66:$C$98)*VLOOKUP($A136,Stationary_Fuel_Fctrs_unit,5,FALSE) -> 0 | D136: =_xlfn.XLOOKUP($A136,$A$66:$A$98,$C$66:$C$98)*VLOOKUP($A136,Stationary_Fuel_Fctrs_unit,6,FALSE) -> 0 | E136: =_xlfn.XLOOKUP($A136,$A$66:$A$98,$C$66:$C$98)*VLOOKUP($A136,Stationary_Fuel_Fctrs_unit,7,FALSE) -> 0
A137: Total Non-Fossil Fuel Emissions | C137: =SUM(C128:C136) -> 0 | D137: =SUM(D128:D136) -> 0 | E137: 0
A138: Total Emissions for all Fuels | C138: =C126+C137 -> 0 | D138: =D126+D137 -> 0 | E138: =E126+E137 -> 0
A141: Total CO2 Equivalent Emissions (metric tons) - Stationary Combustion | E141: =(C126+(D126/1000*CH4_GWP)+(E126/1000*N2O_GWP)+(D137/1000*CH4_GWP)+(E137/1000*N2O_GWP))/1000 -> 0
A143: Total Biomass CO2 Equivalent Emissions (metric tons) - Stationary Combustion | E143: =(C137/1000) -> 0

Sheet Mobile Sources
A3: Scope 1 Emissions from Mobile Sources
A5: Guidance
A6: (A) Enter annual data for each vehicle or group of vehicles (grouped by vehicle type, vehicle year, and fuel type) in ORANGE cells in Table 1. Example entry is shown in first row (GREEN Italics). Only enter vehicles owned or leased by your organization on this sheet. All other vehicle use such as employee commuting or business travel is considered a scope 3 emissions source and should be reported in the corresponding scope 3 sheets.
A7: - Note: The latest mobile combustion factors reflect year 2021 data. Therefore, for all vehicle model years 2022 onward, the 2021 year factor is used.
A8: - Select "On-Road" or "Non-Road" from the drop down box to determine the Vehicle Types available. You must make this selection before picking the vehicle type.
A9: - Select "Vehicle Type" from drop down box (closest type available).
A10: - Enter "Fuel Usage" in appropriate units (units appear when vehicle type is selected).
A11: - If mileage or fuel usage is unknown, estimate using approximate fuel economy values from the manufacturer, www.fueleconomy.gov, or the Reference Table below.
A12: - Vehicle year and Miles traveled are not necessary for non-road equiment.
A13: (B) When using biofuels, typically the biofuel (biodiesel or ethanol) is mixed with a petroleum fuel (diesel or gasoline) for use in vehicles. Enter the biodiesel and ethanol percentages of the fuel if known, or leave default values shown below.
C15: Biodiesel Percent: | D15: 20 | E15: %
C16: Ethanol Percent: | D16: 80 | E16: %
A17: (C) Biomass CO2 emissions from biodiesel and ethanol are not reported in the total emissions, but are reported separately at the bottom of the sheet.
A19: Table 1. Mobile Source Fuel Combustion and Miles Traveled
A20: Source | B20: Source | C20: On-Road or Non-Road? | D20: Vehicle | E20: Vehicle | F20: Fuel | G20: Units | H20: Miles
A21: ID | B21: Description | D21: Type | E21: Year | F21: Usage | H21: Traveled
A22: Fleet-012 | B22: HQ Fleet | C22: OnRoad | D22: Passenger Cars - Gasoline | E22: 2019 | F22: 500 | G22: =IF($D22="","",IF(OR($D22="Light-Duty Cars - CNG",$D22="Light-Duty Trucks - CNG",$D22="Medium-Duty Trucks - CNG",$D22="Heavy-Duty Trucks - CNG",$D22="Buses - CNG"),"scf","gal")) -> gal | H22: =E107*F22 -> 12400
G86: =IF($D86="","",IF(OR($D86="Light-Duty Cars - CNG",$D86="Light-Duty Trucks - CNG",$D86="Medium-Duty Trucks - CNG",$D86="Heavy-Duty Trucks - CNG",$D86="Buses - CNG"),"scf","gal")) -> 
A105: Reference Table: Average Fuel Economy by Vehicle Type
A106: Vehicle Type | D106: Average Fuel Economy (mpg)
A107: Passenger Cars | E107: 24.8
A108: Other 2-Axle, 4-Tire Vehicles | E108: 18.1
A109: Motorcycles | E109: 44
A110: Single unit 2-Axle 6-Tire or More Trucks | E110: 7.9
A111: Combination Trucks | E111: 6.9
A112: Diesel Buses (Diesel Heavy-Duty Vehicles) | E112: 7.4
A113: Average mpg values from the U.S. Department of Transportation, Federal Highway Administration, Highway Statistics 2022 (Updated February 2024), Table VM-1.
A115: GHG Emissions
A117: Total Organization-Wide Mobile Source Fuel Usage and CO2 Emissions (On-Road and Off-Road Vehicles)
A118: Fuel Type | D118: Fuel Usage | E118: Units | F118: CO2 (kg)
A119: Motor Gasoline | D119: =SUMIF($D$23:$D$103,"*- Gasoline*",$F$23:$F$103) -> 0 | E119: gallons | F119: =IF($D119="","",_xlfn.XLOOKUP(A119,'Emission Factors'!$A$45:$A$54,'Emission Factors'!$B$45:$B$54)*$D119) -> 0
A120: Diesel Fuel | D120: =SUMIF($D$23:$D$103,"*- Diesel*",$F$23:$F$103) -> 0 | E120: gallons | F120: =IF($D120="","",_xlfn.XLOOKUP(A120,'Emission Factors'!$A$45:$A$54,'Emission Factors'!$B$45:$B$54)*$D120) -> 0
A121: Residual Fuel Oil | D121: =SUMIF($D$23:$D$103,"*Residual*",$F$23:$F$103) -> 0 | E121: gallons | F121: =IF($D121="","",_xlfn.XLOOKUP(A121,'Emission Factors'!$A$45:$A$54,'Emission Factors'!$B$45:$B$54)*$D121) -> 0
A122: Aviation Gasoline | D122: =SUMIF($D$23:$D$103,"*Aviation Gasoline*",$F$23:$F$103) -> 0 | E122: gallons | F122: =IF($D122="","",_xlfn.XLOOKUP(A122,'Emission Factors'!$A$45:$A$54,'Emission Factors'!$B$45:$B$54)*$D122) -> 0
A123: Kerosene-Type Jet Fuel | D123: =SUMIF($D$23:$D$103,"*Jet*",$F$23:$F$103) -> 0 | E123: gallons | F123: =IF($D123="","",_xlfn.XLOOKUP(A123,'Emission Factors'!$A$45:$A$54,'Emission Factors'!$B$45:$B$54)*$D123) -> 0
A124: Liquefied Petroleum Gases (LPG) | D124: =SUMIF($D$23:$D$103,"*LPG*",$F$23:$F$103) -> 0 | E124: gallons | F124: =IF($D124="","",_xlfn.XLOOKUP(A124,'Emission Factors'!$A$45:$A$54,'Emission Factors'!$B$45:$B$54)*$D124) -> 0
A125: Ethanol | D125: =SUMIF($D$23:$D$103,"*Ethanol*",$F$23:$F$103) -> 0 | E125: gallons | F125: =IF($D125="","",_xlfn.XLOOKUP(A125,'Emission Factors'!$A$45:$A$54,'Emission Factors'!$B$45:$B$54)*$D125) -> 0 | G125: Note: emissions here are only for the gasoline portion of the fuel, biogenic CO2 emissions are reported below
A126: Biodiesel | D126: =SUMIF($D$23:$D$103,"*- Biodiesel",$F$23:$F$103) -> 0 | E126: gallons | F126: =IF($D126="","",_xlfn.XLOOKUP(A126,'Emission Factors'!$A$45:$A$54,'Emission Factors'!$B$45:$B$54)*$D126) -> 0 | G126: Note: emissions here are only for the diesel portion of the fuel, biogenic CO2 emissions are reported below
A127: Liquefied Natural Gas (LNG) | D127: =SUMIF($D$23:$D$103,"*LNG*",$F$23:$F$103) -> 0 | E127: gallons | F127: =IF($D127="","",_xlfn.XLOOKUP(A127,'Emission Factors'!$A$45:$A$54,'Emission Factors'!$B$45:$B$54)*$D127) -> 0
A128: Compressed Natural Gas (CNG) | D128: =SUMIF($D$23:$D$103,"*CNG*",$F$23:$F$103) -> 0 | E128: scf | F128: =IF($D128="","",_xlfn.XLOOKUP(A128,'Emission Factors'!$A$45:$A$54,'Emission Factors'!$B$45:$B$54)*$D128) -> 0
A130: Total Organization-Wide On-Road Gasoline Mobile Source Mileage and CH4/N2O Emissions
A131: Vehicle Type | C131: Vehicle Year | D131: Mileage (miles) | E131: CH4 (g) | F131: N2O (g)
A132: Passenger Cars - Gasoline | C132: 1984-93 | D132: =SUMPRODUCT(--($D$23:$D$103=$A$132),--($E$23:$E$103<=1993),--($H$23:$H$103)) -> 0 | E132: =VLOOKUP(C132,Gas_Pass_Car_CH4_N2O, 2,FALSE)*D132 -> 0 | F132: =VLOOKUP(C132,Gas_Pass_Car_CH4_N2O, 3,FALSE)*D132 -> 0
C133: 1994 | D133: =SUMPRODUCT(--($D$23:$D$103=$A$132),--($E$23:$E$103=$C133),--($H$23:$H$103)) -> 0 | E133: =VLOOKUP(C133,Gas_Pass_Car_CH4_N2O, 2,FALSE)*D133 -> 0 | F133: 0
C134: 1995 | D134: =SUMPRODUCT(--($D$23:$D$103=$A$132),--($E$23:$E$103=$C134),--($H$23:$H$103)) -> 0 | E134: 0 | F134: 0
C135: 1996 | D135: 0 | E135: 0 | F135: 0
C136: 1997 | D136: 0 | E136: 0 | F136: 0
C137: 1998 | D137: 0 | E137: 0 | F137: 0
C138: 1999 | D138: 0 | E138: 0 | F138: 0
C139: 2000 | D139: 0 | E139: 0 | F139: 0
C140: 2001 | D140: 0 | E140: 0 | F140: 0
C141: 2002 | D141: 0 | E141: 0 | F141: 0
C142: 2003 | D142: 0 | E142: 0 | F142: 0
C143: 2004 | D143: 0 | E143: 0 | F143: 0
C144: 2005 | D144: 0 | E144: =VLOOKUP(C144,Gas_Pass_Car_CH4_N2O, 2,FALSE)*D144 -> 0 | F144: =VLOOKUP(C144,Gas_Pass_Car_CH4_N2O, 3,FALSE)*D144 -> 0
C145: 2006 | D145: 0 | E145: 0 | F145: 0
C146: 2007 | D146: 0 | E146: 0 | F146: 0
C147: 2008 | D147: 0 | E147: 0 | F147: 0
C148: 2009 | D148: 0 | E148: 0 | F148: 0
C149: 2010 | D149: 0 | E149: 0 | F149: 0
C150: 2011 | D150: 0 | E150: 0 | F150: 0
C151: 2012 | D151: 0 | E151: 0 | F151: 0
C152: 2013 | D152: 0 | E152: 0 | F152: 0
C153: 2014 | D153: 0 | E153: 0 | F153: 0
C154: 2015 | D154: 0 | E154: 0 | F154: 0
C155: 2016 | D155: 0 | E155: 0 | F155: 0
C156: 2017 | D156: =SUMPRODUCT(--($D$23:$D$103=$A$132),--($E$23:$E$103=$C156),--($H$23:$H$103)) -> 0 | E156: 0 | F156: 0
C157: 2018 | D157: =SUMPRODUCT(--($D$23:$D$103=$A$132),--($E$23:$E$103=$C157),--($H$23:$H$103)) -> 0 | E157: =VLOOKUP(C157,Gas_Pass_Car_CH4_N2O, 2,FALSE)*D157 -> 0 | F157: =VLOOKUP(C157,Gas_Pass_Car_CH4_N2O, 3,FALSE)*D157 -> 0
C158: 2019 | D158: =SUMPRODUCT(--($D$23:$D$103=$A$132),--($E$23:$E$103=$C158),--($H$23:$H$103)) -> 0 | E158: =VLOOKUP(C158,Gas_Pass_Car_CH4_N2O, 2,FALSE)*D158 -> 0 | F158: =VLOOKUP(C158,Gas_Pass_Car_CH4_N2O, 3,FALSE)*D158 -> 0
C159: 2020 | D159: =SUMPRODUCT(--($D$23:$D$103=$A$132),--($E$23:$E$103=$C159),--($H$23:$H$103)) -> 0 | E159: 0 | F159: 0
C160: 2021 | D160: =SUMPRODUCT(--($D$23:$D$103=$A$132),--($E$23:$E$103=$C160),--($H$23:$H$103)) -> 0 | E160: =VLOOKUP(C160,Gas_Pass_Car_CH4_N2O, 2,FALSE)*D160 -> 0 | F160: =VLOOKUP(C160,Gas_Pass_Car_CH4_N2O, 3,FALSE)*D160 -> 0
C161: 2022 | D161: =SUMPRODUCT(--($D$23:$D$103=$A$132),--($E$23:$E$103=$C161),--($H$23:$H$103)) -> 0 | E161: 0 | F161: 0
C162: 2023 | D162: =SUMPRODUCT(--($D$23:$D$103=$A$132),--($E$23:$E$103=$C162),--($H$23:$H$103)) -> 0 | E162: =VLOOKUP(C162,Gas_Pass_Car_CH4_N2O, 2,FALSE)*D162 -> 0 | F162: =VLOOKUP(C162,Gas_Pass_Car_CH4_N2O, 3,FALSE)*D162 -> 0
C163: 2024 | D163: =SUMPRODUCT(--($D$23:$D$103=$A$132),--($E$23:$E$103=$C163),--($H$23:$H$103)) -> 0 | E163: =VLOOKUP(C163,Gas_Pass_Car_CH4_N2O, 2,FALSE)*D163 -> 0 | F163: =VLOOKUP(C163,Gas_Pass_Car_CH4_N2O, 3,FALSE)*D163 -> 0
A164: Light-Duty Trucks - Gasoline | C164: 1987-93 | D164: =SUMPRODUCT(--($D$23:$D$103=$A$164),--($E$23:$E$103<=1993),--($H$23:$H$103)) -> 0 | E164: =VLOOKUP(C164,Gas_Lt_Duty_Trucks_CH4_N2O, 2,FALSE)*D164 -> 0 | F164: =VLOOKUP(C164,Gas_Lt_Duty_Trucks_CH4_N2O, 3,FALSE)*D164 -> 0
A165: (Vans, Pickup Trucks, SUVs) | C165: 1994 | D165: =SUMPRODUCT(--($D$23:$D$103=$A$164),--($E$23:$E$103=$C165),--($H$23:$H$103)) -> 0 | E165: 0 | F165: 0
C166: 1995 | D166: 0 | E166: 0 | F166: 0
C167: 1996 | D167: 0 | E167: 0 | F167: 0
C168: 1997 | D168: 0 | E168: 0 | F168: 0
C169: 1998 | D169: 0 | E169: 0 | F169: 0
C170: 1999 | D170: 0 | E170: 0 | F170: 0
C171: 2000 | D171: 0 | E171: 0 | F171: 0
C172: 2001 | D172: 0 | E172: 0 | F172: 0
C173: 2002 | D173: 0 | E173: 0 | F173: 0
C174: 2003 | D174: 0 | E174: 0 | F174: 0
C175: 2004 | D175: 0 | E175: 0 | F175: 0
C176: 2005 | D176: 0 | E176: =VLOOKUP(C176,Gas_Lt_Duty_Trucks_CH4_N2O, 2,FALSE)*D176 -> 0 | F176: =VLOOKUP(C176,Gas_Lt_Duty_Trucks_CH4_N2O, 3,FALSE)*D176 -> 0
C177: 2006 | D177: 0 | E177: 0 | F177: 0
C178: 2007 | D178: 0 | E178: 0 | F178: 0
C179: 2008 | D179: 0 | E179: 0 | F179: 0
C180: 2009 | D180: 0 | E180: 0 | F180: 0
C181: 2010 | D181: 0 | E181: 0 | F181: 0
C182: 2011 | D182: 0 | E182: 0 | F182: 0
C183: 2012 | D183: 0 | E183: 0 | F183: 0
C184: 2013 | D184: 0 | E184: 0 | F184: 0
C185: 2014 | D185: 0 | E185: 0 | F185: 0
C186: 2015 | D186: 0 | E186: 0 | F186: 0
C187: 2016 | D187: 0 | E187: =VLOOKUP(C187,Gas_Lt_Duty_Trucks_CH4_N2O, 2,FALSE)*D187 -> 0 | F187: =VLOOKUP(C187,Gas_Lt_Duty_Trucks_CH4_N2O, 3,FALSE)*D187 -> 0
C188: 2017 | D188: 0 | E188: 0 | F188: 0
C189: 2018 | D189: 0 | E189: 0 | F189: 0
C190: 2019 | D190: 0 | E190: =VLOOKUP(C190,Gas_Lt_Duty_Trucks_CH4_N2O, 2,FALSE)*D190 -> 0 | F190: =VLOOKUP(C190,Gas_Lt_Duty_Trucks_CH4_N2O, 3,FALSE)*D190 -> 0
C191: 2020 | D191: 0 | E191: =VLOOKUP(C191,Gas_Lt_Duty_Trucks_CH4_N2O, 2,FALSE)*D191 -> 0 | F191: =VLOOKUP(C191,Gas_Lt_Duty_Trucks_CH4_N2O, 3,FALSE)*D191 -> 0
C192: 2021 | D192: 0 | E192: 0 | F192: 0
C193: 2022 | D193: 0 | E193: 0 | F193: 0
C194: 2023 | D194: 0 | E194: =VLOOKUP(C194,Gas_Lt_Duty_Trucks_CH4_N2O, 2,FALSE)*D194 -> 0 | F194: =VLOOKUP(C194,Gas_Lt_Duty_Trucks_CH4_N2O, 3,FALSE)*D194 -> 0
C195: 2024 | D195: 0 | E195: 0 | F195: 0
A196: Heavy-Duty Vehicles - Gasoline | C196: 1985-86 | D196: =SUMPRODUCT(--($D$23:$D$103=$A$196),--($E$23:$E$103<=1986),--($H$23:$H$103)) -> 0 | E196: =VLOOKUP(C196,Gas_Heavy_Duty_CH4_N2O, 2,FALSE)*D196 -> 0 | F196: =VLOOKUP(C196,Gas_Heavy_Duty_CH4_N2O, 3,FALSE)*D196 -> 0
C197: 1987 | D197: =SUMPRODUCT(--($D$23:$D$103=$A$196),--($E$23:$E$103=$C197),--($H$23:$H$103)) -> 0 | E197: =VLOOKUP(C197,Gas_Heavy_Duty_CH4_N2O, 2,FALSE)*D197 -> 0 | F197: 0
C198: 1988-1989 | D198: =SUMPRODUCT(--($D$23:$D$103=$A$196),--($E$23:$E$103>=1988),--($E$23:$E$103<=1989),--($H$23:$H$103)) -> 0 | E198: =VLOOKUP(C198,Gas_Heavy_Duty_CH4_N2O, 2,FALSE)*D198 -> 0 | F198: 0
C199: 1990-1995 | D199: =SUMPRODUCT(--($D$23:$D$103=$A$196),--($E$23:$E$103>=1990),--($E$23:$E$103<=1995),--($H$23:$H$103)) -> 0 | E199: 0 | F199: 0
C200: 1996 | D200: =SUMPRODUCT(--($D$23:$D$103=$A$196),--($E$23:$E$103=$C200),--($H$23:$H$103)) -> 0 | E200: 0 | F200: 0
C201: 1997 | D201: 0 | E201: 0 | F201: 0
C202: 1998 | D202: 0 | E202: 0 | F202: 0
C203: 1999 | D203: 0 | E203: 0 | F203: 0
C204: 2000 | D204: 0 | E204: 0 | F204: 0
C205: 2001 | D205: 0 | E205: 0 | F205: 0
C206: 2002 | D206: 0 | E206: 0 | F206: 0
C207: 2003 | D207: 0 | E207: 0 | F207: 0
C208: 2004 | D208: 0 | E208: 0 | F208: 0
C209: 2005 | D209: 0 | E209: =VLOOKUP(C209,Gas_Heavy_Duty_CH4_N2O, 2,FALSE)*D209 -> 0 | F209: =VLOOKUP(C209,Gas_Heavy_Duty_CH4_N2O, 3,FALSE)*D209 -> 0
C210: 2006 | D210: 0 | E210: 0 | F210: 0
C211: 2007 | D211: 0 | E211: 0 | F211: 0
C212: 2008 | D212: 0 | E212: 0 | F212: 0
C213: 2009 | D213: 0 | E213: 0 | F213: 0
C214: 2010 | D214: 0 | E214: 0 | F214: 0
C215: 2011 | D215: 0 | E215: 0 | F215: 0
C216: 2012 | D216: 0 | E216: 0 | F216: 0
C217: 2013 | D217: 0 | E217: 0 | F217: 0
C218: 2014 | D218: 0 | E218: 0 | F218: 0
C219: 2015 | D219: 0 | E219: 0 | F219: 0
C220: 2016 | D220: 0 | E220: 0 | F220: 0
C221: 2017 | D221: 0 | E221: 0 | F221: 0
C222: 2018 | D222: 0 | E222: =VLOOKUP(C222,Gas_Heavy_Duty_CH4_N2O, 2,FALSE)*D222 -> 0 | F222: =VLOOKUP(C222,Gas_Heavy_Duty_CH4_N2O, 3,FALSE)*D222 -> 0
C223: 2019 | D223: 0 | E223: =VLOOKUP(C223,Gas_Heavy_Duty_CH4_N2O, 2,FALSE)*D223 -> 0 | F223: =VLOOKUP(C223,Gas_Heavy_Duty_CH4_N2O, 3,FALSE)*D223 -> 0
C224: 2020 | D224: 0 | E224: =VLOOKUP(C224,Gas_Heavy_Duty_CH4_N2O, 2,FALSE)*D224 -> 0 | F224: =VLOOKUP(C224,Gas_Heavy_Duty_CH4_N2O, 3,FALSE)*D224 -> 0
C225: 2021 | D225: 0 | E225: 0 | F225: 0
C226: 2022 | D226: 0 | E226: 0 | F226: 0
C227: 2023 | D227: 0 | E227: =VLOOKUP(C227,Gas_Heavy_Duty_CH4_N2O, 2,FALSE)*D227 -> 0 | F227: =VLOOKUP(C227,Gas_Heavy_Duty_CH4_N2O, 3,FALSE)*D227 -> 0
C228: 2024 | D228: =SUMPRODUCT(--($D$23:$D$103=$A$196),--($E$23:$E$103=$C228),--($H$23:$H$103)) -> 0 | E228: 0 | F228: 0
A229: Motorcycles - Gasoline | C229: 1960-1995 | D229: =SUMPRODUCT(--($D$23:$D$103=$A$229),--($E$23:$E$103<=1995),--($H$23:$H$103)) -> 0 | E229: =VLOOKUP(C229,Gas_Motorcycle_CH4_N2O, 2,FALSE)*D229 -> 0 | F229: =VLOOKUP(C229,Gas_Motorcycle_CH4_N2O, 3,FALSE)*D229 -> 0
C230: 1996-2005 | D230: =SUMPRODUCT(--($D$23:$D$103=$A$229),--($E$23:$E$103<=1995),--($H$23:$H$103)) -> 0 | E230: =VLOOKUP(C230,Gas_Motorcycle_CH4_N2O, 2,FALSE)*D230 -> 0 | F230: =VLOOKUP(C230,Gas_Motorcycle_CH4_N2O, 3,FALSE)*D230 -> 0
C231: 2006-2024 | D231: =SUMPRODUCT(--($D$23:$D$103=$A$229),--($E$23:$E$103>=1996),--($H$23:$H$103)) -> 0 | E231: =VLOOKUP(C231,Gas_Motorcycle_CH4_N2O, 2,FALSE)*D231 -> 0 | F231: =VLOOKUP(C231,Gas_Motorcycle_CH4_N2O, 3,FALSE)*D231 -> 0
A233: Total Organization-Wide On-Road Non-Gasoline Mobile Source Mileage and CH4/N2O Emissions
A234: Vehicle Type | B234: Fuel Type | C234: Vehicle Year | D234: Mileage (miles) | E234: CH4 (g) | F234: N2O (g)
A235: Passenger Cars - Diesel | B235: Diesel | C235: 1960-1982 | D235: =SUMPRODUCT(--($D$23:$D$103=$A$235),--($E$23:$E$103<=1982),--($H$23:$H$103)) -> 0 | E235: =VLOOKUP($C235,Diesel_pass_CH4_N2O, 2,FALSE)*$D235 -> 0 | F235: =VLOOKUP($C235,Diesel_pass_CH4_N2O, 3,FALSE)*$D235 -> 0
C236: 1983-2006 | D236: =SUMPRODUCT(--($D$23:$D$103=$A$235),--($E$23:$E$103>=1983),--($E$23:$E$103<=2006),--($H$23:$H$103)) -> 0 | E236: =VLOOKUP($C236,Diesel_pass_CH4_N2O, 2,FALSE)*$D236 -> 0 | F236: =VLOOKUP($C236,Diesel_pass_CH4_N2O, 3,FALSE)*$D236 -> 0
C237: 2007-2024 | D237: =SUMPRODUCT(--($D$23:$D$103=$A$235),--($E$23:$E$103>=2007),--($H$23:$H$103)) -> 0 | E237: =VLOOKUP($C237,Diesel_pass_CH4_N2O, 2,FALSE)*$D237 -> 0 | F237: =VLOOKUP($C237,Diesel_pass_CH4_N2O, 3,FALSE)*$D237 -> 0
A238: Light-Duty Trucks - Diesel | B238: Diesel | C238: 1960-1982 | D238: =SUMPRODUCT(--($D$23:$D$103=$A$238),--($E$23:$E$103<=1982),--($H$23:$H$103)) -> 0 | E238: =VLOOKUP($C238,Diesel_Lt_Trucks_CH4_N2O, 2,FALSE)*$D238 -> 0 | F238: =VLOOKUP($C238,Diesel_Lt_Trucks_CH4_N2O, 3,FALSE)*$D238 -> 0
C239: 1983-2006 | D239: =SUMPRODUCT(--($D$23:$D$103=$A$238),--($E$23:$E$103>=1983),--($E$23:$E$103<=2006),--($H$23:$H$103)) -> 0 | E239: =VLOOKUP($C239,Diesel_Lt_Trucks_CH4_N2O, 2,FALSE)*$D239 -> 0 | F239: =VLOOKUP($C239,Diesel_Lt_Trucks_CH4_N2O, 3,FALSE)*$D239 -> 0
C240: 2007-2024 | D240: =SUMPRODUCT(--($D$23:$D$103=$A$238),--($E$23:$E$103>=2007),--($H$23:$H$103)) -> 0 | E240: =VLOOKUP($C240,Diesel_Lt_Trucks_CH4_N2O, 2,FALSE)*$D240 -> 0 | F240: =VLOOKUP($C240,Diesel_Lt_Trucks_CH4_N2O, 3,FALSE)*$D240 -> 0
A241: Medium- and Heavy-Duty Vehicles - Diesel | B241: Diesel | C241: 1960-2006 | D241: =SUMPRODUCT(--($D$23:$D$103=$A$241),--($E$23:$E$103<=2006),--($H$23:$H$103)) -> 0 | E241: =VLOOKUP($C241,Diesel_Heavy_Trucks_CH4_N2O, 2,FALSE)*$D241 -> 0 | F241: =VLOOKUP($C241,Diesel_Heavy_Trucks_CH4_N2O, 3,FALSE)*$D241 -> 0
C242: 2007-2024 | D242: =SUMPRODUCT(--($D$23:$D$103=$A$241),--($E$23:$E$103>=2007),--($H$23:$H$103)) -> 0 | E242: =VLOOKUP($C242,Diesel_Heavy_Trucks_CH4_N2O, 2,FALSE)*$D242 -> 0 | F242: =VLOOKUP($C242,Diesel_Heavy_Trucks_CH4_N2O, 3,FALSE)*$D242 -> 0
A243: Light-Duty Cars | B243: Methanol | D243: =SUMIF($D$23:$D$103,$A$243&" - "&B243,$H$23:$H$103) -> 0 | E243: ='Emission Factors'!D170*D243 -> 0 | F243: ='Emission Factors'!E170*D243 -> 0
B244: Ethanol | D244: =SUMIF($D$23:$D$103,$A$243&" - "&B244,$H$23:$H$103) -> 0 | E244: ='Emission Factors'!D171*D244 -> 0 | F244: ='Emission Factors'!E171*D244 -> 0
B245: CNG | D245: =SUMIF($D$23:$D$103,$A$243&" - "&B245,$H$23:$H$103) -> 0 | E245: ='Emission Factors'!D172*D245 -> 0 | F245: ='Emission Factors'!E172*D245 -> 0
B246: LPG | D246: =SUMIF($D$23:$D$103,$A$243&" - "&B246,$H$23:$H$103) -> 0 | E246: ='Emission Factors'!D173*D246 -> 0 | F246: ='Emission Factors'!E173*D246 -> 0
B247: Biodiesel | D247: =SUMIF($D$23:$D$103,$A$243&" - "&B247,$H$23:$H$103) -> 0 | E247: ='Emission Factors'!D174*D247 -> 0 | F247: ='Emission Factors'!E174*D247 -> 0
A248: Light-Duty Trucks | B248: Ethanol | D248: =SUMIF($D$23:$D$103,$A$248&" - "&B248,$H$23:$H$103) -> 0 | E248: ='Emission Factors'!D175*D248 -> 0 | F248: ='Emission Factors'!E175*D248 -> 0
B249: CNG | D249: =SUMIF($D$23:$D$103,$A$248&" - "&B249,$H$23:$H$103) -> 0 | E249: ='Emission Factors'!D176*D249 -> 0 | F249: ='Emission Factors'!E176*D249 -> 0
B250: LPG | D250: =SUMIF($D$23:$D$103,$A$248&" - "&B250,$H$23:$H$103) -> 0 | E250: ='Emission Factors'!D177*D250 -> 0 | F250: ='Emission Factors'!E177*D250 -> 0
B251: LNG | D251: =SUMIF($D$23:$D$103,$A$248&" - "&B251,$H$23:$H$103) -> 0 | E251: ='Emission Factors'!D178*D251 -> 0 | F251: ='Emission Factors'!E178*D251 -> 0
B252: Biodiesel | D252: =SUMIF($D$23:$D$103,$A$248&" - "&B252,$H$23:$H$103) -> 0 | E252: ='Emission Factors'!D179*D252 -> 0 | F252: ='Emission Factors'!E179*D252 -> 0
A253: Medium-Duty Trucks | B253: CNG | D253: =SUMIF($D$23:$D$103,$A$253&" - "&B253,$H$23:$H$103) -> 0 | E253: ='Emission Factors'!D180*D253 -> 0 | F253: ='Emission Factors'!E180*D253 -> 0
B254: LPG | D254: =SUMIF($D$23:$D$103,$A$253&" - "&B254,$H$23:$H$103) -> 0 | E254: ='Emission Factors'!D181*D254 -> 0 | F254: ='Emission Factors'!E181*D254 -> 0
B255: LNG | D255: =SUMIF($D$23:$D$103,$A$253&" - "&B255,$H$23:$H$103) -> 0 | E255: ='Emission Factors'!D182*D255 -> 0 | F255: ='Emission Factors'!E182*D255 -> 0
B256: Biodiesel | D256: =SUMIF($D$23:$D$103,$A$253&" - "&B256,$H$23:$H$103) -> 0 | E256: ='Emission Factors'!D183*D256 -> 0 | F256: ='Emission Factors'!E183*D256 -> 0
A257: Heavy-Duty Trucks | B257: Methanol | D257: =SUMIF($D$23:$D$103,$A$257&" - "&B257,$H$23:$H$103) -> 0 | E257: ='Emission Factors'!D184*D257 -> 0 | F257: ='Emission Factors'!E184*D257 -> 0
B258: Ethanol | D258: 0 | E258: ='Emission Factors'!D185*D258 -> 0 | F258: ='Emission Factors'!E185*D258 -> 0
B259: CNG | D259: 0 | E259: ='Emission Factors'!D186*D259 -> 0 | F259: ='Emission Factors'!E186*D259 -> 0
B260: LPG | D260: 0 | E260: ='Emission Factors'!D187*D260 -> 0 | F260: ='Emission Factors'!E187*D260 -> 0
B261: LNG | D261: 0 | E261: ='Emission Factors'!D188*D261 -> 0 | F261: ='Emission Factors'!E188*D261 -> 0
B262: Biodiesel | D262: 0 | E262: ='Emission Factors'!D189*D262 -> 0 | F262: ='Emission Factors'!E189*D262 -> 0
A263: Buses | B263: Methanol | D263: =SUMIF($D$23:$D$103,$A$263&" - "&B263,$H$23:$H$103) -> 0 | E263: ='Emission Factors'!D190*D263 -> 0 | F263: ='Emission Factors'!E190*D263 -> 0
B264: Ethanol | D264: 0 | E264: ='Emission Factors'!D191*D264 -> 0 | F264: ='Emission Factors'!E191*D264 -> 0
B265: CNG | D265: 0 | E265: ='Emission Factors'!D192*D265 -> 0 | F265: ='Emission Factors'!E192*D265 -> 0
B266: LPG | D266: 0 | E266: ='Emission Factors'!D193*D266 -> 0 | F266: ='Emission Factors'!E193*D266 -> 0
B267: LNG | D267: 0 | E267: ='Emission Factors'!D194*D267 -> 0 | F267: ='Emission Factors'!E194*D267 -> 0
B268: Biodiesel | D268: 0 | E268: ='Emission Factors'!D195*D268 -> 0 | F268: ='Emission Factors'!E195*D268 -> 0
A270: Total Organization-Wide Non-Road Mobile Source Fuel Usage and CH4/N2O Emissions
A271: Vehicle Type | B271: Fuel Type | C271: Fuel Usage (gallons) | D271: CH4 (g) | E271: N2O (g)
A272: Ships and Boats | B272: Residual Fuel Oil | C272: =SUMIF($D$23:$D$103,$A$272&" - "&B272,$F$23:$F$103) -> 0 | D272: ='Emission Factors'!C199*C272 -> 0 | E272: ='Emission Factors'!D199*C272 -> 0
B273: Gasoline (2 stroke) | C273: =SUMIF($D$23:$D$103,$A$272&" - "&B273,$F$23:$F$103) -> 0 | D273: ='Emission Factors'!C200*C273 -> 0 | E273: ='Emission Factors'!D200*C273 -> 0
B274: Gasoline (4 stroke) | C274: =SUMIF($D$23:$D$103,$A$272&" - "&B274,$F$23:$F$103) -> 0 | D274: ='Emission Factors'!C201*C274 -> 0 | E274: ='Emission Factors'!D201*C274 -> 0
B275: Diesel | C275: =SUMIF($D$23:$D$103,$A$272&" - "&B275,$F$23:$F$103) -> 0 | D275: ='Emission Factors'!C202*C275 -> 0 | E275: ='Emission Factors'!D202*C275 -> 0
A276: Locomotives | B276: Diesel | C276: =SUMIF($D$23:$D$103,$A$276&" - "&B276,$F$23:$F$103) -> 0 | D276: ='Emission Factors'!C203*C276 -> 0 | E276: ='Emission Factors'!D203*C276 -> 0
A277: Aircraft | B277: Jet Fuel | C277: =SUMIF($D$23:$D$103,$A$277&" - "&B277,$F$23:$F$103) -> 0 | D277: ='Emission Factors'!C204*C277 -> 0 | E277: ='Emission Factors'!D204*C277 -> 0
B278: Aviation Gasoline | C278: =SUMIF($D$23:$D$103,$A$277&" - "&B278,$F$23:$F$103) -> 0 | D278: ='Emission Factors'!C205*C278 -> 0 | E278: ='Emission Factors'!D205*C278 -> 0
A279: Agricultural Equipment | B279: Gasoline (2 stroke) | C279: =SUMIF($D$23:$D$103,$A$279&" - "&B279,$F$23:$F$103) -> 0 | D279: ='Emission Factors'!C206*C279 -> 0 | E279: ='Emission Factors'!D206*C279 -> 0
B280: Gasoline (4 stroke) | C280: 0 | D280: ='Emission Factors'!C207*C280 -> 0 | E280: ='Emission Factors'!D207*C280 -> 0
B281: Gasoline Off-Road Trucks | C281: 0 | D281: ='Emission Factors'!C208*C281 -> 0 | E281: ='Emission Factors'!D208*C281 -> 0
B282: Diesel Equipment | C282: 0 | D282: ='Emission Factors'!C209*C282 -> 0 | E282: ='Emission Factors'!D209*C282 -> 0
B283: Diesel Off-Road Trucks | C283: 0 | D283: ='Emission Factors'!C210*C283 -> 0 | E283: ='Emission Factors'!D210*C283 -> 0
B284: LPG | C284: 0 | D284: ='Emission Factors'!C211*C284 -> 0 | E284: ='Emission Factors'!D211*C284 -> 0
A285: Construction/Mining Equipment | B285: Gasoline (2 stroke) | C285: =SUMIF($D$23:$D$103,$A$285&" - "&B285,$F$23:$F$103) -> 0 | D285: ='Emission Factors'!C212*C285 -> 0 | E285: ='Emission Factors'!D212*C285 -> 0
B286: Gasoline (4 stroke) | C286: 0 | D286: ='Emission Factors'!C213*C286 -> 0 | E286: ='Emission Factors'!D213*C286 -> 0
B287: Gasoline Off-Road Trucks | C287: 0 | D287: ='Emission Factors'!C214*C287 -> 0 | E287: ='Emission Factors'!D214*C287 -> 0
B288: Diesel Equipment | C288: 0 | D288: ='Emission Factors'!C215*C288 -> 0 | E288: ='Emission Factors'!D215*C288 -> 0
B289: Diesel Off-Road Trucks | C289: 0 | D289: ='Emission Factors'!C216*C289 -> 0 | E289: ='Emission Factors'!D216*C289 -> 0
B290: LPG | C290: 0 | D290: ='Emission Factors'!C217*C290 -> 0 | E290: ='Emission Factors'!D217*C290 -> 0
A291: Lawn and Garden Equipment | B291: Gasoline (2 stroke) | C291: =SUMIF($D$23:$D$103,$A$291&" - "&B291,$F$23:$F$103) -> 0 | D291: ='Emission Factors'!C218*C291 -> 0 | E291: ='Emission Factors'!D218*C291 -> 0
... 22 more rows

Sheet Refrigeration and AC
A3: Scope 1 Emissions from Refrigeration and Air Conditioning Equipment
A5: Guidance
A6: (A) HFC, PFC, CO2, and SF6 refrigerants from facilities and vehicles are required to be included in the GHG inventory. Ozone depleting substances, such as CFCs and HCFCs, are regulated internationally and are typically excluded from a GHG inventory or reported as a memo item.
A7: (B) Select ONE of the three options with which to estimate emissions. Options range from most preferred method (Option 1) to least preferred method (Option 3). Limited data availability often makes Option 3 an appropriate choice. If Option 3 is used and emissions are determined to be significant when compared to other emission sources, consider using one of the other methods to calculate emissions more accurately.
A8: (C) Enter annual data in ORANGE cells as appropriate for the selected option.
A10: Option 1. Material Balance Method: Enter organization-wide total gases stored and transferred (by gas) in Table 1.
A11: - Choose the appropriate gas from the Gas drop down menu.
A12: - Inventory Change = difference of gas stored in inventory from beginning to end of reporting period.
A13: (Includes only gas stored on-site (i.e. cylinders) and not gas contained within equipment).
A14: - Transferred Amount = gas purchased minus gas sold/disposed during reporting period.
A15: -- Gas purchased includes: Purchases for inventory, as part of equipment servicing (not from inventory),
A16: within purchased equipment, and gas returned to the site after off-site recycling.
A17: -- Gas sold/disposed includes: Returns to supplier, sales or disposals (including within equipment),
A18: and gas sent off-site for recycling, reclamation, or destruction.
A19: - Capacity Change = capacity of all units at beginning minus capacity of all units at end of reporting period.
A20: (can be assumed to be capacity of retired units minus capacity of new units).
A22: Table 1. Organization-Wide Refrigeration Gas CO2 Equivalent Emissions - Material Balance
B23: Gas | C23: Inventory | D23: Transferred | E23: Capacity | F23: CO2 Equivalent
A24: Gas | B24: GWP | C24: Change | D24: Amount | E24: Change | F24: Emissions
C25: (kg) | D25: (kg) | E25: (kg) | F25: (kg)
B26: =IF(A26="","",_xlfn.XLOOKUP(A26,'Emission Factors'!$A$371:$A$402, 'Emission Factors'!$C$371:$C$402,_xlfn.XLOOKUP(A26,'Emission Factors'!$A$409:$A$438,'Emission Factors'!$B$409:$B$438,"",0,1),0,1)) ->  | F26: =IF(B26="", "",IF(($C26+$D26+$E26)*$B26<0,0,($C26+$D26+$E26)*$B26)) -> 
B27: =IF(A27="","",_xlfn.XLOOKUP(A27,'Emission Factors'!$A$371:$A$402, 'Emission Factors'!$C$371:$C$402,_xlfn.XLOOKUP(A27,'Emission Factors'!$A$409:$A$438,'Emission Factors'!$B$409:$B$438,"",0,1),0,1)) -> 
B28: =IF(A28="","",_xlfn.XLOOKUP(A28,'Emission Factors'!$A$371:$A$402, 'Emission Factors'!$C$371:$C$402,_xlfn.XLOOKUP(A28,'Emission Factors'!$A$409:$A$438,'Emission Factors'!$B$409:$B$438,"",0,1),0,1)) -> 
B29: =IF(A29="","",_xlfn.XLOOKUP(A29,'Emission Factors'!$A$371:$A$402, 'Emission Factors'!$C$371:$C$402,_xlfn.XLOOKUP(A29,'Emission Factors'!$A$409:$A$438,'Emission Factors'!$B$409:$B$438,"",0,1),0,1)) ->  | F29: =IF(B29="", "",IF(($C29+$D29+$E29)*$B29<0,0,($C29+$D29+$E29)*$B29)) -> 
B30: =IF(A30="","",_xlfn.XLOOKUP(A30,'Emission Factors'!$A$371:$A$402, 'Emission Factors'!$C$371:$C$402,_xlfn.XLOOKUP(A30,'Emission Factors'!$A$409:$A$438,'Emission Factors'!$B$409:$B$438,"",0,1),0,1)) -> 
B31: =IF(A31="","",_xlfn.XLOOKUP(A31,'Emission Factors'!$A$371:$A$402, 'Emission Factors'!$C$371:$C$402,_xlfn.XLOOKUP(A31,'Emission Factors'!$A$409:$A$438,'Emission Factors'!$B$409:$B$438,"",0,1),0,1)) -> 
B32: =IF(A32="","",_xlfn.XLOOKUP(A32,'Emission Factors'!$A$371:$A$402, 'Emission Factors'!$C$371:$C$402,_xlfn.XLOOKUP(A32,'Emission Factors'!$A$409:$A$438,'Emission Factors'!$B$409:$B$438,"",0,1),0,1)) -> 
B33: =IF(A33="","",_xlfn.XLOOKUP(A33,'Emission Factors'!$A$371:$A$402, 'Emission Factors'!$C$371:$C$402,_xlfn.XLOOKUP(A33,'Emission Factors'!$A$409:$A$438,'Emission Factors'!$B$409:$B$438,"",0,1),0,1)) -> 
B34: =IF(A34="","",_xlfn.XLOOKUP(A34,'Emission Factors'!$A$371:$A$402, 'Emission Factors'!$C$371:$C$402,_xlfn.XLOOKUP(A34,'Emission Factors'!$A$409:$A$438,'Emission Factors'!$B$409:$B$438,"",0,1),0,1)) -> 
B35: =IF(A35="","",_xlfn.XLOOKUP(A35,'Emission Factors'!$A$371:$A$402, 'Emission Factors'!$C$371:$C$402,_xlfn.XLOOKUP(A35,'Emission Factors'!$A$409:$A$438,'Emission Factors'!$B$409:$B$438,"",0,1),0,1)) -> 
B36: =IF(A36="","",_xlfn.XLOOKUP(A36,'Emission Factors'!$A$371:$A$402, 'Emission Factors'!$C$371:$C$402,_xlfn.XLOOKUP(A36,'Emission Factors'!$A$409:$A$438,'Emission Factors'!$B$409:$B$438,"",0,1),0,1)) -> 
A38: Option 2. Material Balance Method (Simplified): Enter organization-wide total gases in units (by gas) in Table 2.
A39: - Choose the appropriate gas from the drop down menu.
A40: - New units are those installed during reporting period (do not include any data for new units pre-charged by
A41: supplier), disposed units were disposed of during the reporting period, and existing units are all others.
A42: - Charge/Recharge = gas added to units by organization or a contractor (do not include pre-charge by manufacturer).
A43: - Capacity = sum of the full capacity for all units (do not include new units pre-charged by manufacturer).
A44: - Amount recovered = total gas recovered from all retired units.
A46: Table 2. Organization-Wide Refrigeration Gas CO2 Equivalent Emissions - Simplified Material Balance
B47: Gas | C47: New Units | E47: Existing Units | F47: Disposed Units | H47: CO2 Equivalent
A48: Gas | B48: GWP | C48: Charge | D48: Capacity | E48: Recharge | F48: Capacity | G48: Recovered | H48: Emissions
C49: (kg) | D49: (kg) | E49: (kg) | F49: (kg) | G49: (kg) | H49: (kg)
B50: =IF(A50="","",_xlfn.XLOOKUP(A50,'Emission Factors'!$A$371:$A$402, 'Emission Factors'!$C$371:$C$402,_xlfn.XLOOKUP(A50,'Emission Factors'!$A$409:$A$438,'Emission Factors'!$B$409:$B$438,"",0,1),0,1)) ->  | H50: =IF(B50="","",IF(($C50-$D50+$E50+$F50-$G50)*$B50<0,0,($C50-$D50+$E50+$F50-$G50)*$B50)) -> 
B51: =IF(A51="","",_xlfn.XLOOKUP(A51,'Emission Factors'!$A$371:$A$402, 'Emission Factors'!$C$371:$C$402,_xlfn.XLOOKUP(A51,'Emission Factors'!$A$409:$A$438,'Emission Factors'!$B$409:$B$438,"",0,1),0,1)) ->  | H51: =IF(B51="","",IF(($C51-$D51+$E51+$F51-$G51)*$B51<0,0,($C51-$D51+$E51+$F51-$G51)*$B51)) -> 
B52: =IF(A52="","",_xlfn.XLOOKUP(A52,'Emission Factors'!$A$371:$A$402, 'Emission Factors'!$C$371:$C$402,_xlfn.XLOOKUP(A52,'Emission Factors'!$A$409:$A$438,'Emission Factors'!$B$409:$B$438,"",0,1),0,1)) -> 
B53: =IF(A53="","",_xlfn.XLOOKUP(A53,'Emission Factors'!$A$371:$A$402, 'Emission Factors'!$C$371:$C$402,_xlfn.XLOOKUP(A53,'Emission Factors'!$A$409:$A$438,'Emission Factors'!$B$409:$B$438,"",0,1),0,1)) -> 
B54: =IF(A54="","",_xlfn.XLOOKUP(A54,'Emission Factors'!$A$371:$A$402, 'Emission Factors'!$C$371:$C$402,_xlfn.XLOOKUP(A54,'Emission Factors'!$A$409:$A$438,'Emission Factors'!$B$409:$B$438,"",0,1),0,1)) -> 
B55: =IF(A55="","",_xlfn.XLOOKUP(A55,'Emission Factors'!$A$371:$A$402, 'Emission Factors'!$C$371:$C$402,_xlfn.XLOOKUP(A55,'Emission Factors'!$A$409:$A$438,'Emission Factors'!$B$409:$B$438,"",0,1),0,1)) -> 
B56: =IF(A56="","",_xlfn.XLOOKUP(A56,'Emission Factors'!$A$371:$A$402, 'Emission Factors'!$C$371:$C$402,_xlfn.XLOOKUP(A56,'Emission Factors'!$A$409:$A$438,'Emission Factors'!$B$409:$B$438,"",0,1),0,1)) -> 
B57: =IF(A57="","",_xlfn.XLOOKUP(A57,'Emission Factors'!$A$371:$A$402, 'Emission Factors'!$C$371:$C$402,_xlfn.XLOOKUP(A57,'Emission Factors'!$A$409:$A$438,'Emission Factors'!$B$409:$B$438,"",0,1),0,1)) -> 
B58: =IF(A58="","",_xlfn.XLOOKUP(A58,'Emission Factors'!$A$371:$A$402, 'Emission Factors'!$C$371:$C$402,_xlfn.XLOOKUP(A58,'Emission Factors'!$A$409:$A$438,'Emission Factors'!$B$409:$B$438,"",0,1),0,1)) -> 
B59: =IF(A59="","",_xlfn.XLOOKUP(A59,'Emission Factors'!$A$371:$A$402, 'Emission Factors'!$C$371:$C$402,_xlfn.XLOOKUP(A59,'Emission Factors'!$A$409:$A$438,'Emission Factors'!$B$409:$B$438,"",0,1),0,1)) -> 
B60: =IF(A60="","",_xlfn.XLOOKUP(A60,'Emission Factors'!$A$371:$A$402, 'Emission Factors'!$C$371:$C$402,_xlfn.XLOOKUP(A60,'Emission Factors'!$A$409:$A$438,'Emission Factors'!$B$409:$B$438,"",0,1),0,1)) -> 
A62: Option 3. Screening Method: Enter refrigerant information for each unit or group of units (by refrigerant) in Table 3.
A63: - Select the "Type of Equipment" (closest available) and "Gas" from the drop down box.
A64: - Enter amount of refrigerant added to new units by the organization (not pre-charged amount from manufacturer). This will be blank if no refrigerant is added to new units by the organization.
A65: - Enter the Number of Months in Operation - this is the number of months in the year the unit was operating (from 0-12). For example, if the equipment was installed at the beginning of July, enter 6.
A66: - Enter refrigerant capacity (by equipment type and refrigerant) for all units operating and disposed during reporting period.
A67: -- If data entered for multiple units, sum the capacities or charge quantity for all like units.
A68: -- If capacity of unit(s) is not known, use upper value of default capacity provided in the Reference Table below.
A69: -- If no units are disposed, Disposed Units will be blank
A70: - See example entry in first row (GREEN Italics).
A72: Table 3. Source Level Refrigeration Gas CO2 Equivalent Emissions - Screening Method
A73: Source ID | B73: Type of Equipment | C73: Gas | D73: Gas GWP | E73: New Units | F73: Number of Months | G73: Capacity | I73: CO2
E74: Charge | F74: in Operation | G74: Operating | H74: Disposed | I74: Equivalent
E75: (kg) | F75: in Reporting Year | G75: Units | H75: Units | I75: Emissions
G76: (kg) | H76: (kg) | I76: (kg)
A77: Bldg-012 | B77: Domestic Refrigeration | C77: HFC-32 | D77: =IF(C77="","",_xlfn.XLOOKUP(C77,'Emission Factors'!$A$371:$A$402, 'Emission Factors'!$C$371:$C$402,_xlfn.XLOOKUP(C77,'Emission Factors'!$A$409:$A$438,'Emission Factors'!$B$409:$B$438,"",0,1),0,1)) -> 677 | E77: 1000 | F77: 12 | G77: =0.5 -> 0.5 | H77: 0.25 | I77: =IF($D77="","",( ($E77*_xlfn.XLOOKUP(B77,$A$121:$A$131,$D$121:$D$131)+ (($G77*_xlfn.XLOOKUP(B77,$A$121:$A$131,$E$121:$E$131)*(F77/12))+ $H77*_xlfn.XLOOKUP(B77,$A$121:$A$131,$F$121:$F$131)*(1-_xlfn.XLOOKUP(B77,$A$121:$A$131,$G$121:G$131))) )*$D77)) -> 6812.3125
D78: =IF(C78="","",_xlfn.XLOOKUP(C78,'Emission Factors'!$A$371:$A$402, 'Emission Factors'!$C$371:$C$402,_xlfn.XLOOKUP(C78,'Emission Factors'!$A$409:$A$438,'Emission Factors'!$B$409:$B$438,"",0,1),0,1)) ->  | I78: =IF($D78="","",( ($E78*_xlfn.XLOOKUP(B78,$A$121:$A$131,$D$121:$D$131)+ (($G78*_xlfn.XLOOKUP(B78,$A$121:$A$131,$E$121:$E$131)*(F78/12))+ $H78*_xlfn.XLOOKUP(B78,$A$121:$A$131,$F$121:$F$131)*(1-_xlfn.XLOOKUP(B78,$A$121:$A$131,$G$121:G$131))) )*$D78)) -> 
D79: =IF(C79="","",_xlfn.XLOOKUP(C79,'Emission Factors'!$A$371:$A$402, 'Emission Factors'!$C$371:$C$402,_xlfn.XLOOKUP(C79,'Emission Factors'!$A$409:$A$438,'Emission Factors'!$B$409:$B$438,"",0,1),0,1)) ->  | I79: =IF($D79="","",( ($E79*_xlfn.XLOOKUP(B79,$A$121:$A$131,$D$121:$D$131)+ (($G79*_xlfn.XLOOKUP(B79,$A$121:$A$131,$E$121:$E$131)*(F79/12))+ $H79*_xlfn.XLOOKUP(B79,$A$121:$A$131,$F$121:$F$131)*(1-_xlfn.XLOOKUP(B79,$A$121:$A$131,$G$121:G$131))) )*$D79)) -> 
D80: =IF(C80="","",_xlfn.XLOOKUP(C80,'Emission Factors'!$A$371:$A$402, 'Emission Factors'!$C$371:$C$402,_xlfn.XLOOKUP(C80,'Emission Factors'!$A$409:$A$438,'Emission Factors'!$B$409:$B$438,"",0,1),0,1)) ->  | I80: =IF($D80="","",( ($E80*_xlfn.XLOOKUP(B80,$A$121:$A$131,$D$121:$D$131)+ (($G80*_xlfn.XLOOKUP(B80,$A$121:$A$131,$E$121:$E$131)*(F80/12))+ $H80*_xlfn.XLOOKUP(B80,$A$121:$A$131,$F$121:$F$131)*(1-_xlfn.XLOOKUP(B80,$A$121:$A$131,$G$121:G$131))) )*$D80)) -> 
D81: =IF(C81="","",_xlfn.XLOOKUP(C81,'Emission Factors'!$A$371:$A$402, 'Emission Factors'!$C$371:$C$402,_xlfn.XLOOKUP(C81,'Emission Factors'!$A$409:$A$438,'Emission Factors'!$B$409:$B$438,"",0,1),0,1)) ->  | I81: =IF($D81="","",( ($E81*_xlfn.XLOOKUP(B81,$A$121:$A$131,$D$121:$D$131)+ (($G81*_xlfn.XLOOKUP(B81,$A$121:$A$131,$E$121:$E$131)*(F81/12))+ $H81*_xlfn.XLOOKUP(B81,$A$121:$A$131,$F$121:$F$131)*(1-_xlfn.XLOOKUP(B81,$A$121:$A$131,$G$121:G$131))) )*$D81)) -> 
D82: =IF(C82="","",_xlfn.XLOOKUP(C82,'Emission Factors'!$A$371:$A$402, 'Emission Factors'!$C$371:$C$402,_xlfn.XLOOKUP(C82,'Emission Factors'!$A$409:$A$438,'Emission Factors'!$B$409:$B$438,"",0,1),0,1)) ->  | I82: =IF($D82="","",( ($E82*_xlfn.XLOOKUP(B82,$A$121:$A$131,$D$121:$D$131)+ (($G82*_xlfn.XLOOKUP(B82,$A$121:$A$131,$E$121:$E$131)*(F82/12))+ $H82*_xlfn.XLOOKUP(B82,$A$121:$A$131,$F$121:$F$131)*(1-_xlfn.XLOOKUP(B82,$A$121:$A$131,$G$121:G$131))) )*$D82)) -> 
D83: =IF(C83="","",_xlfn.XLOOKUP(C83,'Emission Factors'!$A$371:$A$402, 'Emission Factors'!$C$371:$C$402,_xlfn.XLOOKUP(C83,'Emission Factors'!$A$409:$A$438,'Emission Factors'!$B$409:$B$438,"",0,1),0,1)) ->  | I83: =IF($D83="","",( ($E83*_xlfn.XLOOKUP(B83,$A$121:$A$131,$D$121:$D$131)+ (($G83*_xlfn.XLOOKUP(B83,$A$121:$A$131,$E$121:$E$131)*(F83/12))+ $H83*_xlfn.XLOOKUP(B83,$A$121:$A$131,$F$121:$F$131)*(1-_xlfn.XLOOKUP(B83,$A$121:$A$131,$G$121:G$131))) )*$D83)) -> 
D84: =IF(C84="","",_xlfn.XLOOKUP(C84,'Emission Factors'!$A$371:$A$402, 'Emission Factors'!$C$371:$C$402,_xlfn.XLOOKUP(C84,'Emission Factors'!$A$409:$A$438,'Emission Factors'!$B$409:$B$438,"",0,1),0,1)) ->  | I84: =IF($D84="","",( ($E84*_xlfn.XLOOKUP(B84,$A$121:$A$131,$D$121:$D$131)+ (($G84*_xlfn.XLOOKUP(B84,$A$121:$A$131,$E$121:$E$131)*(F84/12))+ $H84*_xlfn.XLOOKUP(B84,$A$121:$A$131,$F$121:$F$131)*(1-_xlfn.XLOOKUP(B84,$A$121:$A$131,$G$121:G$131))) )*$D84)) -> 
D85: =IF(C85="","",_xlfn.XLOOKUP(C85,'Emission Factors'!$A$371:$A$402, 'Emission Factors'!$C$371:$C$402,_xlfn.XLOOKUP(C85,'Emission Factors'!$A$409:$A$438,'Emission Factors'!$B$409:$B$438,"",0,1),0,1)) ->  | I85: =IF($D85="","",( ($E85*_xlfn.XLOOKUP(B85,$A$121:$A$131,$D$121:$D$131)+ (($G85*_xlfn.XLOOKUP(B85,$A$121:$A$131,$E$121:$E$131)*(F85/12))+ $H85*_xlfn.XLOOKUP(B85,$A$121:$A$131,$F$121:$F$131)*(1-_xlfn.XLOOKUP(B85,$A$121:$A$131,$G$121:G$131))) )*$D85)) -> 
D86: =IF(C86="","",_xlfn.XLOOKUP(C86,'Emission Factors'!$A$371:$A$402, 'Emission Factors'!$C$371:$C$402,_xlfn.XLOOKUP(C86,'Emission Factors'!$A$409:$A$438,'Emission Factors'!$B$409:$B$438,"",0,1),0,1)) ->  | I86: =IF($D86="","",( ($E86*_xlfn.XLOOKUP(B86,$A$121:$A$131,$D$121:$D$131)+ (($G86*_xlfn.XLOOKUP(B86,$A$121:$A$131,$E$121:$E$131)*(F86/12))+ $H86*_xlfn.XLOOKUP(B86,$A$121:$A$131,$F$121:$F$131)*(1-_xlfn.XLOOKUP(B86,$A$121:$A$131,$G$121:G$131))) )*$D86)) -> 
D87: =IF(C87="","",_xlfn.XLOOKUP(C87,'Emission Factors'!$A$371:$A$402, 'Emission Factors'!$C$371:$C$402,_xlfn.XLOOKUP(C87,'Emission Factors'!$A$409:$A$438,'Emission Factors'!$B$409:$B$438,"",0,1),0,1)) ->  | I87: =IF($D87="","",( ($E87*_xlfn.XLOOKUP(B87,$A$121:$A$131,$D$121:$D$131)+ (($G87*_xlfn.XLOOKUP(B87,$A$121:$A$131,$E$121:$E$131)*(F87/12))+ $H87*_xlfn.XLOOKUP(B87,$A$121:$A$131,$F$121:$F$131)*(1-_xlfn.XLOOKUP(B87,$A$121:$A$131,$G$121:G$131))) )*$D87)) -> 
D88: =IF(C88="","",_xlfn.XLOOKUP(C88,'Emission Factors'!$A$371:$A$402, 'Emission Factors'!$C$371:$C$402,_xlfn.XLOOKUP(C88,'Emission Factors'!$A$409:$A$438,'Emission Factors'!$B$409:$B$438,"",0,1),0,1)) ->  | I88: =IF($D88="","",( ($E88*_xlfn.XLOOKUP(B88,$A$121:$A$131,$D$121:$D$131)+ (($G88*_xlfn.XLOOKUP(B88,$A$121:$A$131,$E$121:$E$131)*(F88/12))+ $H88*_xlfn.XLOOKUP(B88,$A$121:$A$131,$F$121:$F$131)*(1-_xlfn.XLOOKUP(B88,$A$121:$A$131,$G$121:G$131))) )*$D88)) -> 
D89: =IF(C89="","",_xlfn.XLOOKUP(C89,'Emission Factors'!$A$371:$A$402, 'Emission Factors'!$C$371:$C$402,_xlfn.XLOOKUP(C89,'Emission Factors'!$A$409:$A$438,'Emission Factors'!$B$409:$B$438,"",0,1),0,1)) ->  | I89: =IF($D89="","",( ($E89*_xlfn.XLOOKUP(B89,$A$121:$A$131,$D$121:$D$131)+ (($G89*_xlfn.XLOOKUP(B89,$A$121:$A$131,$E$121:$E$131)*(F89/12))+ $H89*_xlfn.XLOOKUP(B89,$A$121:$A$131,$F$121:$F$131)*(1-_xlfn.XLOOKUP(B89,$A$121:$A$131,$G$121:G$131))) )*$D89)) -> 
D90: =IF(C90="","",_xlfn.XLOOKUP(C90,'Emission Factors'!$A$371:$A$402, 'Emission Factors'!$C$371:$C$402,_xlfn.XLOOKUP(C90,'Emission Factors'!$A$409:$A$438,'Emission Factors'!$B$409:$B$438,"",0,1),0,1)) ->  | I90: =IF($D90="","",( ($E90*_xlfn.XLOOKUP(B90,$A$121:$A$131,$D$121:$D$131)+ (($G90*_xlfn.XLOOKUP(B90,$A$121:$A$131,$E$121:$E$131)*(F90/12))+ $H90*_xlfn.XLOOKUP(B90,$A$121:$A$131,$F$121:$F$131)*(1-_xlfn.XLOOKUP(B90,$A$121:$A$131,$G$121:G$131))) )*$D90)) -> 
D91: =IF(C91="","",_xlfn.XLOOKUP(C91,'Emission Factors'!$A$371:$A$402, 'Emission Factors'!$C$371:$C$402,_xlfn.XLOOKUP(C91,'Emission Factors'!$A$409:$A$438,'Emission Factors'!$B$409:$B$438,"",0,1),0,1)) ->  | I91: =IF($D91="","",( ($E91*_xlfn.XLOOKUP(B91,$A$121:$A$131,$D$121:$D$131)+ (($G91*_xlfn.XLOOKUP(B91,$A$121:$A$131,$E$121:$E$131)*(F91/12))+ $H91*_xlfn.XLOOKUP(B91,$A$121:$A$131,$F$121:$F$131)*(1-_xlfn.XLOOKUP(B91,$A$121:$A$131,$G$121:G$131))) )*$D91)) -> 
D92: =IF(C92="","",_xlfn.XLOOKUP(C92,'Emission Factors'!$A$371:$A$402, 'Emission Factors'!$C$371:$C$402,_xlfn.XLOOKUP(C92,'Emission Factors'!$A$409:$A$438,'Emission Factors'!$B$409:$B$438,"",0,1),0,1)) ->  | I92: =IF($D92="","",( ($E92*_xlfn.XLOOKUP(B92,$A$121:$A$131,$D$121:$D$131)+ (($G92*_xlfn.XLOOKUP(B92,$A$121:$A$131,$E$121:$E$131)*(F92/12))+ $H92*_xlfn.XLOOKUP(B92,$A$121:$A$131,$F$121:$F$131)*(1-_xlfn.XLOOKUP(B92,$A$121:$A$131,$G$121:G$131))) )*$D92)) -> 
D93: =IF(C93="","",_xlfn.XLOOKUP(C93,'Emission Factors'!$A$371:$A$402, 'Emission Factors'!$C$371:$C$402,_xlfn.XLOOKUP(C93,'Emission Factors'!$A$409:$A$438,'Emission Factors'!$B$409:$B$438,"",0,1),0,1)) ->  | I93: =IF($D93="","",( ($E93*_xlfn.XLOOKUP(B93,$A$121:$A$131,$D$121:$D$131)+ (($G93*_xlfn.XLOOKUP(B93,$A$121:$A$131,$E$121:$E$131)*(F93/12))+ $H93*_xlfn.XLOOKUP(B93,$A$121:$A$131,$F$121:$F$131)*(1-_xlfn.XLOOKUP(B93,$A$121:$A$131,$G$121:G$131))) )*$D93)) -> 
D94: =IF(C94="","",_xlfn.XLOOKUP(C94,'Emission Factors'!$A$371:$A$402, 'Emission Factors'!$C$371:$C$402,_xlfn.XLOOKUP(C94,'Emission Factors'!$A$409:$A$438,'Emission Factors'!$B$409:$B$438,"",0,1),0,1)) ->  | I94: =IF($D94="","",( ($E94*_xlfn.XLOOKUP(B94,$A$121:$A$131,$D$121:$D$131)+ (($G94*_xlfn.XLOOKUP(B94,$A$121:$A$131,$E$121:$E$131)*(F94/12))+ $H94*_xlfn.XLOOKUP(B94,$A$121:$A$131,$F$121:$F$131)*(1-_xlfn.XLOOKUP(B94,$A$121:$A$131,$G$121:G$131))) )*$D94)) -> 
D95: =IF(C95="","",_xlfn.XLOOKUP(C95,'Emission Factors'!$A$371:$A$402, 'Emission Factors'!$C$371:$C$402,_xlfn.XLOOKUP(C95,'Emission Factors'!$A$409:$A$438,'Emission Factors'!$B$409:$B$438,"",0,1),0,1)) ->  | I95: =IF($D95="","",( ($E95*_xlfn.XLOOKUP(B95,$A$121:$A$131,$D$121:$D$131)+ (($G95*_xlfn.XLOOKUP(B95,$A$121:$A$131,$E$121:$E$131)*(F95/12))+ $H95*_xlfn.XLOOKUP(B95,$A$121:$A$131,$F$121:$F$131)*(1-_xlfn.XLOOKUP(B95,$A$121:$A$131,$G$121:G$131))) )*$D95)) -> 
D96: =IF(C96="","",_xlfn.XLOOKUP(C96,'Emission Factors'!$A$371:$A$402, 'Emission Factors'!$C$371:$C$402,_xlfn.XLOOKUP(C96,'Emission Factors'!$A$409:$A$438,'Emission Factors'!$B$409:$B$438,"",0,1),0,1)) ->  | I96: =IF($D96="","",( ($E96*_xlfn.XLOOKUP(B96,$A$121:$A$131,$D$121:$D$131)+ (($G96*_xlfn.XLOOKUP(B96,$A$121:$A$131,$E$121:$E$131)*(F96/12))+ $H96*_xlfn.XLOOKUP(B96,$A$121:$A$131,$F$121:$F$131)*(1-_xlfn.XLOOKUP(B96,$A$121:$A$131,$G$121:G$131))) )*$D96)) -> 
D97: =IF(C97="","",_xlfn.XLOOKUP(C97,'Emission Factors'!$A$371:$A$402, 'Emission Factors'!$C$371:$C$402,_xlfn.XLOOKUP(C97,'Emission Factors'!$A$409:$A$438,'Emission Factors'!$B$409:$B$438,"",0,1),0,1)) ->  | I97: =IF($D97="","",( ($E97*_xlfn.XLOOKUP(B97,$A$121:$A$131,$D$121:$D$131)+ (($G97*_xlfn.XLOOKUP(B97,$A$121:$A$131,$E$121:$E$131)*(F97/12))+ $H97*_xlfn.XLOOKUP(B97,$A$121:$A$131,$F$121:$F$131)*(1-_xlfn.XLOOKUP(B97,$A$121:$A$131,$G$121:G$131))) )*$D97)) -> 
D98: =IF(C98="","",_xlfn.XLOOKUP(C98,'Emission Factors'!$A$371:$A$402, 'Emission Factors'!$C$371:$C$402,_xlfn.XLOOKUP(C98,'Emission Factors'!$A$409:$A$438,'Emission Factors'!$B$409:$B$438,"",0,1),0,1)) ->  | I98: =IF($D98="","",( ($E98*_xlfn.XLOOKUP(B98,$A$121:$A$131,$D$121:$D$131)+ (($G98*_xlfn.XLOOKUP(B98,$A$121:$A$131,$E$121:$E$131)*(F98/12))+ $H98*_xlfn.XLOOKUP(B98,$A$121:$A$131,$F$121:$F$131)*(1-_xlfn.XLOOKUP(B98,$A$121:$A$131,$G$121:G$131))) )*$D98)) -> 
D99: =IF(C99="","",_xlfn.XLOOKUP(C99,'Emission Factors'!$A$371:$A$402, 'Emission Factors'!$C$371:$C$402,_xlfn.XLOOKUP(C99,'Emission Factors'!$A$409:$A$438,'Emission Factors'!$B$409:$B$438,"",0,1),0,1)) ->  | I99: =IF($D99="","",( ($E99*_xlfn.XLOOKUP(B99,$A$121:$A$131,$D$121:$D$131)+ (($G99*_xlfn.XLOOKUP(B99,$A$121:$A$131,$E$121:$E$131)*(F99/12))+ $H99*_xlfn.XLOOKUP(B99,$A$121:$A$131,$F$121:$F$131)*(1-_xlfn.XLOOKUP(B99,$A$121:$A$131,$G$121:G$131))) )*$D99)) -> 
D100: =IF(C100="","",_xlfn.XLOOKUP(C100,'Emission Factors'!$A$371:$A$402, 'Emission Factors'!$C$371:$C$402,_xlfn.XLOOKUP(C100,'Emission Factors'!$A$409:$A$438,'Emission Factors'!$B$409:$B$438,"",0,1),0,1)) ->  | I100: =IF($D100="","",( ($E100*_xlfn.XLOOKUP(B100,$A$121:$A$131,$D$121:$D$131)+ (($G100*_xlfn.XLOOKUP(B100,$A$121:$A$131,$E$121:$E$131)*(F100/12))+ $H100*_xlfn.XLOOKUP(B100,$A$121:$A$131,$F$121:$F$131)*(1-_xlfn.XLOOKUP(B100,$A$121:$A$131,$G$121:G$131))) )*$D100)) -> 
D101: =IF(C101="","",_xlfn.XLOOKUP(C101,'Emission Factors'!$A$371:$A$402, 'Emission Factors'!$C$371:$C$402,_xlfn.XLOOKUP(C101,'Emission Factors'!$A$409:$A$438,'Emission Factors'!$B$409:$B$438,"",0,1),0,1)) ->  | I101: =IF($D101="","",( ($E101*_xlfn.XLOOKUP(B101,$A$121:$A$131,$D$121:$D$131)+ (($G101*_xlfn.XLOOKUP(B101,$A$121:$A$131,$E$121:$E$131)*(F101/12))+ $H101*_xlfn.XLOOKUP(B101,$A$121:$A$131,$F$121:$F$131)*(1-_xlfn.XLOOKUP(B101,$A$121:$A$131,$G$121:G$131))) )*$D101)) -> 
D102: =IF(C102="","",_xlfn.XLOOKUP(C102,'Emission Factors'!$A$371:$A$402, 'Emission Factors'!$C$371:$C$402,_xlfn.XLOOKUP(C102,'Emission Factors'!$A$409:$A$438,'Emission Factors'!$B$409:$B$438,"",0,1),0,1)) ->  | I102: =IF($D102="","",( ($E102*_xlfn.XLOOKUP(B102,$A$121:$A$131,$D$121:$D$131)+ (($G102*_xlfn.XLOOKUP(B102,$A$121:$A$131,$E$121:$E$131)*(F102/12))+ $H102*_xlfn.XLOOKUP(B102,$A$121:$A$131,$F$121:$F$131)*(1-_xlfn.XLOOKUP(B102,$A$121:$A$131,$G$121:G$131))) )*$D102)) -> 
D103: =IF(C103="","",_xlfn.XLOOKUP(C103,'Emission Factors'!$A$371:$A$402, 'Emission Factors'!$C$371:$C$402,_xlfn.XLOOKUP(C103,'Emission Factors'!$A$409:$A$438,'Emission Factors'!$B$409:$B$438,"",0,1),0,1)) ->  | I103: =IF($D103="","",( ($E103*_xlfn.XLOOKUP(B103,$A$121:$A$131,$D$121:$D$131)+ (($G103*_xlfn.XLOOKUP(B103,$A$121:$A$131,$E$121:$E$131)*(F103/12))+ $H103*_xlfn.XLOOKUP(B103,$A$121:$A$131,$F$121:$F$131)*(1-_xlfn.XLOOKUP(B103,$A$121:$A$131,$G$121:G$131))) )*$D103)) -> 
D104: =IF(C104="","",_xlfn.XLOOKUP(C104,'Emission Factors'!$A$371:$A$402, 'Emission Factors'!$C$371:$C$402,_xlfn.XLOOKUP(C104,'Emission Factors'!$A$409:$A$438,'Emission Factors'!$B$409:$B$438,"",0,1),0,1)) ->  | I104: =IF($D104="","",( ($E104*_xlfn.XLOOKUP(B104,$A$121:$A$131,$D$121:$D$131)+ (($G104*_xlfn.XLOOKUP(B104,$A$121:$A$131,$E$121:$E$131)*(F104/12))+ $H104*_xlfn.XLOOKUP(B104,$A$121:$A$131,$F$121:$F$131)*(1-_xlfn.XLOOKUP(B104,$A$121:$A$131,$G$121:G$131))) )*$D104)) -> 
D105: =IF(C105="","",_xlfn.XLOOKUP(C105,'Emission Factors'!$A$371:$A$402, 'Emission Factors'!$C$371:$C$402,_xlfn.XLOOKUP(C105,'Emission Factors'!$A$409:$A$438,'Emission Factors'!$B$409:$B$438,"",0,1),0,1)) ->  | I105: =IF($D105="","",( ($E105*_xlfn.XLOOKUP(B105,$A$121:$A$131,$D$121:$D$131)+ (($G105*_xlfn.XLOOKUP(B105,$A$121:$A$131,$E$121:$E$131)*(F105/12))+ $H105*_xlfn.XLOOKUP(B105,$A$121:$A$131,$F$121:$F$131)*(1-_xlfn.XLOOKUP(B105,$A$121:$A$131,$G$121:G$131))) )*$D105)) -> 
D106: =IF(C106="","",_xlfn.XLOOKUP(C106,'Emission Factors'!$A$371:$A$402, 'Emission Factors'!$C$371:$C$402,_xlfn.XLOOKUP(C106,'Emission Factors'!$A$409:$A$438,'Emission Factors'!$B$409:$B$438,"",0,1),0,1)) ->  | I106: =IF($D106="","",( ($E106*_xlfn.XLOOKUP(B106,$A$121:$A$131,$D$121:$D$131)+ (($G106*_xlfn.XLOOKUP(B106,$A$121:$A$131,$E$121:$E$131)*(F106/12))+ $H106*_xlfn.XLOOKUP(B106,$A$121:$A$131,$F$121:$F$131)*(1-_xlfn.XLOOKUP(B106,$A$121:$A$131,$G$121:G$131))) )*$D106)) -> 
D107: =IF(C107="","",_xlfn.XLOOKUP(C107,'Emission Factors'!$A$371:$A$402, 'Emission Factors'!$C$371:$C$402,_xlfn.XLOOKUP(C107,'Emission Factors'!$A$409:$A$438,'Emission Factors'!$B$409:$B$438,"",0,1),0,1)) ->  | I107: =IF($D107="","",( ($E107*_xlfn.XLOOKUP(B107,$A$121:$A$131,$D$121:$D$131)+ (($G107*_xlfn.XLOOKUP(B107,$A$121:$A$131,$E$121:$E$131)*(F107/12))+ $H107*_xlfn.XLOOKUP(B107,$A$121:$A$131,$F$121:$F$131)*(1-_xlfn.XLOOKUP(B107,$A$121:$A$131,$G$121:G$131))) )*$D107)) -> 
D108: =IF(C108="","",_xlfn.XLOOKUP(C108,'Emission Factors'!$A$371:$A$402, 'Emission Factors'!$C$371:$C$402,_xlfn.XLOOKUP(C108,'Emission Factors'!$A$409:$A$438,'Emission Factors'!$B$409:$B$438,"",0,1),0,1)) ->  | I108: =IF($D108="","",( ($E108*_xlfn.XLOOKUP(B108,$A$121:$A$131,$D$121:$D$131)+ (($G108*_xlfn.XLOOKUP(B108,$A$121:$A$131,$E$121:$E$131)*(F108/12))+ $H108*_xlfn.XLOOKUP(B108,$A$121:$A$131,$F$121:$F$131)*(1-_xlfn.XLOOKUP(B108,$A$121:$A$131,$G$121:G$131))) )*$D108)) -> 
D109: =IF(C109="","",_xlfn.XLOOKUP(C109,'Emission Factors'!$A$371:$A$402, 'Emission Factors'!$C$371:$C$402,_xlfn.XLOOKUP(C109,'Emission Factors'!$A$409:$A$438,'Emission Factors'!$B$409:$B$438,"",0,1),0,1)) ->  | I109: =IF($D109="","",( ($E109*_xlfn.XLOOKUP(B109,$A$121:$A$131,$D$121:$D$131)+ (($G109*_xlfn.XLOOKUP(B109,$A$121:$A$131,$E$121:$E$131)*(F109/12))+ $H109*_xlfn.XLOOKUP(B109,$A$121:$A$131,$F$121:$F$131)*(1-_xlfn.XLOOKUP(B109,$A$121:$A$131,$G$121:G$131))) )*$D109)) -> 
D110: =IF(C110="","",_xlfn.XLOOKUP(C110,'Emission Factors'!$A$371:$A$402, 'Emission Factors'!$C$371:$C$402,_xlfn.XLOOKUP(C110,'Emission Factors'!$A$409:$A$438,'Emission Factors'!$B$409:$B$438,"",0,1),0,1)) ->  | I110: =IF($D110="","",( ($E110*_xlfn.XLOOKUP(B110,$A$121:$A$131,$D$121:$D$131)+ (($G110*_xlfn.XLOOKUP(B110,$A$121:$A$131,$E$121:$E$131)*(F110/12))+ $H110*_xlfn.XLOOKUP(B110,$A$121:$A$131,$F$121:$F$131)*(1-_xlfn.XLOOKUP(B110,$A$121:$A$131,$G$121:G$131))) )*$D110)) -> 
D111: =IF(C111="","",_xlfn.XLOOKUP(C111,'Emission Factors'!$A$371:$A$402, 'Emission Factors'!$C$371:$C$402,_xlfn.XLOOKUP(C111,'Emission Factors'!$A$409:$A$438,'Emission Factors'!$B$409:$B$438,"",0,1),0,1)) ->  | I111: =IF($D111="","",( ($E111*_xlfn.XLOOKUP(B111,$A$121:$A$131,$D$121:$D$131)+ (($G111*_xlfn.XLOOKUP(B111,$A$121:$A$131,$E$121:$E$131)*(F111/12))+ $H111*_xlfn.XLOOKUP(B111,$A$121:$A$131,$F$121:$F$131)*(1-_xlfn.XLOOKUP(B111,$A$121:$A$131,$G$121:G$131))) )*$D111)) -> 
D112: =IF(C112="","",_xlfn.XLOOKUP(C112,'Emission Factors'!$A$371:$A$402, 'Emission Factors'!$C$371:$C$402,_xlfn.XLOOKUP(C112,'Emission Factors'!$A$409:$A$438,'Emission Factors'!$B$409:$B$438,"",0,1),0,1)) ->  | I112: =IF($D112="","",( ($E112*_xlfn.XLOOKUP(B112,$A$121:$A$131,$D$121:$D$131)+ (($G112*_xlfn.XLOOKUP(B112,$A$121:$A$131,$E$121:$E$131)*(F112/12))+ $H112*_xlfn.XLOOKUP(B112,$A$121:$A$131,$F$121:$F$131)*(1-_xlfn.XLOOKUP(B112,$A$121:$A$131,$G$121:G$131))) )*$D112)) -> 
D113: =IF(C113="","",_xlfn.XLOOKUP(C113,'Emission Factors'!$A$371:$A$402, 'Emission Factors'!$C$371:$C$402,_xlfn.XLOOKUP(C113,'Emission Factors'!$A$409:$A$438,'Emission Factors'!$B$409:$B$438,"",0,1),0,1)) ->  | I113: =IF($D113="","",( ($E113*_xlfn.XLOOKUP(B113,$A$121:$A$131,$D$121:$D$131)+ (($G113*_xlfn.XLOOKUP(B113,$A$121:$A$131,$E$121:$E$131)*(F113/12))+ $H113*_xlfn.XLOOKUP(B113,$A$121:$A$131,$F$121:$F$131)*(1-_xlfn.XLOOKUP(B113,$A$121:$A$131,$G$121:G$131))) )*$D113)) -> 
D114: =IF(C114="","",_xlfn.XLOOKUP(C114,'Emission Factors'!$A$371:$A$402, 'Emission Factors'!$C$371:$C$402,_xlfn.XLOOKUP(C114,'Emission Factors'!$A$409:$A$438,'Emission Factors'!$B$409:$B$438,"",0,1),0,1)) ->  | I114: =IF($D114="","",( ($E114*_xlfn.XLOOKUP(B114,$A$121:$A$131,$D$121:$D$131)+ (($G114*_xlfn.XLOOKUP(B114,$A$121:$A$131,$E$121:$E$131)*(F114/12))+ $H114*_xlfn.XLOOKUP(B114,$A$121:$A$131,$F$121:$F$131)*(1-_xlfn.XLOOKUP(B114,$A$121:$A$131,$G$121:G$131))) )*$D114)) -> 
D115: =IF(C115="","",_xlfn.XLOOKUP(C115,'Emission Factors'!$A$371:$A$402, 'Emission Factors'!$C$371:$C$402,_xlfn.XLOOKUP(C115,'Emission Factors'!$A$409:$A$438,'Emission Factors'!$B$409:$B$438,"",0,1),0,1)) ->  | I115: =IF($D115="","",( ($E115*_xlfn.XLOOKUP(B115,$A$121:$A$131,$D$121:$D$131)+ (($G115*_xlfn.XLOOKUP(B115,$A$121:$A$131,$E$121:$E$131)*(F115/12))+ $H115*_xlfn.XLOOKUP(B115,$A$121:$A$131,$F$121:$F$131)*(1-_xlfn.XLOOKUP(B115,$A$121:$A$131,$G$121:G$131))) )*$D115)) -> 
A117: Reference Table: Type of Equipment and Default Capacity Ranges (Lower to Upper Range) for Table 3
A118: Type of Equipment | B118: Equipment Description | C118: Capacity | D118: Installation Emission Factor | E118: Operating Emissions | F118: Refrigerant Remaining at Disposal | G118: Recovery Efficiency
C119: (kg) | D119: K | E119: X | F119: Y | G119: Z
D120: % of Capacity | E120: % of Capacity/yr | F120: % of Capacity | G120: % of Remaining
A121: Domestic Refrigeration | B121: Domestic refrigeration units | C121: 0.05–0.5 | D121: 0.01 | E121: 0.005 | F121: 0.8 | G121: 0.7
A122: Stand-Alone Commercial | B122: Stand alone commercial applications | C122: 0.2–6 | D122: 0.03 | E122: 0.15 | F122: 0.8 | G122: 0.7
A123: Medium/Large Commercial | B123: Medium and large commercial refrigeration units | C123: 50–2,000 | D123: 0.03 | E123: 0.35 | F123: 1 | G123: 0.7
A124: Transport Refrigeration | B124: Transportation refrigeration units | C124: 3–8 | D124: 0.01 | E124: 0.5 | F124: 0.5 | G124: 0.7
A125: Industrial Refrigeration | B125: Industrial, food processing and cold storage units | C125: 10–10,000 | D125: 0.03 | E125: 0.25 | F125: 1 | G125: 0.9
A126: Chillers | B126: Commercial chillers | C126: 10–2,000 | D126: 0.01 | E126: 0.15 | F126: 1 | G126: 0.95
A127: Residential/Commercial A/C | B127: Residential and commercial units, including heat pumps | C127: 0.5-100 | D127: 0.01 | E127: 0.1 | F127: 0.8 | G127: 0.8
A128: Maritime A/C Units | B128: Maritime A/C units | C128: 5-6,500 | D128: 0.005 | E128: 0.4 | F128: 0.5 | G128: 0.5
A129: Railway A/C Units | B129: Railway A/C Units | C129: 10-30 | D129: 0.005 | E129: 0.2 | F129: 0.5 | G129: 0.5
A130: Buses A/C Units | B130: Buses A/C Units | C130: 4-18 | D130: 0.005 | E130: 0.2 | F130: 0.5 | G130: 0.5
A131: Other Mobile A/C Units | B131: All other mobile A/C units | C131: 0.5-2 | D131: 0.005 | E131: 0.2 | F131: 0.5 | G131: 0.5
A132: Source: Screening Method of the inventory guidance document Direct Fugitive Emissions from Refrigeration, Air Conditioning, Fire Suppression, and Industrial Gases
A133: https://www.epa.gov/climateleadership/scope-1-and-scope-2-inventory-guidance
A135: GHG Emissions
A137: Total CO2 Equivalent Emissions (metric tons) - Refrigeration and AC Equipment
F138: =(SUM($F$26:$F$36,$H$50:$H$60,$I$78:$I$115))/1000 -> 0
A140: Notes:
A141: 1. CO2 emissions estimated using emission factors provided in Table 3 of the Center for Corporate Climate Leadership Greenhouse Gas Inventory Guidance
A142: Direct Fugitive Emissions from Refrigeration, Air Conditioning, Fire Suppression and Industrial Gases. (Dec 2020).
A143: 2. GWP values are from Intergovernmental Panel on Climate Change (IPCC) Fifth Assessment Report (2011).

Sheet Fire Suppression
A3: Scope 1 Emissions from Fire Suppression Equipment
A5: Guidance
A6: (A) HFC, PFC, and CO2 fire suppressants are required to be included in the GHG inventory. Other fire suppressants such as Halon compounds, HCFCs, aqueous solutions, or inert gases are typically excluded from a GHG inventory.
A7: (B) Select ONE of the three options from which to estimate emissions. Options range from most preferred method
A8: (Option 1) to least preferred method (Option 3). If option 3, screening method, is used and emissions are determined
A9: to be significant when compared to other emission sources, then one of the other methods should be applied to calculate
A10: emissions more accurately.
A11: (C) Enter annual data in ORANGE cells as appropriate for the selected option.
A13: Option 1. Material Balance Method: Enter organization-wide fire suppression gases stored and transferred (by gas) in Table 1.
A14: - Inventory Change = difference of gas stored in inventory from beginning to end of reporting period.
A15: (Includes only gas stored on-site (i.e. cylinders) and not gas contained within equipment).
A16: - Transferred Amount = gas purchased minus gas sold/disposed during reporting period.
A17: -- Gas purchased includes: Purchases for inventory, as part of equipment servicing (not from inventory)
A18: within purchased equipment and gas returned to the site after off-site recycling.
A19: -- Gas sold/disposed includes: Returns to supplier, sales or disposals (including within equipment),
A20: and gas sent off-site for recycling, reclamation, or destruction.
A21: - Capacity Change = capacity of all units at beginning minus capacity of all units at end of reporting period.
A22: (can be assumed to be capacity of retired units minus capacity of new units).
A24: Table 1. Organization-Wide Fire Suppression Gas CO2 Equivalent Emissions - Material Balance
B25: Gas | C25: Inventory | D25: Transferred | E25: Capacity | F25: CO2 Equivalent
A26: Gas | B26: GWP | C26: Change | D26: Amount | E26: Change | F26: Emissions
C27: (lb) | D27: (lb) | E27: (lb) | F27: (lb)
A28: Carbon dioxide | B28: =IF(A28="","",_xlfn.XLOOKUP(A28,'Emission Factors'!$A$371:$A$402, 'Emission Factors'!$C$371:$C$402,_xlfn.XLOOKUP(A28,'Emission Factors'!$A$409:$A$438,'Emission Factors'!$B$409:$B$438,"",0,1),0,1)) -> 1 | F28: =IF(($C28+$D28+$E28)*$B28=0,"",($C28+$D28+$E28)*$B28) -> 
A29: HFC-23 | B29: =IF(A29="","",_xlfn.XLOOKUP(A29,'Emission Factors'!$A$371:$A$402, 'Emission Factors'!$C$371:$C$402,_xlfn.XLOOKUP(A29,'Emission Factors'!$A$409:$A$438,'Emission Factors'!$B$409:$B$438,"",0,1),0,1)) -> 12400 | F29: =IF(($C29+$D29+$E29)*$B29=0,"",($C29+$D29+$E29)*$B29) -> 
A30: HFC-125 | B30: =IF(A30="","",_xlfn.XLOOKUP(A30,'Emission Factors'!$A$371:$A$402, 'Emission Factors'!$C$371:$C$402,_xlfn.XLOOKUP(A30,'Emission Factors'!$A$409:$A$438,'Emission Factors'!$B$409:$B$438,"",0,1),0,1)) -> 3170
A31: HFC-134a | B31: =IF(A31="","",_xlfn.XLOOKUP(A31,'Emission Factors'!$A$371:$A$402, 'Emission Factors'!$C$371:$C$402,_xlfn.XLOOKUP(A31,'Emission Factors'!$A$409:$A$438,'Emission Factors'!$B$409:$B$438,"",0,1),0,1)) -> 1300
A32: HFC-227ea | B32: =IF(A32="","",_xlfn.XLOOKUP(A32,'Emission Factors'!$A$371:$A$402, 'Emission Factors'!$C$371:$C$402,_xlfn.XLOOKUP(A32,'Emission Factors'!$A$409:$A$438,'Emission Factors'!$B$409:$B$438,"",0,1),0,1)) -> 3350
A33: HFC-236fa | B33: =IF(A33="","",_xlfn.XLOOKUP(A33,'Emission Factors'!$A$371:$A$402, 'Emission Factors'!$C$371:$C$402,_xlfn.XLOOKUP(A33,'Emission Factors'!$A$409:$A$438,'Emission Factors'!$B$409:$B$438,"",0,1),0,1)) -> 8060
A34: PFC-14 | B34: =IF(A34="","",_xlfn.XLOOKUP(A34,'Emission Factors'!$A$371:$A$402, 'Emission Factors'!$C$371:$C$402,_xlfn.XLOOKUP(A34,'Emission Factors'!$A$409:$A$438,'Emission Factors'!$B$409:$B$438,"",0,1),0,1)) -> 6630
A35: PFC-31-10 | B35: =IF(A35="","",_xlfn.XLOOKUP(A35,'Emission Factors'!$A$371:$A$402, 'Emission Factors'!$C$371:$C$402,_xlfn.XLOOKUP(A35,'Emission Factors'!$A$409:$A$438,'Emission Factors'!$B$409:$B$438,"",0,1),0,1)) -> 9200
A37: Option 2. Material Balance Method (Simplified): Enter organization-wide fire suppression gas in units (by gas) in Table 2.
A38: - New units are those installed during reporting period (do not include any data for new units pre-charged by
A39: supplier), disposed units were disposed of during the reporting period, and existing units are all others.
A40: - Charge/Recharge = gas added to units by organization or a contractor (do not include pre-charge by manufacturer).
A41: - Capacity = sum of the full capacity for all units (do not include new units pre-charged by manufacturer).
A42: - Amount recovered = total gas recovered from all retired units.
A44: Table 2. Organization-Wide Fire Suppression Gas CO2 Equivalent Emissions - Simplified Material Balance
B45: Gas | C45: New Units | E45: Existing Units | F45: Disposed Units | H45: CO2 Equivalent
A46: Gas | B46: GWP | C46: Charge | D46: Capacity | E46: Recharge | F46: Capacity | G46: Recovered | H46: Emissions
C47: (lb) | D47: (lb) | E47: (lb) | F47: (lb) | G47: (lb) | H47: (lb)
A48: Carbon dioxide | B48: =IF(A48="","",_xlfn.XLOOKUP(A48,'Emission Factors'!$A$371:$A$402, 'Emission Factors'!$C$371:$C$402,_xlfn.XLOOKUP(A48,'Emission Factors'!$A$409:$A$438,'Emission Factors'!$B$409:$B$438,"",0,1),0,1)) -> 1 | H48: =IF(($C48-$D48+$E48+$F48-$G48)*$B48=0,"",($C48-$D48+$E48+$F48-$G48)*$B48) -> 
A49: HFC-23 | B49: =IF(A49="","",_xlfn.XLOOKUP(A49,'Emission Factors'!$A$371:$A$402, 'Emission Factors'!$C$371:$C$402,_xlfn.XLOOKUP(A49,'Emission Factors'!$A$409:$A$438,'Emission Factors'!$B$409:$B$438,"",0,1),0,1)) -> 12400 | H49: =IF(($C49-$D49+$E49+$F49-$G49)*$B49=0,"",($C49-$D49+$E49+$F49-$G49)*$B49) -> 
A50: HFC-125 | B50: =IF(A50="","",_xlfn.XLOOKUP(A50,'Emission Factors'!$A$371:$A$402, 'Emission Factors'!$C$371:$C$402,_xlfn.XLOOKUP(A50,'Emission Factors'!$A$409:$A$438,'Emission Factors'!$B$409:$B$438,"",0,1),0,1)) -> 3170
A51: HFC-134a | B51: =IF(A51="","",_xlfn.XLOOKUP(A51,'Emission Factors'!$A$371:$A$402, 'Emission Factors'!$C$371:$C$402,_xlfn.XLOOKUP(A51,'Emission Factors'!$A$409:$A$438,'Emission Factors'!$B$409:$B$438,"",0,1),0,1)) -> 1300
A52: HFC-227ea | B52: =IF(A52="","",_xlfn.XLOOKUP(A52,'Emission Factors'!$A$371:$A$402, 'Emission Factors'!$C$371:$C$402,_xlfn.XLOOKUP(A52,'Emission Factors'!$A$409:$A$438,'Emission Factors'!$B$409:$B$438,"",0,1),0,1)) -> 3350
A53: HFC-236fa | B53: =IF(A53="","",_xlfn.XLOOKUP(A53,'Emission Factors'!$A$371:$A$402, 'Emission Factors'!$C$371:$C$402,_xlfn.XLOOKUP(A53,'Emission Factors'!$A$409:$A$438,'Emission Factors'!$B$409:$B$438,"",0,1),0,1)) -> 8060
A54: PFC-14 | B54: =IF(A54="","",_xlfn.XLOOKUP(A54,'Emission Factors'!$A$371:$A$402, 'Emission Factors'!$C$371:$C$402,_xlfn.XLOOKUP(A54,'Emission Factors'!$A$409:$A$438,'Emission Factors'!$B$409:$B$438,"",0,1),0,1)) -> 6630
A55: PFC-31-10 | B55: =IF(A55="","",_xlfn.XLOOKUP(A55,'Emission Factors'!$A$371:$A$402, 'Emission Factors'!$C$371:$C$402,_xlfn.XLOOKUP(A55,'Emission Factors'!$A$409:$A$438,'Emission Factors'!$B$409:$B$438,"",0,1),0,1)) -> 9200
A57: Option 3. Screening Method: Enter fire suppression gas information for each unit or group of units (by gas) in Table 3.
A58: - Enter "Type of Equipment" (Fixed or Portable) and select "Gas Type" from the drop down box.
A59: - Enter capacity (by gas type) for all units that operated during reporting period.
A60: -- For each unit added or removed during reporting period, multiply its capacity by a usage factor (0.0 to 1.0).
A61: -- If data entered for multiple units, sum the capacities for all units.
A62: - See example entry in first row (Green Italics).
A64: Table 3. Source Level Fire Suppression Gas CO2 Equivalent Emissions - Screening Method
A65: Source | B65: Type of | C65: Gas | D65: Gas | E65: Unit | F65: CO2 Equivalent
A66: ID | B66: Equipment | C66: Type | D66: GWP | E66: Capacity | F66: Emissions
B67: (Fixed/Portable) | E67: (lb) | F67: (lb)
A68: Bldg-012 | B68: Fixed | C68: HFC-134a | D68: =IF(C68="","",_xlfn.XLOOKUP(C68,'Emission Factors'!$A$371:$A$402, 'Emission Factors'!$C$371:$C$402,_xlfn.XLOOKUP(C68,'Emission Factors'!$A$409:$A$438,'Emission Factors'!$B$409:$B$438,"",0,1),0,1)) -> 1300 | E68: 1.5 | F68: =IF($B68="Fixed",$D68*Fixed_FireLeakRate*$E68,IF($B68="Portable",$D68*Portable_FireLeakRate*$E68,"")) -> 68.25
D69: =IF(C69="","",_xlfn.XLOOKUP(C69,'Emission Factors'!$A$371:$A$402, 'Emission Factors'!$C$371:$C$402,_xlfn.XLOOKUP(C69,'Emission Factors'!$A$409:$A$438,'Emission Factors'!$B$409:$B$438,"",0,1),0,1)) ->  | F69: =IF($B69="Fixed",$D69*Fixed_FireLeakRate*$E69,IF($B69="Portable",$D69*Portable_FireLeakRate*$E69,"")) -> 
D70: =IF(C70="","",_xlfn.XLOOKUP(C70,'Emission Factors'!$A$371:$A$402, 'Emission Factors'!$C$371:$C$402,_xlfn.XLOOKUP(C70,'Emission Factors'!$A$409:$A$438,'Emission Factors'!$B$409:$B$438,"",0,1),0,1)) -> 
D71: =IF(C71="","",_xlfn.XLOOKUP(C71,'Emission Factors'!$A$371:$A$402, 'Emission Factors'!$C$371:$C$402,_xlfn.XLOOKUP(C71,'Emission Factors'!$A$409:$A$438,'Emission Factors'!$B$409:$B$438,"",0,1),0,1)) -> 
D72: =IF(C72="","",_xlfn.XLOOKUP(C72,'Emission Factors'!$A$371:$A$402, 'Emission Factors'!$C$371:$C$402,_xlfn.XLOOKUP(C72,'Emission Factors'!$A$409:$A$438,'Emission Factors'!$B$409:$B$438,"",0,1),0,1)) -> 
D73: =IF(C73="","",_xlfn.XLOOKUP(C73,'Emission Factors'!$A$371:$A$402, 'Emission Factors'!$C$371:$C$402,_xlfn.XLOOKUP(C73,'Emission Factors'!$A$409:$A$438,'Emission Factors'!$B$409:$B$438,"",0,1),0,1)) -> 
D74: =IF(C74="","",_xlfn.XLOOKUP(C74,'Emission Factors'!$A$371:$A$402, 'Emission Factors'!$C$371:$C$402,_xlfn.XLOOKUP(C74,'Emission Factors'!$A$409:$A$438,'Emission Factors'!$B$409:$B$438,"",0,1),0,1)) -> 
D75: =IF(C75="","",_xlfn.XLOOKUP(C75,'Emission Factors'!$A$371:$A$402, 'Emission Factors'!$C$371:$C$402,_xlfn.XLOOKUP(C75,'Emission Factors'!$A$409:$A$438,'Emission Factors'!$B$409:$B$438,"",0,1),0,1)) -> 
D76: =IF(C76="","",_xlfn.XLOOKUP(C76,'Emission Factors'!$A$371:$A$402, 'Emission Factors'!$C$371:$C$402,_xlfn.XLOOKUP(C76,'Emission Factors'!$A$409:$A$438,'Emission Factors'!$B$409:$B$438,"",0,1),0,1)) -> 
D77: =IF(C77="","",_xlfn.XLOOKUP(C77,'Emission Factors'!$A$371:$A$402, 'Emission Factors'!$C$371:$C$402,_xlfn.XLOOKUP(C77,'Emission Factors'!$A$409:$A$438,'Emission Factors'!$B$409:$B$438,"",0,1),0,1)) -> 
D78: =IF(C78="","",_xlfn.XLOOKUP(C78,'Emission Factors'!$A$371:$A$402, 'Emission Factors'!$C$371:$C$402,_xlfn.XLOOKUP(C78,'Emission Factors'!$A$409:$A$438,'Emission Factors'!$B$409:$B$438,"",0,1),0,1)) -> 
D79: =IF(C79="","",_xlfn.XLOOKUP(C79,'Emission Factors'!$A$371:$A$402, 'Emission Factors'!$C$371:$C$402,_xlfn.XLOOKUP(C79,'Emission Factors'!$A$409:$A$438,'Emission Factors'!$B$409:$B$438,"",0,1),0,1)) -> 
D80: =IF(C80="","",_xlfn.XLOOKUP(C80,'Emission Factors'!$A$371:$A$402, 'Emission Factors'!$C$371:$C$402,_xlfn.XLOOKUP(C80,'Emission Factors'!$A$409:$A$438,'Emission Factors'!$B$409:$B$438,"",0,1),0,1)) -> 
D81: =IF(C81="","",_xlfn.XLOOKUP(C81,'Emission Factors'!$A$371:$A$402, 'Emission Factors'!$C$371:$C$402,_xlfn.XLOOKUP(C81,'Emission Factors'!$A$409:$A$438,'Emission Factors'!$B$409:$B$438,"",0,1),0,1)) -> 
D82: =IF(C82="","",_xlfn.XLOOKUP(C82,'Emission Factors'!$A$371:$A$402, 'Emission Factors'!$C$371:$C$402,_xlfn.XLOOKUP(C82,'Emission Factors'!$A$409:$A$438,'Emission Factors'!$B$409:$B$438,"",0,1),0,1)) -> 
D83: =IF(C83="","",_xlfn.XLOOKUP(C83,'Emission Factors'!$A$371:$A$402, 'Emission Factors'!$C$371:$C$402,_xlfn.XLOOKUP(C83,'Emission Factors'!$A$409:$A$438,'Emission Factors'!$B$409:$B$438,"",0,1),0,1)) -> 
D84: =IF(C84="","",_xlfn.XLOOKUP(C84,'Emission Factors'!$A$371:$A$402, 'Emission Factors'!$C$371:$C$402,_xlfn.XLOOKUP(C84,'Emission Factors'!$A$409:$A$438,'Emission Factors'!$B$409:$B$438,"",0,1),0,1)) -> 
D85: =IF(C85="","",_xlfn.XLOOKUP(C85,'Emission Factors'!$A$371:$A$402, 'Emission Factors'!$C$371:$C$402,_xlfn.XLOOKUP(C85,'Emission Factors'!$A$409:$A$438,'Emission Factors'!$B$409:$B$438,"",0,1),0,1)) -> 
D86: =IF(C86="","",_xlfn.XLOOKUP(C86,'Emission Factors'!$A$371:$A$402, 'Emission Factors'!$C$371:$C$402,_xlfn.XLOOKUP(C86,'Emission Factors'!$A$409:$A$438,'Emission Factors'!$B$409:$B$438,"",0,1),0,1)) -> 
D87: =IF(C87="","",_xlfn.XLOOKUP(C87,'Emission Factors'!$A$371:$A$402, 'Emission Factors'!$C$371:$C$402,_xlfn.XLOOKUP(C87,'Emission Factors'!$A$409:$A$438,'Emission Factors'!$B$409:$B$438,"",0,1),0,1)) -> 
D88: =IF(C88="","",_xlfn.XLOOKUP(C88,'Emission Factors'!$A$371:$A$402, 'Emission Factors'!$C$371:$C$402,_xlfn.XLOOKUP(C88,'Emission Factors'!$A$409:$A$438,'Emission Factors'!$B$409:$B$438,"",0,1),0,1)) -> 
D89: =IF(C89="","",_xlfn.XLOOKUP(C89,'Emission Factors'!$A$371:$A$402, 'Emission Factors'!$C$371:$C$402,_xlfn.XLOOKUP(C89,'Emission Factors'!$A$409:$A$438,'Emission Factors'!$B$409:$B$438,"",0,1),0,1)) -> 
D90: =IF(C90="","",_xlfn.XLOOKUP(C90,'Emission Factors'!$A$371:$A$402, 'Emission Factors'!$C$371:$C$402,_xlfn.XLOOKUP(C90,'Emission Factors'!$A$409:$A$438,'Emission Factors'!$B$409:$B$438,"",0,1),0,1)) -> 
D91: =IF(C91="","",_xlfn.XLOOKUP(C91,'Emission Factors'!$A$371:$A$402, 'Emission Factors'!$C$371:$C$402,_xlfn.XLOOKUP(C91,'Emission Factors'!$A$409:$A$438,'Emission Factors'!$B$409:$B$438,"",0,1),0,1)) -> 
D92: =IF(C92="","",_xlfn.XLOOKUP(C92,'Emission Factors'!$A$371:$A$402, 'Emission Factors'!$C$371:$C$402,_xlfn.XLOOKUP(C92,'Emission Factors'!$A$409:$A$438,'Emission Factors'!$B$409:$B$438,"",0,1),0,1)) -> 
D93: =IF(C93="","",_xlfn.XLOOKUP(C93,'Emission Factors'!$A$371:$A$402, 'Emission Factors'!$C$371:$C$402,_xlfn.XLOOKUP(C93,'Emission Factors'!$A$409:$A$438,'Emission Factors'!$B$409:$B$438,"",0,1),0,1)) -> 
D94: =IF(C94="","",_xlfn.XLOOKUP(C94,'Emission Factors'!$A$371:$A$402, 'Emission Factors'!$C$371:$C$402,_xlfn.XLOOKUP(C94,'Emission Factors'!$A$409:$A$438,'Emission Factors'!$B$409:$B$438,"",0,1),0,1)) -> 
D95: =IF(C95="","",_xlfn.XLOOKUP(C95,'Emission Factors'!$A$371:$A$402, 'Emission Factors'!$C$371:$C$402,_xlfn.XLOOKUP(C95,'Emission Factors'!$A$409:$A$438,'Emission Factors'!$B$409:$B$438,"",0,1),0,1)) -> 
D96: =IF(C96="","",_xlfn.XLOOKUP(C96,'Emission Factors'!$A$371:$A$402, 'Emission Factors'!$C$371:$C$402,_xlfn.XLOOKUP(C96,'Emission Factors'!$A$409:$A$438,'Emission Factors'!$B$409:$B$438,"",0,1),0,1)) -> 
D97: =IF(C97="","",_xlfn.XLOOKUP(C97,'Emission Factors'!$A$371:$A$402, 'Emission Factors'!$C$371:$C$402,_xlfn.XLOOKUP(C97,'Emission Factors'!$A$409:$A$438,'Emission Factors'!$B$409:$B$438,"",0,1),0,1)) -> 
D98: =IF(C98="","",_xlfn.XLOOKUP(C98,'Emission Factors'!$A$371:$A$402, 'Emission Factors'!$C$371:$C$402,_xlfn.XLOOKUP(C98,'Emission Factors'!$A$409:$A$438,'Emission Factors'!$B$409:$B$438,"",0,1),0,1)) -> 
D99: =IF(C99="","",_xlfn.XLOOKUP(C99,'Emission Factors'!$A$371:$A$402, 'Emission Factors'!$C$371:$C$402,_xlfn.XLOOKUP(C99,'Emission Factors'!$A$409:$A$438,'Emission Factors'!$B$409:$B$438,"",0,1),0,1)) -> 
D100: =IF(C100="","",_xlfn.XLOOKUP(C100,'Emission Factors'!$A$371:$A$402, 'Emission Factors'!$C$371:$C$402,_xlfn.XLOOKUP(C100,'Emission Factors'!$A$409:$A$438,'Emission Factors'!$B$409:$B$438,"",0,1),0,1)) -> 
D101: =IF(C101="","",_xlfn.XLOOKUP(C101,'Emission Factors'!$A$371:$A$402, 'Emission Factors'!$C$371:$C$402,_xlfn.XLOOKUP(C101,'Emission Factors'!$A$409:$A$438,'Emission Factors'!$B$409:$B$438,"",0,1),0,1)) -> 
D102: =IF(C102="","",_xlfn.XLOOKUP(C102,'Emission Factors'!$A$371:$A$402, 'Emission Factors'!$C$371:$C$402,_xlfn.XLOOKUP(C102,'Emission Factors'!$A$409:$A$438,'Emission Factors'!$B$409:$B$438,"",0,1),0,1)) -> 
D103: =IF(C103="","",_xlfn.XLOOKUP(C103,'Emission Factors'!$A$371:$A$402, 'Emission Factors'!$C$371:$C$402,_xlfn.XLOOKUP(C103,'Emission Factors'!$A$409:$A$438,'Emission Factors'!$B$409:$B$438,"",0,1),0,1)) -> 
D104: =IF(C104="","",_xlfn.XLOOKUP(C104,'Emission Factors'!$A$371:$A$402, 'Emission Factors'!$C$371:$C$402,_xlfn.XLOOKUP(C104,'Emission Factors'!$A$409:$A$438,'Emission Factors'!$B$409:$B$438,"",0,1),0,1)) -> 
A106: Reference Table: Fire Suppressant Leak Rates for Table 3
A107: Type of Equipment | B107: Leak Rate
A108: Fixed | B108: 0.035
A109: Portable | B109: 0.025
A110: Source: EPA (2021) Inventory of U.S. Greenhouse Gas Emissions and Sinks: 1990-2019. Page A-275.
A112: GHG Emissions
A115: Total CO2 Equivalent Emissions (metric tons) - Fire Suppression Equipment | F115: =(((SUM($F$28:$F$35)+SUM($H$48:$H$55))*kg_per_lb)+SUM($F$69:$F$104))/1000 -> 0
A117: Notes:
A118: 1. Leak rates of fire extinguishers from Page A-28, US EPA (2021) - Inventory of U.S. Greenhouse Gas Emissions and Sinks: 1990 - 2018.
A119: 2. GWP values are from Intergovernmental Panel on Climate Change (IPCC) Fifth Assessment Report (2011).

Sheet Purchased Gases
A3: Scope 1 Emissions from Purchased Gases
A5: Guidance
A6: (A) Any use and release of the seven major greenhouse gases (CO2, CH4, N2O, PFCs, HFCs, SF6, and NF3) is required to be included in the GHG inventory. Ozone depleting substances, such as CFCs and HCFCs, are regulated internationally and are typically excluded from a GHG inventory or reported as a memo item.
A7: (B) Select the gas you purchase from the drop down menu and the amount purchased for the annual inventory reporting period in the ORANGE cells.
A8: (C) It is assumed that all gas purchased in the reporting period used and released during the reporting period. If your business makes bulk purchases and plans on using the gas for several years, divide the bulk amount by the years of usage and report that amount.
A9: Tip: If you purchase bulk gas, remember to report it for future years as well.
A11: Table 1. Purchased Gases
A12: Gas | B12: Gas | C12: Purchased | D12: CO2 Equivalent
B13: GWP | C13: Amount | D13: Emissions
C14: (lb) | D14: (lb)
B15: =IF(A15="","",_xlfn.XLOOKUP(A15,'Emission Factors'!$A$371:$A$402,'Emission Factors'!$C$371:$C$402,"",0)) ->  | D15: =IF(B15="", "",B15*C15) -> 
B16: =IF(A16="","",_xlfn.XLOOKUP(A16,'Emission Factors'!$A$371:$A$402,'Emission Factors'!$C$371:$C$402,"",0)) ->  | D16: =IF(B16="", "",B16*C16) -> 
B17: =IF(A17="","",_xlfn.XLOOKUP(A17,'Emission Factors'!$A$371:$A$402,'Emission Factors'!$C$371:$C$402,"",0)) -> 
B18: =IF(A18="","",_xlfn.XLOOKUP(A18,'Emission Factors'!$A$371:$A$402,'Emission Factors'!$C$371:$C$402,"",0)) -> 
B19: =IF(A19="","",_xlfn.XLOOKUP(A19,'Emission Factors'!$A$371:$A$402,'Emission Factors'!$C$371:$C$402,"",0)) -> 
B20: =IF(A20="","",_xlfn.XLOOKUP(A20,'Emission Factors'!$A$371:$A$402,'Emission Factors'!$C$371:$C$402,"",0)) -> 
B21: =IF(A21="","",_xlfn.XLOOKUP(A21,'Emission Factors'!$A$371:$A$402,'Emission Factors'!$C$371:$C$402,"",0)) -> 
B22: =IF(A22="","",_xlfn.XLOOKUP(A22,'Emission Factors'!$A$371:$A$402,'Emission Factors'!$C$371:$C$402,"",0)) -> 
B23: =IF(A23="","",_xlfn.XLOOKUP(A23,'Emission Factors'!$A$371:$A$402,'Emission Factors'!$C$371:$C$402,"",0)) -> 
B24: =IF(A24="","",_xlfn.XLOOKUP(A24,'Emission Factors'!$A$371:$A$402,'Emission Factors'!$C$371:$C$402,"",0)) -> 
B25: =IF(A25="","",_xlfn.XLOOKUP(A25,'Emission Factors'!$A$371:$A$402,'Emission Factors'!$C$371:$C$402,"",0)) ->  | D25: =IF(B25="", "",B25*C25) -> 
A27: GHG Emissions
A30: Total CO2 Equivalent Emissions (metric tons) - Purchased Gas | E30: =SUM(D15:D25)*kg_per_lb/1000 -> 0
A32: Notes:
A33: 1. GWP values are from Intergovernmental Panel on Climate Change (IPCC) Fifth Assessment Report (2011).

Sheet Electricity
A3: Scope 2 Emissions from Purchase of Electricity
A5: Guidance
A6: The Indirect Emissions from Purchased Electricity Guidance document provides guidance for quantifying two scope 2 emissions totals, using a location-based method and a market-based method. The organization should quantify and report both totals in its GHG inventory. The location-based method considers average emission factors for the electricity grids that provide electricity. The market-based method considers contractual arrangements under which the organization procures electricity from specific sources, such as renewable energy.
A7: (A) Enter total annual electricity purchased in kWh and each eGRID subregion for each facility or site in ORANGE cells of Table 1.
A8: (B) If electricity consumption data are not available for a facility, an estimate should be made for completeness. See the "Items to Note" section of the Help sheet for suggested estimation approaches.
A9: (C) Select "eGRID subregion" from drop box and enter "Electricity Purchased."
B10: - Use map (Figure 1) at bottom of sheet to determine appropriate eGRID subregion. If subregion cannot be determined from the map, find the correct subregion by entering the location's zip code into EPA’s Power Profiler:
B11: https://www.epa.gov/egrid/power-profiler#/
A12: (D) See the market-based emission factor hierarchy on the market-based method Help sheet. If any of the first four types of emission factors are applicable, enter the factors in the yellow cells marked as "<enter factor>". If not, leave the yellow cells as is, and eGRID subregion factors will be used for market-based emissions. Example entry is shown in first row (GREEN Italics) for a facility that purchases RECs for 100% of its consumption, and therefore has a market-based emission factor of 0.
A14: Tips: Enter electricity usage by location and then look up the eGRID subregion for each location.
A15: If you purchase renewable energy that is less than 100% of your site's electricity, see the example in the market-based method Help sheet. | F15: Market-Based Use these cells to enter applicable market-based emission factors | L15: Location-Based
A16: Table 1. Total Amount of Electricity Purchased by eGRID Subregion | F16: Emission Factors | I16: Emissions | L16: Emissions
A17: Source | B17: Source | C17: Source | D17: eGRID Subregion | E17: Electricity | F17: CO2 | G17: CH4 | H17: N2O | I17: CO2 | J17: CH4 | K17: N2O | L17: CO2 | M17: CH4 | N17: N2O
A18: ID | B18: Description | C18: Area (sq ft) | D18: where electricity is consumed | E18: Purchased | F18: Emissions | G18: Emissions | H18: Emissions | I18: Emissions | J18: Emissions | K18: Emissions | L18: Emissions | M18: Emissions | N18: Emissions
E19: (kWh) | F19: (lb/MWh) | G19: (lb/MWh) | H19: (lb/MWh) | I19: (lb) | J19: (lb) | K19: (lb) | L19: (lb) | M19: (lb) | N19: (lb)
A20: Bldg-012 | B20: East Power Plant | C20: 12517 | D20: HICC Miscellaneous | E20: 200000 | F20: 0 | G20: 0 | H20: 0 | I20: =IFERROR(IF(OR(ISBLANK(F20),F20="<enter factor>"),L20,$E20/1000*F20),"") -> 0 | J20: =IFERROR(IF(OR(ISBLANK(G20),G20="<enter factor>"),M20,$E20/1000*G20),"") -> 0 | K20: =IFERROR(IF(OR(ISBLANK(H20),H20="<enter factor>"),N20,$E20/1000*H20),"") -> 0 | L20: =IF(ISNA(VLOOKUP($D20,eGRID_em_Fctrs,4,FALSE)),"",VLOOKUP($D20,eGRID_em_Fctrs,4,FALSE)*$E20/1000) -> 231097.2 | M20: =IF(ISNA(VLOOKUP($D20,eGRID_em_Fctrs,5,FALSE)),"",VLOOKUP($D20,eGRID_em_Fctrs,5,FALSE)*$E20/1000) -> 24.8 | N20: =IF(ISNA(VLOOKUP($D20,eGRID_em_Fctrs,6,FALSE)),"",VLOOKUP($D20,eGRID_em_Fctrs,6,FALSE)*$E20/1000) -> 3.8
F21: <enter factor> | G21: <enter factor> | H21: <enter factor> | I21: =IFERROR(IF(OR(ISBLANK(F21),F21="<enter factor>"),L21,$E21/1000*F21),"") ->  | L21: =IF(ISNA(VLOOKUP($D21,eGRID_em_Fctrs,4,FALSE)),"",VLOOKUP($D21,eGRID_em_Fctrs,4,FALSE)*$E21/1000) ->  | M21: =IF(ISNA(VLOOKUP($D21,eGRID_em_Fctrs,5,FALSE)),"",VLOOKUP($D21,eGRID_em_Fctrs,5,FALSE)*$E21/1000) -> 
F22: <enter factor> | G22: <enter factor> | H22: <enter factor> | L22: =IF(ISNA(VLOOKUP($D22,eGRID_em_Fctrs,4,FALSE)),"",VLOOKUP($D22,eGRID_em_Fctrs,4,FALSE)*$E22/1000) ->  | M22: =IF(ISNA(VLOOKUP($D22,eGRID_em_Fctrs,5,FALSE)),"",VLOOKUP($D22,eGRID_em_Fctrs,5,FALSE)*$E22/1000) -> 
F23: <enter factor> | G23: <enter factor> | H23: <enter factor> | I23: =IFERROR(IF(OR(ISBLANK(F23),F23="<enter factor>"),L23,$E23/1000*F23),"") ->  | J23: =IFERROR(IF(OR(ISBLANK(G23),G23="<enter factor>"),M23,$E23/1000*G23),"") ->  | K23: =IFERROR(IF(OR(ISBLANK(H23),H23="<enter factor>"),N23,$E23/1000*H23),"") ->  | L23: =IF(ISNA(VLOOKUP($D23,eGRID_em_Fctrs,4,FALSE)),"",VLOOKUP($D23,eGRID_em_Fctrs,4,FALSE)*$E23/1000) -> 
F24: <enter factor> | G24: <enter factor> | H24: <enter factor> | J24: =IFERROR(IF(OR(ISBLANK(G24),G24="<enter factor>"),M24,$E24/1000*G24),"") ->  | K24: =IFERROR(IF(OR(ISBLANK(H24),H24="<enter factor>"),N24,$E24/1000*H24),"") ->  | L24: =IF(ISNA(VLOOKUP($D24,eGRID_em_Fctrs,4,FALSE)),"",VLOOKUP($D24,eGRID_em_Fctrs,4,FALSE)*$E24/1000) -> 
F25: <enter factor> | G25: <enter factor> | H25: <enter factor>
F26: <enter factor> | G26: <enter factor> | H26: <enter factor>
F27: <enter factor> | G27: <enter factor> | H27: <enter factor>
F28: <enter factor> | G28: <enter factor> | H28: <enter factor>
F29: <enter factor> | G29: <enter factor> | H29: <enter factor>
F30: <enter factor> | G30: <enter factor> | H30: <enter factor>
F31: <enter factor> | G31: <enter factor> | H31: <enter factor>
F32: <enter factor> | G32: <enter factor> | H32: <enter factor>
F33: <enter factor> | G33: <enter factor> | H33: <enter factor>
F34: <enter factor> | G34: <enter factor> | H34: <enter factor>
F35: <enter factor> | G35: <enter factor> | H35: <enter factor>
F36: <enter factor> | G36: <enter factor> | H36: <enter factor>
F37: <enter factor> | G37: <enter factor> | H37: <enter factor>
F38: <enter factor> | G38: <enter factor> | H38: <enter factor>
F39: <enter factor> | G39: <enter factor> | H39: <enter factor>
F40: <enter factor> | G40: <enter factor> | H40: <enter factor>
F41: <enter factor> | G41: <enter factor> | H41: <enter factor>
F42: <enter factor> | G42: <enter factor> | H42: <enter factor>
F43: <enter factor> | G43: <enter factor> | H43: <enter factor>
F44: <enter factor> | G44: <enter factor> | H44: <enter factor>
F45: <enter factor> | G45: <enter factor> | H45: <enter factor>
F46: <enter factor> | G46: <enter factor> | H46: <enter factor>
F47: <enter factor> | G47: <enter factor> | H47: <enter factor>
F48: <enter factor> | G48: <enter factor> | H48: <enter factor>
F49: <enter factor> | G49: <enter factor> | H49: <enter factor>
F50: <enter factor> | G50: <enter factor> | H50: <enter factor>
F51: <enter factor> | G51: <enter factor> | H51: <enter factor>
F52: <enter factor> | G52: <enter factor> | H52: <enter factor>
F53: <enter factor> | G53: <enter factor> | H53: <enter factor>
F54: <enter factor> | G54: <enter factor> | H54: <enter factor>
F55: <enter factor> | G55: <enter factor> | H55: <enter factor>
F56: <enter factor> | G56: <enter factor> | H56: <enter factor>
F57: <enter factor> | G57: <enter factor> | H57: <enter factor>
A58: Total Emissions for All Sources | E58: =SUM($E$21:$E$57) -> 0 | I58: =SUM($I$21:$I$57) -> 0 | J58: =SUM($J$21:$J$57) -> 0 | K58: =SUM($K$21:$K$57) -> 0 | L58: =SUM($L$21:$L$57) -> 0 | M58: =SUM($M$21:$M$57) -> 0 | N58: =SUM($N$21:$N$57) -> 0
A60: GHG Emissions
A62: CO2 Equivalent Emissions (metric tons)
A63: Location-Based Electricity Emissions | E63: =($L$58+$M$58*CH4_GWP+$N$58*N2O_GWP)*kg_per_lb/1000 -> 0
A64: Market-Based Electricity Emissions | E64: =($I$58+$J$58*CH4_GWP+$K$58*N2O_GWP)*kg_per_lb/1000 -> 0
A66: Notes:
A67: 1. CO2, CH4 and N2O emissions are estimated using methodology provided in EPA's Center for Corporate Climate Leadership Greenhouse Gas Inventory Guidance
A68: - Indirect Emissions from Purchased Electricity (January 2016).
A71: Figure 1. EPA eGRID2022, January 2024.

Sheet Steam
A3: Scope 2 Emissions from Purchase of Steam
A5: Guidance
A6: (A) Enter annual data for each facility or site in ORANGE cells in Table 1.
A7: - Enter amount of steam purchased in mmBtu. Heat Content conversions can be found on the "Heat Content" sheet.
A8: - Select "Fuel Type" from drop box to indicate the fuel used to generate the steam.
A9: -- If "Fuel Type" is not known, select "Natural Gas" from drop box as default value.
A10: -- If more than one fuel type is used, enter multiple rows, apportioning the steam using the same percentages as the fuel mix.
A11: (B) If steam is purchased at a facility but steam consumption data are not available, an estimate should be made for completeness. See the "Items to Note" section of the Help sheet for suggested estimation approaches.
A12: (C) Preferred Method (steam emission factors ARE available from your supplier). Example entry is shown in first data row (GREEN Italics).
A13: - Enter supplier emission factors for CO2, CH4, and N2O in the purple cells marked as "<enter factor>" if available, otherwise leave factor cells blank.
A14: - These should be expressed in lb / mmBtu of Steam. Heat Content conversions can be found on the "Heat Content" sheet.
A15: - Boiler Efficiency is not necessary if emission factors are available.
B16: - Typically supplier emission factors for steam will apply to both location-based and market-based emissions, and no market-based emission factors need to be entered. However, if there are different applicable market-based emission factors, enter the factors in the yellow cells marked as "<enter factor>". If needed, see the market-based method Help Sheet for guidance.
A17: (D) Alternative Method (supplier-specific emission factors are NOT available). Example entry is shown in second data row (BLUE Italics).
A18: - Enter boiler efficiency. If boiler efficiency is not known, use 80% as default value. Do not enter market-based emission factors.
G20: Location-Based Use these cells to enter emission factors from the steam supplier (if available) | M20: Market-Based Use these cells to enter market-based emission factors if different than the supplier emission factors.
A21: Table 1. Fuel, Boiler, Steam and Emission Factor Data for Steam Purchased | G21: Emission Factors | J21: Emissions | M21: Emission Factors | P21: Emissions
A22: Source ID | B22: Source Description | C22: Source Area (sq ft) | D22: Fuel Type | E22: Boiler | F22: Steam | G22: CO2 | H22: CH4 | I22: N2O | J22: CO2 | K22: CH4 | L22: N2O | M22: CO2 | N22: CH4 | O22: N2O | P22: CO2 | Q22: CH4 | R22: N2O
E23: Efficiency | F23: Purchased | G23: Factor | H23: Factor | I23: Factor | J23: Emissions | K23: Emissions | L23: Emissions | M23: Factor | N23: Factor | O23: Factor | P23: Emissions | Q23: Emissions | R23: Emissions
E24: (%) | F24: (mmBtu) | G24: (kg / mmBtu) | H24: (g / mmBtu) | I24: (g / mmBtu) | J24: (kg) | K24: (g) | L24: (g) | M24: (kg / mmBtu) | N24: (g / mmBtu) | O24: (g / mmBtu) | P24: (kg) | Q24: (g) | R24: (g)
A25: Bldg-011 | B25: Office | C25: 5000 | D25: Natural Gas | E25: 80 | F25: 5000 | G25: 72 | H25: 1.5 | I25: 0.6 | J25: =IF($F25="","", IF(OR(G25="<enter factor>",G25=""),(VLOOKUP($D25,Stationary_Fuel_Fctrs_mmBtu,2,FALSE))*$F25/(IF($E25="",0.8,$E25/100)), G25*$F25/(IF($E25="",0.8,$E25/100)))) -> 450000 | K25: =IF($F25="","", IF(OR(H25="<enter factor>",H25=""),(VLOOKUP($D25,Stationary_Fuel_Fctrs_mmBtu,3,FALSE))*$F25/(IF($E25="",0.8,$E25/100)), H25*$F25/(IF($E25="",0.8,$E25/100)))) -> 9375 | L25: =IF($F25="","", IF(OR(I25="<enter factor>",I25=""),(VLOOKUP($D25,Stationary_Fuel_Fctrs_mmBtu,4,FALSE))*$F25/(IF($E25="",0.8,$E25/100)), I25*$F25/(IF($E25="",0.8,$E25/100)))) -> 3750 | M25: 70 | N25: 1 | O25: 0.5 | P25: =IF($F25="","", IF(OR(M25="<enter factor>",M25=""),J25, M25*$F25/(IF($E25="",0.8,$E25/100)))) -> 437500 | Q25: =IF($F25="","", IF(OR(N25="<enter factor>",N25=""),K25, N25*$F25/(IF($E25="",0.8,$E25/100)))) -> 6250 | R25: =IF($F25="","", IF(OR(O25="<enter factor>",O25=""),L25, O25*$F25/(IF($E25="",0.8,$E25/100)))) -> 3125
A26: Bldg-012 | B26: Steam-Blr Room | C26: 2000 | D26: Sub-bituminous Coal | E26: 80 | F26: 1000 | G26: <enter factor> | H26: <enter factor> | I26: <enter factor> | J26: =IF($F26="","", IF(OR(G26="<enter factor>",G26=""),(VLOOKUP($D26,Stationary_Fuel_Fctrs_mmBtu,2,FALSE))*$F26/(IF($E26="",0.8,$E26/100)), G26*$F26/(IF($E26="",0.8,$E26/100)))) -> 121462.5 | K26: 13750 | L26: 2000 | M26: <enter factor> | N26: <enter factor> | O26: <enter factor> | P26: 121462.5 | Q26: 13750 | R26: 2000
G27: <enter factor> | H27: <enter factor> | I27: <enter factor> | M27: <enter factor> | N27: <enter factor> | O27: <enter factor> | P27: =IF($F27="","", IF(OR(M27="<enter factor>",M27=""),J27, M27*$F27/(IF($E27="",0.8,$E27/100)))) -> 
G28: <enter factor> | H28: <enter factor> | I28: <enter factor> | M28: <enter factor> | N28: <enter factor> | O28: <enter factor>
G29: <enter factor> | H29: <enter factor> | I29: <enter factor> | M29: <enter factor> | N29: <enter factor> | O29: <enter factor> | P29: =IF($F29="","", IF(OR(M29="<enter factor>",M29=""),J29, M29*$F29/(IF($E29="",0.8,$E29/100)))) ->  | Q29: =IF($F29="","", IF(OR(N29="<enter factor>",N29=""),K29, N29*$F29/(IF($E29="",0.8,$E29/100)))) ->  | R29: =IF($F29="","", IF(OR(O29="<enter factor>",O29=""),L29, O29*$F29/(IF($E29="",0.8,$E29/100)))) -> 
G30: <enter factor> | H30: <enter factor> | I30: <enter factor> | M30: <enter factor> | N30: <enter factor> | O30: <enter factor>
G31: <enter factor> | H31: <enter factor> | I31: <enter factor> | M31: <enter factor> | N31: <enter factor> | O31: <enter factor>
G32: <enter factor> | H32: <enter factor> | I32: <enter factor> | M32: <enter factor> | N32: <enter factor> | O32: <enter factor>
G33: <enter factor> | H33: <enter factor> | I33: <enter factor> | M33: <enter factor> | N33: <enter factor> | O33: <enter factor>
G34: <enter factor> | H34: <enter factor> | I34: <enter factor> | M34: <enter factor> | N34: <enter factor> | O34: <enter factor>
G35: <enter factor> | H35: <enter factor> | I35: <enter factor> | M35: <enter factor> | N35: <enter factor> | O35: <enter factor>
G36: <enter factor> | H36: <enter factor> | I36: <enter factor> | M36: <enter factor> | N36: <enter factor> | O36: <enter factor>
G37: <enter factor> | H37: <enter factor> | I37: <enter factor> | M37: <enter factor> | N37: <enter factor> | O37: <enter factor>
G38: <enter factor> | H38: <enter factor> | I38: <enter factor> | M38: <enter factor> | N38: <enter factor> | O38: <enter factor>
G39: <enter factor> | H39: <enter factor> | I39: <enter factor> | M39: <enter factor> | N39: <enter factor> | O39: <enter factor>
G40: <enter factor> | H40: <enter factor> | I40: <enter factor> | M40: <enter factor> | N40: <enter factor> | O40: <enter factor>
G41: <enter factor> | H41: <enter factor> | I41: <enter factor> | M41: <enter factor> | N41: <enter factor> | O41: <enter factor>
G42: <enter factor> | H42: <enter factor> | I42: <enter factor> | M42: <enter factor> | N42: <enter factor> | O42: <enter factor>
G43: <enter factor> | H43: <enter factor> | I43: <enter factor> | M43: <enter factor> | N43: <enter factor> | O43: <enter factor>
G44: <enter factor> | H44: <enter factor> | I44: <enter factor> | M44: <enter factor> | N44: <enter factor> | O44: <enter factor>
G45: <enter factor> | H45: <enter factor> | I45: <enter factor> | M45: <enter factor> | N45: <enter factor> | O45: <enter factor>
G46: <enter factor> | H46: <enter factor> | I46: <enter factor> | M46: <enter factor> | N46: <enter factor> | O46: <enter factor>
G47: <enter factor> | H47: <enter factor> | I47: <enter factor> | M47: <enter factor> | N47: <enter factor> | O47: <enter factor>
G48: <enter factor> | H48: <enter factor> | I48: <enter factor> | M48: <enter factor> | N48: <enter factor> | O48: <enter factor>
G49: <enter factor> | H49: <enter factor> | I49: <enter factor> | M49: <enter factor> | N49: <enter factor> | O49: <enter factor>
G50: <enter factor> | H50: <enter factor> | I50: <enter factor> | M50: <enter factor> | N50: <enter factor> | O50: <enter factor>
G51: <enter factor> | H51: <enter factor> | I51: <enter factor> | M51: <enter factor> | N51: <enter factor> | O51: <enter factor>
G52: <enter factor> | H52: <enter factor> | I52: <enter factor> | M52: <enter factor> | N52: <enter factor> | O52: <enter factor>
G53: <enter factor> | H53: <enter factor> | I53: <enter factor> | M53: <enter factor> | N53: <enter factor> | O53: <enter factor>
G54: <enter factor> | H54: <enter factor> | I54: <enter factor> | M54: <enter factor> | N54: <enter factor> | O54: <enter factor>
G55: <enter factor> | H55: <enter factor> | I55: <enter factor> | M55: <enter factor> | N55: <enter factor> | O55: <enter factor>
G56: <enter factor> | H56: <enter factor> | I56: <enter factor> | M56: <enter factor> | N56: <enter factor> | O56: <enter factor>
G57: <enter factor> | H57: <enter factor> | I57: <enter factor> | M57: <enter factor> | N57: <enter factor> | O57: <enter factor>
G58: <enter factor> | H58: <enter factor> | I58: <enter factor> | M58: <enter factor> | N58: <enter factor> | O58: <enter factor>
G59: <enter factor> | H59: <enter factor> | I59: <enter factor> | M59: <enter factor> | N59: <enter factor> | O59: <enter factor>
G60: <enter factor> | H60: <enter factor> | I60: <enter factor> | M60: <enter factor> | N60: <enter factor> | O60: <enter factor>
G61: <enter factor> | H61: <enter factor> | I61: <enter factor> | M61: <enter factor> | N61: <enter factor> | O61: <enter factor>
G62: <enter factor> | H62: <enter factor> | I62: <enter factor> | M62: <enter factor> | N62: <enter factor> | O62: <enter factor>
G63: <enter factor> | H63: <enter factor> | I63: <enter factor> | M63: <enter factor> | N63: <enter factor> | O63: <enter factor>
A65: GHG Emissions
A66: Emissions by Source and Fuel Type for Steam Purchased
C67: Location-Based | F67: Market-Based
A68: Fuel Type | C68: CO2 | D68: CH4 | E68: N2O | F68: CO2 | G68: CH4 | H68: N2O
C69: Emissions | D69: Emissions | E69: Emissions | F69: Emissions | G69: Emissions | H69: Emissions
C70: (kg) | D70: (g) | E70: (g) | F70: (kg) | G70: (g) | H70: (g)
A71: Natural Gas | C71: =SUMIF($D$27:$D$63,$A71,$J$27:$J$63) -> 0 | D71: =SUMIF($D$27:$D$63,$A71,$K$27:$K$63) -> 0 | E71: =SUMIF($D$27:$D$63,$A71,$L$27:$L$63) -> 0 | F71: =SUMIF($D$27:$D$63,$A71,$P$27:$P$63) -> 0 | G71: =SUMIF($D$27:$D$63,$A71,$Q$27:$Q$63) -> 0 | H71: =SUMIF($D$27:$D$63,$A71,$R$27:$R$63) -> 0
A72: Distillate Fuel Oil No. 2 | C72: =SUMIF($D$27:$D$63,$A72,$J$27:$J$63) -> 0 | D72: =SUMIF($D$27:$D$63,$A72,$K$27:$K$63) -> 0 | E72: =SUMIF($D$27:$D$63,$A72,$L$27:$L$63) -> 0 | F72: =SUMIF($D$27:$D$63,$A72,$P$27:$P$63) -> 0 | G72: =SUMIF($D$27:$D$63,$A72,$Q$27:$Q$63) -> 0 | H72: =SUMIF($D$27:$D$63,$A72,$R$27:$R$63) -> 0
A73: Residual Fuel Oil No. 6 | C73: 0 | D73: 0 | E73: 0 | F73: 0 | G73: 0 | H73: 0
A74: Kerosene | C74: 0 | D74: 0 | E74: 0 | F74: 0 | G74: 0 | H74: 0
A75: Liquefied Petroleum Gases (LPG) | C75: 0 | D75: 0 | E75: 0 | F75: 0 | G75: 0 | H75: 0
A76: Anthracite Coal | C76: 0 | D76: 0 | E76: 0 | F76: 0 | G76: 0 | H76: 0
A77: Bituminous Coal | C77: =SUMIF($D$27:$D$63,$A77,$J$27:$J$63) -> 0 | D77: 0 | E77: 0 | F77: 0 | G77: 0 | H77: 0
A78: Sub-bituminous Coal | C78: 0 | D78: 0 | E78: 0 | F78: 0 | G78: 0 | H78: 0
A79: Lignite Coal | C79: 0 | D79: 0 | E79: 0 | F79: 0 | G79: 0 | H79: 0
A80: Mixed (Electric Power Sector) | C80: 0 | D80: 0 | E80: 0 | F80: 0 | G80: 0 | H80: 0
A81: Coal Coke | C81: 0 | D81: 0 | E81: 0 | F81: 0 | G81: 0 | H81: 0
A82: Wood and Wood Residuals | C82: 0 | D82: 0 | E82: 0 | F82: 0 | G82: 0 | H82: 0
A83: Landfill Gas | C83: 0 | D83: 0 | E83: 0 | F83: 0 | G83: 0 | H83: 0
A84: Total Emissions for All Sources | C84: =SUM(C71:C83) -> 0 | D84: 0 | E84: 0 | F84: 0 | G84: 0 | H84: 0
A86: CO2 Equivalent Emissions (metric tons)
A87: Location-Based Electricity Emissions | F87: =($C$84+$D$84*CH4_GWP/1000+$E$84*N2O_GWP/1000)/1000 -> 0
A88: Market-Based Electricity Emissions | F88: =($F$84+$G$84*CH4_GWP/1000+$H$84*N2O_GWP/1000)/1000 -> 0

Sheet Business Travel
A3: Scope 3 Emissions from Business Travel
A5: Guidance
A6: (A) Enter annual data in ORANGE cells in the table corresponding to the transport method. Example entry is shown in first row (GREEN Italics).
A7: (B) Mileage data can be entered for individual trips or individual employees, or miles for multiple employees can be subtotaled by
A8: vehicle type or flight length.
A9: (C) For employees traveling by car, select "Vehicle Type" and enter miles traveled (vehicle-miles) in Table 1.
A10: (D) For employees traveling by rail or bus, select "Vehicle Type" and enter miles traveled (passenger-miles) in Table 2.
A11: (E) For employees traveling by air, select "Flight Length" and enter miles traveled (passenger-miles) in Table 3.
A12: --- Note: The emission factors for air travel do not include radiative forcing. Per the GHG Protocol, for air travel emission factors, multipliers or other corrections to account for radiative forcing may be applied to the GWP of emissions arising from aircraft transport. If applied, companies should disclose the specific factor used.
A15: Table 1. Personal Vehicle, Rental Car or Taxi - Business Travel by Vehicle-Miles (CO2, CH4 and N2O)
A16: Source ID | B16: Source Description | C16: Vehicle Type | D16: Vehicle-Miles (miles) | E16: CO2 Emissions (kg) | F16: CH4 Emissions (g) | G16: N2O Emissions (g)
A17: JD-001 | B17: John Doe 1 | C17: Passenger Car | D17: 100 | E17: =IF($C17="","",VLOOKUP($C17,Biz_Travel_Fctr,2,FALSE)*$D17) -> 30.61310073 | F17: =IF($C17="","",VLOOKUP($C17,Biz_Travel_Fctr,3,FALSE)*$D17) -> 0.8986233091 | G17: =IF($C17="","",VLOOKUP($C17,Biz_Travel_Fctr,4,FALSE)*$D17) -> 0.6013428936
E18: =IF($C18="","",VLOOKUP($C18,Biz_Travel_Fctr,2,FALSE)*$D18) -> 
A56: Total for all Personal Vehicle Business Travel | E56: =SUM(E18:E55) -> 0 | F56: =SUM(F18:F55) -> 0 | G56: =SUM(G18:G55) -> 0
A58: Table 2. Rail or Bus - Business Travel by Passenger-Miles (CO2, CH4 and N2O)
A59: Source ID | B59: Source Description | C59: Vehicle Type | D59: Passenger-Miles (miles) | E59: CO2 Emissions (kg) | F59: CH4 Emissions (g) | G59: N2O Emissions (g)
A60: JD-001 | B60: John Doe 1 | C60: Transit Rail (i.e. Subway, Tram) | D60: 100 | E60: =IF($C60="","",VLOOKUP($C60,Biz_Travel_Fctr,2,FALSE)*$D60) -> 9.306907802 | F60: =IF($C60="","",VLOOKUP($C60,Biz_Travel_Fctr,3,FALSE)*$D60) -> 0.7462268859 | G60: =IF($C60="","",VLOOKUP($C60,Biz_Travel_Fctr,4,FALSE)*$D60) -> 0.1017582117
A109: Total for all Rail and Bus Business Travel | E109: =SUM(E61:E108) -> 0 | F109: =SUM(F61:F108) -> 0 | G109: =SUM(G61:G108) -> 0
A111: Table 3. Air - Business Travel by Passenger-Miles (CO2, CH4 and N2O)
A112: Source ID | B112: Source Description | C112: Flight Length | D112: Passenger-Miles (miles) | E112: CO2 Emissions (kg) | F112: CH4 Emissions (g) | G112: N2O Emissions (g)
A113: JD-001 | B113: John Doe 1 | C113: Medium Haul (>= 300 miles, < 2300 miles) | D113: 1000 | E113: 229 | F113: 10.4 | G113: 8.5
E114: =IF($C114="","",VLOOKUP($C114,Biz_Travel_Fctr,2,FALSE)*$D114) ->  | F114: =IF($C114="","",VLOOKUP($C114,Biz_Travel_Fctr,3,FALSE)*$D114) ->  | G114: =IF($C114="","",VLOOKUP($C114,Biz_Travel_Fctr,4,FALSE)*$D114) -> 
E115: =IF($C115="","",VLOOKUP($C115,Biz_Travel_Fctr,2,FALSE)*$D115) -> 
E117: =IF($C117="","",VLOOKUP($C117,Biz_Travel_Fctr,2,FALSE)*$D117) -> 
A146: Total for all Air Business Travel | E146: =SUM(E114:E145) -> 0 | F146: =SUM(F114:F145) -> 0 | G146: =SUM(G114:G145) -> 0
A148: GHG Emissions
A150: Total CO2 Emissions by Travel Type
A151: Transport Type | C151: CO2 (kg) | D151: CH4 (g) | E151: N2O (g)
A152: Passenger Car | C152: =SUMIF($C$18:$C$55,$A152,E$18:E$55) -> 0 | D152: =SUMIF($C$18:$C$55,$A152,F$18:F$55) -> 0 | E152: 0
A153: Light-Duty Truck | C153: 0 | D153: 0 | E153: 0
A154: Motorcycle | C154: 0 | D154: 0 | E154: 0
A155: Intercity Rail - Northeast Corridor | C155: =SUMIF($C$61:$C$108,$A155,E$61:E$108) -> 0 | D155: 0 | E155: 0
A156: Intercity Rail - Other Routes | C156: =SUMIF($C$61:$C$108,$A156,E$61:E$108) -> 0 | D156: =SUMIF($C$61:$C$108,$A156,F$61:F$108) -> 0 | E156: =SUMIF($C$61:$C$108,$A156,G$61:G$108) -> 0
A157: Intercity Rail - National Average | C157: 0 | D157: 0 | E157: 0
A158: Commuter Rail | C158: 0 | D158: 0 | E158: 0
A159: Transit Rail (i.e. Subway, Tram) | C159: 0 | D159: 0 | E159: 0
A160: Bus | C160: 0 | D160: 0 | E160: 0
A161: Air Short Haul (< 300 miles) | C161: =SUMIF($C$114:$C$145,$A161,E$114:E$145) -> 0 | D161: 0 | E161: 0
A162: Air Medium Haul (>= 300 miles, < 2300 miles) | C162: =SUMIF($C$114:$C$145,$A162,E$114:E$145) -> 0 | D162: 0 | E162: 0
A163: Air Long Haul (>= 2300 miles) | C163: =SUMIF($C$114:$C$145,$A163,E$114:E$145) -> 0 | D163: 0 | E163: 0
A166: Total CO2 Equivalent Emissions (metric tons) - Business Travel | D166: =(SUM(C152:C163)+SUM(D152:D163)/1000*CH4_GWP+SUM(E152:E163)/1000*N2O_GWP)/1000 -> 0

Sheet Commuting
A3: Scope 3 Emissions from Employee Commuting
A5: Guidance
A6: (A) Enter annual data in ORANGE cells in the table corresponding to the transport method. Example entry is shown in first row (GREEN Italics).
A7: (B) For employees commuting in a personal vehicle, select the "Vehicle Type" and enter miles traveled (vehicle-miles) in Table 1.
A8: (C) For employees commuting using public transportation, select the "Transport Type" and enter miles traveled (passenger-miles) in Table 2.
A10: Tip: If more than one employee travels by the same vehicle type or transport type, miles can be combined and entered in one row.
A12: Table 1. Personal Vehicle - Employee Commuting by Vehicle-Miles (CO2, CH4 and N2O)
A13: Source ID | B13: Source Description | C13: Vehicle Type | D13: Vehicle-Miles (miles) | E13: CO2 Emissions (kg) | F13: CH4 Emissions (g) | G13: N2O Emissions (g)
A14: JD-001 | B14: John Doe 1 | C14: Passenger Car | D14: 100 | E14: =IF($C14="","",VLOOKUP($C14,Biz_Travel_Fctr,2,FALSE)*$D14) -> 30.61310073 | F14: =IF($C14="","",VLOOKUP($C14,Biz_Travel_Fctr,3,FALSE)*$D14) -> 0.8986233091 | G14: =IF($C14="","",VLOOKUP($C14,Biz_Travel_Fctr,4,FALSE)*$D14) -> 0.6013428936
A53: Total for all Personal Vehicle Employee Commuting | E53: =SUM(E15:E52) -> 0 | F53: =SUM(F15:F52) -> 0 | G53: =SUM(G15:G52) -> 0
A55: Table 2. Public Transportation - Employee Commuting by Passenger-Miles (CO2, CH4 and N2O)
A56: Source ID | B56: Source Description | C56: Transport Type | D56: Passenger-Miles (miles) | E56: CO2 Emissions (kg) | F56: CH4 Emissions (g) | G56: N2O Emissions (g)
A57: JD-001 | B57: John Doe 1 | C57: Bus | D57: 100 | E57: =IF($C57="","",VLOOKUP($C57,Biz_Travel_Fctr,2,FALSE)*$D57) -> 7.070758753 | F57: =IF($C57="","",VLOOKUP($C57,Biz_Travel_Fctr,3,FALSE)*$D57) -> 0.5030420285 | G57: =IF($C57="","",VLOOKUP($C57,Biz_Travel_Fctr,4,FALSE)*$D57) -> 0.2126064422
A106: Total for all Public Transportation Employee Commuting | E106: =SUM(E58:E105) -> 0 | F106: =SUM(F58:F105) -> 0 | G106: =SUM(G58:G105) -> 0
A108: GHG Emissions
A110: Total CO2 Emissions by Commuting Type
A111: Transport Type | C111: CO2 (kg) | D111: CH4 (g) | E111: N2O (g)
A112: Passenger Car | C112: =SUMIF($C$15:$C$52,$A112,E$15:E$52) -> 0 | D112: 0 | E112: 0
A113: Light-Duty Truck | C113: 0 | D113: 0 | E113: 0
A114: Motorcycle | C114: 0 | D114: 0 | E114: 0
A115: Intercity Rail - Northeast Corridor | C115: =SUMIF($C$58:$C$105,$A115,E$58:E$105) -> 0 | D115: =SUMIF($C$58:$C$105,$A115,F$58:F$105) -> 0 | E115: =SUMIF($C$58:$C$105,$A115,G$58:G$105) -> 0
A116: Intercity Rail - Other Routes | C116: 0 | D116: 0 | E116: 0
A117: Intercity Rail - National Average | C117: 0 | D117: 0 | E117: 0
A118: Commuter Rail | C118: 0 | D118: 0 | E118: 0
A119: Transit Rail (i.e. Subway, Tram) | C119: =SUMIF($C$58:$C$105,$A119,E$58:E$105) -> 0 | D119: =SUMIF($C$58:$C$105,$A119,F$58:F$105) -> 0 | E119: =SUMIF($C$58:$C$105,$A119,G$58:G$105) -> 0
A120: Bus | C120: =SUMIF($C$58:$C$105,$A120,E$58:E$105) -> 0 | D120: =SUMIF($C$58:$C$105,$A120,F$58:F$105) -> 0 | E120: =SUMIF($C$58:$C$105,$A120,G$58:G$105) -> 0
A123: Total CO2 Equivalent Emissions (metric tons) - Commuting | D123: =(SUM(C112:C120)+SUM(D112:D120)/1000*CH4_GWP+SUM(E112:E120)/1000*N2O_GWP)/1000 -> 0

Sheet Upstream Trans and Dist
A3: Scope 3 Emissions from Upstream Transportation and Distribution
A5: Guidance
A6: (A) Enter annual data in ORANGE cells in the table corresponding to the transport method. Example entry is shown in first row (GREEN Italics).
A7: (B) For rail, water, or air shipments, enter short ton-mile data in Table 2. See Help sheet for details on calculating short ton-miles.
A8: (C) For road shipments, if your organization's product is the only product transported in the vehicle (i.e. full truckload shipment) then enter the vehicle type and miles for each leg of transport in Table 1. Emissions are calculated using vehicle-miles.
A9: (D) For road shipments, if your organization's product makes up only part of the truck load (i.e. less-than-load or LTL shipment), then enter the vehicle type and short ton-miles (product weight (short tons) x distance) for each leg of transport in Table 2. Emissions are calculated using short ton-miles. See Help sheet for details on calculating ton-miles.
A10: Tip: Make sure all transport legs are accounted for from manufacturing facility to distribution to customer.
A11: --- Note: This Calculator does not currently provide a place to calculate emissions from distribution warehouses.
A12: Table 1. On-Road Product Transport by Vehicle-Miles (CO2, CH4 and N2O)
A13: Source ID | B13: Source Description | C13: Vehicle Type | D13: Vehicle-Miles (miles) | E13: CO2 Emissions (kg) | F13: CH4 Emissions (g) | G13: N2O Emissions (g)
A14: Bldg-012 | B14: East Power Plant Finished Goods | C14: Medium- and Heavy-duty Truck | D14: 100 | E14: =IF($C14="","",VLOOKUP($C14,Prod_TransVM_Fctrs,2,FALSE)*$D14) -> 135.9786596 | F14: =IF($C14="","",VLOOKUP($C14,Prod_TransVM_Fctrs,3,FALSE)*$D14) -> 1.190873148 | G14: =IF($C14="","",VLOOKUP($C14,Prod_TransVM_Fctrs,4,FALSE)*$D14) -> 3.774843187
E15: =IF($C15="","",VLOOKUP($C15,Prod_TransVM_Fctrs,2,FALSE)*$D15) -> 
A53: Total for Product Transport by Vehicle-Miles | E53: =SUM(E15:E52) -> 0 | F53: =SUM(F15:F52) -> 0 | G53: =SUM(G15:G52) -> 0
A56: Table 2. Product Transport by Ton-Miles (CO2, CH4 and N2O)
A57: Source ID | B57: Source Description | C57: Vehicle Type | D57: Short Ton-Miles | E57: CO2 Emissions (kg) | F57: CH4 Emissions (g) | G57: N2O Emissions (g)
A58: Bldg-012 | B58: East Power Plant Finished Goods | C58: Medium- and Heavy-Duty Truck | D58: 100 | E58: =IF($C58="","",VLOOKUP(C58,Prod_TransTM_fctrs,2,FALSE)*$D58) -> 16.80426018 | F58: =IF($C58="","",VLOOKUP(C58,Prod_TransTM_fctrs,3,FALSE)*$D58) -> 0.1471682564 | G58: =IF($C58="","",VLOOKUP(C58,Prod_TransTM_fctrs,4,FALSE)*$D58) -> 0.466495605
F59: =IF($C59="","",VLOOKUP(C59,Prod_TransTM_fctrs,3,FALSE)*$D59) ->  | G59: =IF($C59="","",VLOOKUP(C59,Prod_TransTM_fctrs,4,FALSE)*$D59) -> 
A97: Total for all Product Transport by Ton-Miles | E97: =SUM(E59:E96) -> 0 | F97: =SUM(F59:F96) -> 0 | G97: =SUM(G59:G96) -> 0
A99: GHG Emissions
A101: Total Emissions by Transportation Mode Type
A102: Transport Type | C102: CO2 (kg) | D102: CH4 (g) | E102: N2O (g)
A103: Medium- and Heavy-Duty Truck | C103: =SUMIF($C$15:$C$52,$A103,E$15:E$52)+SUMIF($C$59:$C$96,$A103,E$59:E$96) -> 0 | D103: =SUMIF($C$15:$C$52,$A103,F$15:F$52)+SUMIF($C$59:$C$96,$A103,F$59:F$96) -> 0 | E103: =SUMIF($C$15:$C$52,$A103,G$15:G$52)+SUMIF($C$59:$C$96,$A103,G$59:G$96) -> 0
A104: Light-Duty Truck | C104: =SUMIF($C$15:$C$52,$A104,E$15:E$52) -> 0 | D104: 0 | E104: 0
A105: Passenger Car | C105: 0 | D105: 0 | E105: 0
A106: Rail | C106: =SUMIF($C$59:$C$96,$A106,E$59:E$96) -> 0 | D106: 0 | E106: 0
A107: Aircraft | C107: 0 | D107: 0 | E107: 0
A108: Waterborne Craft | C108: 0 | D108: 0 | E108: 0
A111: Total CO2 Equivalent Emissions (metric tons) - Upstream Transportation and Distribution | D111: =(SUM(C103:C108)+SUM(D103:D108)/1000*CH4_GWP+SUM(E103:E108)/1000*N2O_GWP)/1000 -> 0

Sheet Waste
A3: Scope 3 Emissions from Waste
A5: Guidance
A6: (A) Enter annual waste data in ORANGE cells. Example entry is shown in first row (GREEN Italics).
A7: (B) First, choose the appropriate material then the disposal method from the drop down options. For the average-data method, use one of the mixed material types, such as mixed MSW. If the exact waste material is not available, consider an appropriate proxy. For example, dimensional lumber can be used as a proxy for wood furniture.
A8: (C) Choose an appropriate disposal method. Note that not all disposal methods are available for all materials. If there is a #NA or # Value error in the emissions column, you must pick a new material type or appropriate disposal method.
A10: Table 1. Waste Disposal Weight by Waste Material and Disposal Method (CO2, CH4 and N2O)
A11: Source ID | B11: Source Description | C11: Waste Material | D11: Disposal Method | E11: Weight | F11: Unit | G11: CO2e Emissions (kg)
A12: Bldg-012 | B12: East Power Plant Finished Goods | C12: Copper Wire | D12: Landfilled | E12: 1000 | F12: metric ton | G12: =IF($E12="","",E12*(VLOOKUP($F12,'Unit Conversions'!$A$12:$C$16,3,FALSE)*INDEX('Emission Factors'!$B$289:$H$350,MATCH(C12,'Emission Factors'!$B$289:$B$350,0),MATCH(D12,'Emission Factors'!$B$289:$H$289,0)))*1000) -> 22040
G13: =IF($E13="","",E13*(VLOOKUP($F13,'Unit Conversions'!$A$12:$C$16,3,FALSE)*INDEX('Emission Factors'!$B$289:$H$350,MATCH(C13,'Emission Factors'!$B$289:$B$350,0),MATCH(D13,'Emission Factors'!$B$289:$H$289,0)))*1000) -> 
G14: =IF($E14="","",E14*(VLOOKUP($F14,'Unit Conversions'!$A$12:$C$16,3,FALSE)*INDEX('Emission Factors'!$B$289:$H$350,MATCH(C14,'Emission Factors'!$B$289:$B$350,0),MATCH(D14,'Emission Factors'!$B$289:$H$289,0)))*1000) -> 
G15: =IF($E15="","",E15*(VLOOKUP($F15,'Unit Conversions'!$A$12:$C$16,3,FALSE)*INDEX('Emission Factors'!$B$289:$H$350,MATCH(C15,'Emission Factors'!$B$289:$B$350,0),MATCH(D15,'Emission Factors'!$B$289:$H$289,0)))*1000) -> 
G16: =IF($E16="","",E16*(VLOOKUP($F16,'Unit Conversions'!$A$12:$C$16,3,FALSE)*INDEX('Emission Factors'!$B$289:$H$350,MATCH(C16,'Emission Factors'!$B$289:$B$350,0),MATCH(D16,'Emission Factors'!$B$289:$H$289,0)))*1000) -> 
G17: =IF($E17="","",E17*(VLOOKUP($F17,'Unit Conversions'!$A$12:$C$16,3,FALSE)*INDEX('Emission Factors'!$B$289:$H$350,MATCH(C17,'Emission Factors'!$B$289:$B$350,0),MATCH(D17,'Emission Factors'!$B$289:$H$289,0)))*1000) -> 
G18: =IF($E18="","",E18*(VLOOKUP($F18,'Unit Conversions'!$A$12:$C$16,3,FALSE)*INDEX('Emission Factors'!$B$289:$H$350,MATCH(C18,'Emission Factors'!$B$289:$B$350,0),MATCH(D18,'Emission Factors'!$B$289:$H$289,0)))*1000) -> 
G19: =IF($E19="","",E19*(VLOOKUP($F19,'Unit Conversions'!$A$12:$C$16,3,FALSE)*INDEX('Emission Factors'!$B$289:$H$350,MATCH(C19,'Emission Factors'!$B$289:$B$350,0),MATCH(D19,'Emission Factors'!$B$289:$H$289,0)))*1000) -> 
G20: =IF($E20="","",E20*(VLOOKUP($F20,'Unit Conversions'!$A$12:$C$16,3,FALSE)*INDEX('Emission Factors'!$B$289:$H$350,MATCH(C20,'Emission Factors'!$B$289:$B$350,0),MATCH(D20,'Emission Factors'!$B$289:$H$289,0)))*1000) -> 
G21: =IF($E21="","",E21*(VLOOKUP($F21,'Unit Conversions'!$A$12:$C$16,3,FALSE)*INDEX('Emission Factors'!$B$289:$H$350,MATCH(C21,'Emission Factors'!$B$289:$B$350,0),MATCH(D21,'Emission Factors'!$B$289:$H$289,0)))*1000) -> 
G22: =IF($E22="","",E22*(VLOOKUP($F22,'Unit Conversions'!$A$12:$C$16,3,FALSE)*INDEX('Emission Factors'!$B$289:$H$350,MATCH(C22,'Emission Factors'!$B$289:$B$350,0),MATCH(D22,'Emission Factors'!$B$289:$H$289,0)))*1000) -> 
G23: =IF($E23="","",E23*(VLOOKUP($F23,'Unit Conversions'!$A$12:$C$16,3,FALSE)*INDEX('Emission Factors'!$B$289:$H$350,MATCH(C23,'Emission Factors'!$B$289:$B$350,0),MATCH(D23,'Emission Factors'!$B$289:$H$289,0)))*1000) -> 
G24: =IF($E24="","",E24*(VLOOKUP($F24,'Unit Conversions'!$A$12:$C$16,3,FALSE)*INDEX('Emission Factors'!$B$289:$H$350,MATCH(C24,'Emission Factors'!$B$289:$B$350,0),MATCH(D24,'Emission Factors'!$B$289:$H$289,0)))*1000) -> 
G25: =IF($E25="","",E25*(VLOOKUP($F25,'Unit Conversions'!$A$12:$C$16,3,FALSE)*INDEX('Emission Factors'!$B$289:$H$350,MATCH(C25,'Emission Factors'!$B$289:$B$350,0),MATCH(D25,'Emission Factors'!$B$289:$H$289,0)))*1000) -> 
G26: =IF($E26="","",E26*(VLOOKUP($F26,'Unit Conversions'!$A$12:$C$16,3,FALSE)*INDEX('Emission Factors'!$B$289:$H$350,MATCH(C26,'Emission Factors'!$B$289:$B$350,0),MATCH(D26,'Emission Factors'!$B$289:$H$289,0)))*1000) -> 
G27: =IF($E27="","",E27*(VLOOKUP($F27,'Unit Conversions'!$A$12:$C$16,3,FALSE)*INDEX('Emission Factors'!$B$289:$H$350,MATCH(C27,'Emission Factors'!$B$289:$B$350,0),MATCH(D27,'Emission Factors'!$B$289:$H$289,0)))*1000) -> 
G28: =IF($E28="","",E28*(VLOOKUP($F28,'Unit Conversions'!$A$12:$C$16,3,FALSE)*INDEX('Emission Factors'!$B$289:$H$350,MATCH(C28,'Emission Factors'!$B$289:$B$350,0),MATCH(D28,'Emission Factors'!$B$289:$H$289,0)))*1000) -> 
G29: =IF($E29="","",E29*(VLOOKUP($F29,'Unit Conversions'!$A$12:$C$16,3,FALSE)*INDEX('Emission Factors'!$B$289:$H$350,MATCH(C29,'Emission Factors'!$B$289:$B$350,0),MATCH(D29,'Emission Factors'!$B$289:$H$289,0)))*1000) -> 
G30: =IF($E30="","",E30*(VLOOKUP($F30,'Unit Conversions'!$A$12:$C$16,3,FALSE)*INDEX('Emission Factors'!$B$289:$H$350,MATCH(C30,'Emission Factors'!$B$289:$B$350,0),MATCH(D30,'Emission Factors'!$B$289:$H$289,0)))*1000) -> 
G31: =IF($E31="","",E31*(VLOOKUP($F31,'Unit Conversions'!$A$12:$C$16,3,FALSE)*INDEX('Emission Factors'!$B$289:$H$350,MATCH(C31,'Emission Factors'!$B$289:$B$350,0),MATCH(D31,'Emission Factors'!$B$289:$H$289,0)))*1000) -> 
G32: =IF($E32="","",E32*(VLOOKUP($F32,'Unit Conversions'!$A$12:$C$16,3,FALSE)*INDEX('Emission Factors'!$B$289:$H$350,MATCH(C32,'Emission Factors'!$B$289:$B$350,0),MATCH(D32,'Emission Factors'!$B$289:$H$289,0)))*1000) -> 
G33: =IF($E33="","",E33*(VLOOKUP($F33,'Unit Conversions'!$A$12:$C$16,3,FALSE)*INDEX('Emission Factors'!$B$289:$H$350,MATCH(C33,'Emission Factors'!$B$289:$B$350,0),MATCH(D33,'Emission Factors'!$B$289:$H$289,0)))*1000) -> 
G34: =IF($E34="","",E34*(VLOOKUP($F34,'Unit Conversions'!$A$12:$C$16,3,FALSE)*INDEX('Emission Factors'!$B$289:$H$350,MATCH(C34,'Emission Factors'!$B$289:$B$350,0),MATCH(D34,'Emission Factors'!$B$289:$H$289,0)))*1000) -> 
G35: =IF($E35="","",E35*(VLOOKUP($F35,'Unit Conversions'!$A$12:$C$16,3,FALSE)*INDEX('Emission Factors'!$B$289:$H$350,MATCH(C35,'Emission Factors'!$B$289:$B$350,0),MATCH(D35,'Emission Factors'!$B$289:$H$289,0)))*1000) -> 
G36: =IF($E36="","",E36*(VLOOKUP($F36,'Unit Conversions'!$A$12:$C$16,3,FALSE)*INDEX('Emission Factors'!$B$289:$H$350,MATCH(C36,'Emission Factors'!$B$289:$B$350,0),MATCH(D36,'Emission Factors'!$B$289:$H$289,0)))*1000) -> 
G37: =IF($E37="","",E37*(VLOOKUP($F37,'Unit Conversions'!$A$12:$C$16,3,FALSE)*INDEX('Emission Factors'!$B$289:$H$350,MATCH(C37,'Emission Factors'!$B$289:$B$350,0),MATCH(D37,'Emission Factors'!$B$289:$H$289,0)))*1000) -> 
G38: =IF($E38="","",E38*(VLOOKUP($F38,'Unit Conversions'!$A$12:$C$16,3,FALSE)*INDEX('Emission Factors'!$B$289:$H$350,MATCH(C38,'Emission Factors'!$B$289:$B$350,0),MATCH(D38,'Emission Factors'!$B$289:$H$289,0)))*1000) -> 
G39: =IF($E39="","",E39*(VLOOKUP($F39,'Unit Conversions'!$A$12:$C$16,3,FALSE)*INDEX('Emission Factors'!$B$289:$H$350,MATCH(C39,'Emission Factors'!$B$289:$B$350,0),MATCH(D39,'Emission Factors'!$B$289:$H$289,0)))*1000) -> 
G40: =IF($E40="","",E40*(VLOOKUP($F40,'Unit Conversions'!$A$12:$C$16,3,FALSE)*INDEX('Emission Factors'!$B$289:$H$350,MATCH(C40,'Emission Factors'!$B$289:$B$350,0),MATCH(D40,'Emission Factors'!$B$289:$H$289,0)))*1000) -> 
G41: =IF($E41="","",E41*(VLOOKUP($F41,'Unit Conversions'!$A$12:$C$16,3,FALSE)*INDEX('Emission Factors'!$B$289:$H$350,MATCH(C41,'Emission Factors'!$B$289:$B$350,0),MATCH(D41,'Emission Factors'!$B$289:$H$289,0)))*1000) -> 
G42: =IF($E42="","",E42*(VLOOKUP($F42,'Unit Conversions'!$A$12:$C$16,3,FALSE)*INDEX('Emission Factors'!$B$289:$H$350,MATCH(C42,'Emission Factors'!$B$289:$B$350,0),MATCH(D42,'Emission Factors'!$B$289:$H$289,0)))*1000) -> 
G43: =IF($E43="","",E43*(VLOOKUP($F43,'Unit Conversions'!$A$12:$C$16,3,FALSE)*INDEX('Emission Factors'!$B$289:$H$350,MATCH(C43,'Emission Factors'!$B$289:$B$350,0),MATCH(D43,'Emission Factors'!$B$289:$H$289,0)))*1000) -> 
G44: =IF($E44="","",E44*(VLOOKUP($F44,'Unit Conversions'!$A$12:$C$16,3,FALSE)*INDEX('Emission Factors'!$B$289:$H$350,MATCH(C44,'Emission Factors'!$B$289:$B$350,0),MATCH(D44,'Emission Factors'!$B$289:$H$289,0)))*1000) -> 
G45: =IF($E45="","",E45*(VLOOKUP($F45,'Unit Conversions'!$A$12:$C$16,3,FALSE)*INDEX('Emission Factors'!$B$289:$H$350,MATCH(C45,'Emission Factors'!$B$289:$B$350,0),MATCH(D45,'Emission Factors'!$B$289:$H$289,0)))*1000) -> 
G46: =IF($E46="","",E46*(VLOOKUP($F46,'Unit Conversions'!$A$12:$C$16,3,FALSE)*INDEX('Emission Factors'!$B$289:$H$350,MATCH(C46,'Emission Factors'!$B$289:$B$350,0),MATCH(D46,'Emission Factors'!$B$289:$H$289,0)))*1000) -> 
G47: =IF($E47="","",E47*(VLOOKUP($F47,'Unit Conversions'!$A$12:$C$16,3,FALSE)*INDEX('Emission Factors'!$B$289:$H$350,MATCH(C47,'Emission Factors'!$B$289:$B$350,0),MATCH(D47,'Emission Factors'!$B$289:$H$289,0)))*1000) -> 
G48: =IF($E48="","",E48*(VLOOKUP($F48,'Unit Conversions'!$A$12:$C$16,3,FALSE)*INDEX('Emission Factors'!$B$289:$H$350,MATCH(C48,'Emission Factors'!$B$289:$B$350,0),MATCH(D48,'Emission Factors'!$B$289:$H$289,0)))*1000) -> 
G49: =IF($E49="","",E49*(VLOOKUP($F49,'Unit Conversions'!$A$12:$C$16,3,FALSE)*INDEX('Emission Factors'!$B$289:$H$350,MATCH(C49,'Emission Factors'!$B$289:$B$350,0),MATCH(D49,'Emission Factors'!$B$289:$H$289,0)))*1000) -> 
G50: =IF($E50="","",E50*(VLOOKUP($F50,'Unit Conversions'!$A$12:$C$16,3,FALSE)*INDEX('Emission Factors'!$B$289:$H$350,MATCH(C50,'Emission Factors'!$B$289:$B$350,0),MATCH(D50,'Emission Factors'!$B$289:$H$289,0)))*1000) -> 
G51: =IF($E51="","",E51*(VLOOKUP($F51,'Unit Conversions'!$A$12:$C$16,3,FALSE)*INDEX('Emission Factors'!$B$289:$H$350,MATCH(C51,'Emission Factors'!$B$289:$B$350,0),MATCH(D51,'Emission Factors'!$B$289:$H$289,0)))*1000) -> 
G52: =IF($E52="","",E52*(VLOOKUP($F52,'Unit Conversions'!$A$12:$C$16,3,FALSE)*INDEX('Emission Factors'!$B$289:$H$350,MATCH(C52,'Emission Factors'!$B$289:$B$350,0),MATCH(D52,'Emission Factors'!$B$289:$H$289,0)))*1000) -> 
G53: =IF($E53="","",E53*(VLOOKUP($F53,'Unit Conversions'!$A$12:$C$16,3,FALSE)*INDEX('Emission Factors'!$B$289:$H$350,MATCH(C53,'Emission Factors'!$B$289:$B$350,0),MATCH(D53,'Emission Factors'!$B$289:$H$289,0)))*1000) -> 
G54: =IF($E54="","",E54*(VLOOKUP($F54,'Unit Conversions'!$A$12:$C$16,3,FALSE)*INDEX('Emission Factors'!$B$289:$H$350,MATCH(C54,'Emission Factors'!$B$289:$B$350,0),MATCH(D54,'Emission Factors'!$B$289:$H$289,0)))*1000) -> 
G55: =IF($E55="","",E55*(VLOOKUP($F55,'Unit Conversions'!$A$12:$C$16,3,FALSE)*INDEX('Emission Factors'!$B$289:$H$350,MATCH(C55,'Emission Factors'!$B$289:$B$350,0),MATCH(D55,'Emission Factors'!$B$289:$H$289,0)))*1000) -> 
G56: =IF($E56="","",E56*(VLOOKUP($F56,'Unit Conversions'!$A$12:$C$16,3,FALSE)*INDEX('Emission Factors'!$B$289:$H$350,MATCH(C56,'Emission Factors'!$B$289:$B$350,0),MATCH(D56,'Emission Factors'!$B$289:$H$289,0)))*1000) -> 
G57: =IF($E57="","",E57*(VLOOKUP($F57,'Unit Conversions'!$A$12:$C$16,3,FALSE)*INDEX('Emission Factors'!$B$289:$H$350,MATCH(C57,'Emission Factors'!$B$289:$B$350,0),MATCH(D57,'Emission Factors'!$B$289:$H$289,0)))*1000) -> 
G58: =IF($E58="","",E58*(VLOOKUP($F58,'Unit Conversions'!$A$12:$C$16,3,FALSE)*INDEX('Emission Factors'!$B$289:$H$350,MATCH(C58,'Emission Factors'!$B$289:$B$350,0),MATCH(D58,'Emission Factors'!$B$289:$H$289,0)))*1000) -> 
G59: =IF($E59="","",E59*(VLOOKUP($F59,'Unit Conversions'!$A$12:$C$16,3,FALSE)*INDEX('Emission Factors'!$B$289:$H$350,MATCH(C59,'Emission Factors'!$B$289:$B$350,0),MATCH(D59,'Emission Factors'!$B$289:$H$289,0)))*1000) -> 
G60: =IF($E60="","",E60*(VLOOKUP($F60,'Unit Conversions'!$A$12:$C$16,3,FALSE)*INDEX('Emission Factors'!$B$289:$H$350,MATCH(C60,'Emission Factors'!$B$289:$B$350,0),MATCH(D60,'Emission Factors'!$B$289:$H$289,0)))*1000) -> 
G61: =IF($E61="","",E61*(VLOOKUP($F61,'Unit Conversions'!$A$12:$C$16,3,FALSE)*INDEX('Emission Factors'!$B$289:$H$350,MATCH(C61,'Emission Factors'!$B$289:$B$350,0),MATCH(D61,'Emission Factors'!$B$289:$H$289,0)))*1000) -> 
G62: =IF($E62="","",E62*(VLOOKUP($F62,'Unit Conversions'!$A$12:$C$16,3,FALSE)*INDEX('Emission Factors'!$B$289:$H$350,MATCH(C62,'Emission Factors'!$B$289:$B$350,0),MATCH(D62,'Emission Factors'!$B$289:$H$289,0)))*1000) -> 
G63: =IF($E63="","",E63*(VLOOKUP($F63,'Unit Conversions'!$A$12:$C$16,3,FALSE)*INDEX('Emission Factors'!$B$289:$H$350,MATCH(C63,'Emission Factors'!$B$289:$B$350,0),MATCH(D63,'Emission Factors'!$B$289:$H$289,0)))*1000) -> 
G64: =IF($E64="","",E64*(VLOOKUP($F64,'Unit Conversions'!$A$12:$C$16,3,FALSE)*INDEX('Emission Factors'!$B$289:$H$350,MATCH(C64,'Emission Factors'!$B$289:$B$350,0),MATCH(D64,'Emission Factors'!$B$289:$H$289,0)))*1000) -> 
G65: =IF($E65="","",E65*(VLOOKUP($F65,'Unit Conversions'!$A$12:$C$16,3,FALSE)*INDEX('Emission Factors'!$B$289:$H$350,MATCH(C65,'Emission Factors'!$B$289:$B$350,0),MATCH(D65,'Emission Factors'!$B$289:$H$289,0)))*1000) -> 
G66: =IF($E66="","",E66*(VLOOKUP($F66,'Unit Conversions'!$A$12:$C$16,3,FALSE)*INDEX('Emission Factors'!$B$289:$H$350,MATCH(C66,'Emission Factors'!$B$289:$B$350,0),MATCH(D66,'Emission Factors'!$B$289:$H$289,0)))*1000) -> 
G67: =IF($E67="","",E67*(VLOOKUP($F67,'Unit Conversions'!$A$12:$C$16,3,FALSE)*INDEX('Emission Factors'!$B$289:$H$350,MATCH(C67,'Emission Factors'!$B$289:$B$350,0),MATCH(D67,'Emission Factors'!$B$289:$H$289,0)))*1000) -> 
G68: =IF($E68="","",E68*(VLOOKUP($F68,'Unit Conversions'!$A$12:$C$16,3,FALSE)*INDEX('Emission Factors'!$B$289:$H$350,MATCH(C68,'Emission Factors'!$B$289:$B$350,0),MATCH(D68,'Emission Factors'!$B$289:$H$289,0)))*1000) -> 
G69: =IF($E69="","",E69*(VLOOKUP($F69,'Unit Conversions'!$A$12:$C$16,3,FALSE)*INDEX('Emission Factors'!$B$289:$H$350,MATCH(C69,'Emission Factors'!$B$289:$B$350,0),MATCH(D69,'Emission Factors'!$B$289:$H$289,0)))*1000) -> 
G70: =IF($E70="","",E70*(VLOOKUP($F70,'Unit Conversions'!$A$12:$C$16,3,FALSE)*INDEX('Emission Factors'!$B$289:$H$350,MATCH(C70,'Emission Factors'!$B$289:$B$350,0),MATCH(D70,'Emission Factors'!$B$289:$H$289,0)))*1000) -> 
G71: =IF($E71="","",E71*(VLOOKUP($F71,'Unit Conversions'!$A$12:$C$16,3,FALSE)*INDEX('Emission Factors'!$B$289:$H$350,MATCH(C71,'Emission Factors'!$B$289:$B$350,0),MATCH(D71,'Emission Factors'!$B$289:$H$289,0)))*1000) -> 
G72: =IF($E72="","",E72*(VLOOKUP($F72,'Unit Conversions'!$A$12:$C$16,3,FALSE)*INDEX('Emission Factors'!$B$289:$H$350,MATCH(C72,'Emission Factors'!$B$289:$B$350,0),MATCH(D72,'Emission Factors'!$B$289:$H$289,0)))*1000) -> 
G73: =IF($E73="","",E73*(VLOOKUP($F73,'Unit Conversions'!$A$12:$C$16,3,FALSE)*INDEX('Emission Factors'!$B$289:$H$350,MATCH(C73,'Emission Factors'!$B$289:$B$350,0),MATCH(D73,'Emission Factors'!$B$289:$H$289,0)))*1000) -> 
G74: =IF($E74="","",E74*(VLOOKUP($F74,'Unit Conversions'!$A$12:$C$16,3,FALSE)*INDEX('Emission Factors'!$B$289:$H$350,MATCH(C74,'Emission Factors'!$B$289:$B$350,0),MATCH(D74,'Emission Factors'!$B$289:$H$289,0)))*1000) -> 
G75: =IF($E75="","",E75*(VLOOKUP($F75,'Unit Conversions'!$A$12:$C$16,3,FALSE)*INDEX('Emission Factors'!$B$289:$H$350,MATCH(C75,'Emission Factors'!$B$289:$B$350,0),MATCH(D75,'Emission Factors'!$B$289:$H$289,0)))*1000) -> 
G76: =IF($E76="","",E76*(VLOOKUP($F76,'Unit Conversions'!$A$12:$C$16,3,FALSE)*INDEX('Emission Factors'!$B$289:$H$350,MATCH(C76,'Emission Factors'!$B$289:$B$350,0),MATCH(D76,'Emission Factors'!$B$289:$H$289,0)))*1000) -> 
G77: =IF($E77="","",E77*(VLOOKUP($F77,'Unit Conversions'!$A$12:$C$16,3,FALSE)*INDEX('Emission Factors'!$B$289:$H$350,MATCH(C77,'Emission Factors'!$B$289:$B$350,0),MATCH(D77,'Emission Factors'!$B$289:$H$289,0)))*1000) -> 
G78: =IF($E78="","",E78*(VLOOKUP($F78,'Unit Conversions'!$A$12:$C$16,3,FALSE)*INDEX('Emission Factors'!$B$289:$H$350,MATCH(C78,'Emission Factors'!$B$289:$B$350,0),MATCH(D78,'Emission Factors'!$B$289:$H$289,0)))*1000) -> 
G79: =IF($E79="","",E79*(VLOOKUP($F79,'Unit Conversions'!$A$12:$C$16,3,FALSE)*INDEX('Emission Factors'!$B$289:$H$350,MATCH(C79,'Emission Factors'!$B$289:$B$350,0),MATCH(D79,'Emission Factors'!$B$289:$H$289,0)))*1000) -> 
G80: =IF($E80="","",E80*(VLOOKUP($F80,'Unit Conversions'!$A$12:$C$16,3,FALSE)*INDEX('Emission Factors'!$B$289:$H$350,MATCH(C80,'Emission Factors'!$B$289:$B$350,0),MATCH(D80,'Emission Factors'!$B$289:$H$289,0)))*1000) -> 
G81: =IF($E81="","",E81*(VLOOKUP($F81,'Unit Conversions'!$A$12:$C$16,3,FALSE)*INDEX('Emission Factors'!$B$289:$H$350,MATCH(C81,'Emission Factors'!$B$289:$B$350,0),MATCH(D81,'Emission Factors'!$B$289:$H$289,0)))*1000) -> 
G82: =IF($E82="","",E82*(VLOOKUP($F82,'Unit Conversions'!$A$12:$C$16,3,FALSE)*INDEX('Emission Factors'!$B$289:$H$350,MATCH(C82,'Emission Factors'!$B$289:$B$350,0),MATCH(D82,'Emission Factors'!$B$289:$H$289,0)))*1000) -> 
G83: =IF($E83="","",E83*(VLOOKUP($F83,'Unit Conversions'!$A$12:$C$16,3,FALSE)*INDEX('Emission Factors'!$B$289:$H$350,MATCH(C83,'Emission Factors'!$B$289:$B$350,0),MATCH(D83,'Emission Factors'!$B$289:$H$289,0)))*1000) -> 
G84: =IF($E84="","",E84*(VLOOKUP($F84,'Unit Conversions'!$A$12:$C$16,3,FALSE)*INDEX('Emission Factors'!$B$289:$H$350,MATCH(C84,'Emission Factors'!$B$289:$B$350,0),MATCH(D84,'Emission Factors'!$B$289:$H$289,0)))*1000) -> 
A87: GHG Emissions
A89: Total Emissions by Disposal Method
A90: Waste Material | B90: CO2e (kg)
A91: Recycled | B91: =SUMIF($D$13:$D$84,$A91,G$13:G$84) -> 0
A92: Landfilled | B92: =SUMIF($D$13:$D$84,$A92,G$13:G$84) -> 0
A93: Combusted | B93: 0
A94: Composted | B94: 0
A95: Anaerobically Digested (Dry Digestate with Curing) | B95: =SUMIF($D$13:$D$84,$A95,G$13:G$84) -> 0
A96: Anaerobically Digested (Wet Digestate with Curing) | B96: 0
A99: Total CO2 Equivalent Emissions (metric tons) - Waste | D99: =SUM(B91:B96)/1000 -> 0

Sheet Offsets
A3: Purchased Offsets
A5: Guidance
A6: (A) Enter quantity of offsets purchased for each offset project in terms of CO2 equivalent in ORANGE cells of Table 1. Enter offsets purchased for the inventory reporting period. Example entry is shown in first row (GREEN Italics).
A8: Table 1. Total Amount of Purchased Offsets
A9: ID | B9: Project Description | C9: Offset Scope/Category | D9: Offsets Purchased (Metric Tons CO2e)
A10: Trees | B10: Forestry Project | C10: Scope 1 | D10: 5000
A22: GHG Reductions
A24: Total CO2 Equivalent Emission Reductions (metric tons) - Offsets | D24: =SUM(D11:D20) -> 0
A26: GHG Reductions by Scope | C26: Offsets (Metric Tons CO2e)
B27: Scope 1 | D27: =SUMIF($C$11:$C$20,$B27,$D$11:$D$20) -> 0
B28: Scope 2 - Location-Based | D28: =SUMIF($C$11:$C$20,$B28,$D$11:$D$20) -> 0
B29: Scope 2 - Market-Based | D29: 0
B30: Scope 3 - Business Travel | D30: 0
B31: Scope 3 - Employee Commuting | D31: 0
B32: Scope 3 - Upstream Transportation and Distribution | D32: 0
B33: Scope 3 - Waste | D33: 0

Sheet Unit Conversions
A3: Tool Sheet: Unit Conversions
A6: Mass
A7: Convert From | B7: Convert To | C7: Multiply By | D7: Units
A8: pounds (lb) | B8: gram (g) | C8: 453.6 | D8: g / lb
A9: pounds (lb) | B9: kilogram (kg) | C9: 0.4536 | D9: kg / lb
A10: pounds (lb) | B10: metric ton | C10: 0.0004536 | D10: metric ton / lb
A11: kilogram (kg) | B11: pounds (lb) | C11: 2.205 | D11: lb / kg
A12: gram (g) | B12: short ton | C12: =C13/1000 -> 1.102e-06 | D12: short ton / g
A13: kilogram (kg) | B13: short ton | C13: =C14/1000 -> 0.001102 | D13: short ton / kg
A14: metric ton | B14: short ton | C14: 1.102 | D14: short ton / metric ton
A15: pounds (lb) | B15: short ton | C15: =1/2000 -> 0.0005 | D15: short ton / lb
A16: short ton | B16: short ton | C16: 1 | D16: short ton / short ton
A17: metric ton | B17: pounds (lb) | C17: 2205 | D17: lb / metric ton
A18: metric ton | B18: kilogram (kg) | C18: 1000 | D18: kg / metric ton
A19: Source: Inventory of U.S. Greenhouse Gas Emissions and Sinks: 1990-2021 – Annexes, Chapter 6.4, Constants, Units and Conversions. https://www.epa.gov/system/files/documents/2023-04/US-GHG-Inventory-2023-Annexes.pdf
A21: Volume
A22: Convert From | B22: Convert To | C22: Multiply By | D22: Units
A23: standard cubic foot (scf) | B23: US gallon (gal) | C23: 7.4805 | D23: gal / scf
A24: standard cubic foot (scf) | B24: barrel (bbl) | C24: 0.1781 | D24: bbl / scf
A25: standard cubic foot (scf) | B25: liters (L) | C25: 28.32 | D25: L / scf
A26: standard cubic foot (scf) | B26: cubic meters (m3) | C26: 0.02832 | D26: m3 / scf
A27: US gallon (gal) | B27: barrel (bbl) | C27: 0.0238 | D27: bbl / gal
A28: US gallon (gal) | B28: liters (L) | C28: 3.785 | D28: L / gal
A29: US gallon (gal) | B29: cubic meters (m3) | C29: 0.003785 | D29: m3 / gal
A30: barrel (bbl) | B30: US gallons (gal) | C30: 42 | D30: gal / bbl
A31: barrel (bbl) | B31: liters (L) | C31: 158.99 | D31: L / bbl
A32: barrel (bbl) | B32: cubic meters (m3) | C32: 0.1589 | D32: m3 / bbl
A33: liters (L) | B33: cubic meters (m3) | C33: 0.001 | D33: m3 / L
A34: liters (L) | B34: US gallon (gal) | C34: 0.2642 | D34: gal / L
A35: cubic meters (m3) | B35: barrel (bbl) | C35: 6.2897 | D35: bbl / m3
A36: cubic meters (m3) | B36: US gallon (gal) | C36: 264.2 | D36: gal / m3
A37: cubic meters (m3) | B37: liters (L) | C37: 1000 | D37: L / m3
A39: Energy
A40: Convert From | B40: Convert To | C40: Multiply By | D40: Units
A41: kilowatt hour (kWh) | B41: Btu | C41: 3412 | D41: Btu / kWh
A42: kilowatt hour (kWh) | B42: kilojoules (KJ) | C42: 3600 | D42: KJ / kWh
A43: megajoule (MJ) | B43: gigajoules (GJ) | C43: 0.001 | D43: GJ / MJ
A44: gigajoule (GJ) | B44: million Btu (mmBtu) | C44: 0.9478 | D44: mmBtu / GJ
A45: gigajoule (GJ) | B45: kilowatt hours (kWh) | C45: 277.8 | D45: kWh / GJ
A46: Btu | B46: joules (J) | C46: 1055 | D46: J / Btu
A47: million Btu (mmBtu) | B47: gigajoules (GJ) | C47: 1.055 | D47: GJ / mmBtu
A48: million Btu (mmBtu) | B48: kilowatt hours (kWh) | C48: 293 | D48: kWh / mmBtu
A49: therm | B49: Btu | C49: 100000 | D49: Btu / therm
A50: therm | B50: gigajoules (GJ) | C50: 0.1055 | D50: GJ / therm
A51: therm | B51: kilowatt hours (kWh) | C51: 29.3 | D51: kWh / therm
A53: Distance
A54: Convert From | B54: Convert To | C54: Multiply By | D54: Units
A55: mile | B55: kilometers (km) | C55: 1.609 | D55: km / mile
A56: nautical mile | B56: miles | C56: 1.15 | D56: mile / nautical mile
A57: kilometer (km) | B57: miles | C57: =ROUND(1/C55,3) -> 0.622 | D57: mile / km
A59: Other
A60: Kilo | B60: 1000
A61: Mega | B61: 1000000
A62: Giga | B62: 1000000000
A63: Tera | B63: 1000000000000
A64: Molecular Weigh of C | B64: 12
A65: Molecular Weight of CO2 | B65: 44

Sheet Heat Content
A3: Tool Sheet: Heat Content for Specific Fuels
A4: Additional heat contents can be found in the Emission Factors Hub.
A6: Fuel Type | B6: Convert From | C6: Convert To | D6: Multiply By | E6: Units | F6: Source
A7: Natural Gas | B7: mmBtu | C7: scf | D7: =ROUND(1/0.001026,6) -> 974.658869 | E7: scf / mmBtu | F7: EPA, Emission Factors Hub March 2024, Based on Federal Register EPA; 40 CFR Part 98; e-CFR, (see link below). Table C-1, Table C-2 (as amended at 81 FR 89252, Dec. 9, 2016), Table AA-1 (78 FR 71965, Nov. 29, 2013). https://www.ecfr.gov/cgi-bin/text-idx?SID=ae265d7d6f98ec86fcd8640b9793a3f6&mc=true&node=pt40.23.98&rgn=div5#ap40.23.98_19.1
A8: Natural Gas | B8: Dth (Decatherm) | C8: scf | D8: =D7 -> 974.658869 | E8: scf / Dth
A9: Natural Gas | B9: therm | C9: scf | D9: =D8/10 -> 97.4658869 | E9: scf / therm
A10: Natural Gas | B10: ccf | C10: scf | D10: 100 | E10: scf / ccf
A11: Natural Gas | B11: Mcf | C11: scf | D11: 1000 | E11: scf / Mcf
A12: Natural Gas | B12: cubic meter | C12: scf | D12: =1/'Unit Conversions'!C26 -> 35.31073446 | E12: scf / cubic meter
A13: Natural Gas | B13: kWh | C13: scf | D13: =D7*('Unit Conversions'!C41/1000000) -> 3.325536061 | E13: scf / kWh
A14: Anthracite Coal | B14: mmBtu | C14: Short ton | D14: =1/25.09 -> 0.03985651654 | E14: short ton / mmBtu
A15: Bituminous Coal | B15: mmBtu | C15: Short ton | D15: =1/24.93 -> 0.04011231448 | E15: short ton / mmBtu
A16: Sub-bituminous Coal | B16: mmBtu | C16: Short ton | D16: =1/17.25 -> 0.05797101449 | E16: short ton / mmBtu
A17: Lignite Coal | B17: mmBtu | C17: Short ton | D17: =1/14.21 -> 0.07037297678 | E17: short ton / mmBtu
A18: Mixed (Commercial Sector) | B18: mmBtu | C18: Short ton | D18: =1/21.39 -> 0.04675081814 | E18: short ton / mmBtu
A19: Mixed (Electric Power Sector) | B19: mmBtu | C19: Short ton | D19: =1/19.73 -> 0.0506842372 | E19: short ton / mmBtu
A20: Mixed (Industrial Coking) | B20: mmBtu | C20: Short ton | D20: =1/26.28 -> 0.03805175038 | E20: short ton / mmBtu
A21: Mixed (Industrial Sector) | B21: mmBtu | C21: Short ton | D21: =1/22.35 -> 0.04474272931 | E21: short ton / mmBtu
A22: Coal Coke | B22: mmBtu | C22: Short ton | D22: =1/24.8 -> 0.04032258065 | E22: short ton / mmBtu
A23: Agricultural Byproducts | B23: mmBtu | C23: Short ton | D23: =1/8.25 -> 0.1212121212 | E23: short ton / mmBtu
A24: Peat | B24: mmBtu | C24: Short ton | D24: =1/8 -> 0.125 | E24: short ton / mmBtu
A25: Solid Byproducts | B25: mmBtu | C25: Short ton | D25: =1/10.39 -> 0.09624639076 | E25: short ton / mmBtu
A26: Wood and Wood Residuals | B26: mmBtu | C26: Short ton | D26: =1/17.48 -> 0.05720823799 | E26: short ton / mmBtu
A27: Municipal Solid Waste | B27: mmBtu | C27: Short ton | D27: =1/9.95 -> 0.1005025126 | E27: short ton / mmBtu
A28: Petroleum Coke (Solid) | B28: mmBtu | C28: Short ton | D28: =1/30 -> 0.03333333333 | E28: short ton / mmBtu
A29: Plastics | B29: mmBtu | C29: Short ton | D29: =1/38 -> 0.02631578947 | E29: short ton / mmBtu
A30: Tires | B30: mmBtu | C30: Short ton | D30: =1/28 -> 0.03571428571 | E30: short ton / mmBtu
A31: Distillate Fuel Oil No. 2 | B31: mmBtu | C31: gallon | D31: =1/0.138 -> 7.246376812 | E31: gallon / mmBtu
A32: Residual Fuel Oil No. 6 | B32: mmBtu | C32: gallon | D32: =1/0.15 -> 6.666666667 | E32: gallon / mmBtu
A33: Kerosene | B33: mmBtu | C33: gallon | D33: =1/0.135 -> 7.407407407 | E33: gallon / mmBtu
A34: Liquefied Petroleum Gases (LPG) | B34: mmBtu | C34: gallon | D34: =1/0.092 -> 10.86956522 | E34: gallon / mmBtu
A35: Biodiesel (100%) | B35: mmBtu | C35: gallon | D35: =1/0.128 -> 7.8125 | E35: gallon / mmBtu
A36: Ethanol (100%) | B36: mmBtu | C36: gallon | D36: =1/0.084 -> 11.9047619 | E36: gallon / mmBtu
A37: Rendered Animal Fat | B37: mmBtu | C37: gallon | D37: =1/0.125 -> 8 | E37: gallon / mmBtu
A38: Vegetable Oil | B38: mmBtu | C38: gallon | D38: =1/0.12 -> 8.333333333 | E38: gallon / mmBtu
A39: Propane Gas | B39: mmBtu | C39: scf | D39: =1/0.002516 -> 397.4562798 | E39: scf / mmBtu
A40: Propane Gas | B40: therm | C40: scf | D40: =D39/10 -> 39.74562798 | E40: scf / therm
A41: Landfill Gas | B41: mmBtu | C41: scf | D41: =1/0.000485 -> 2061.85567 | E41: scf / mmBtu
A42: Landfill Gas | B42: therm | C42: scf | D42: =D41/10 -> 206.185567 | E42: scf / therm
A43: Steam | B43: Mlb (1,000 pounds) | C43: mmBtu | D43: =D44*1000 -> 1.194 | E43: mmBtu / Mlb | F43: EPA, ENERGY STAR, https://www.energystar.gov/buildings/tools-and-resources/portfolio-manager-technical-reference-thermal-conversion-factors
A44: Steam | B44: lb | C44: mmBtu | D44: =1.194/1000 -> 0.001194 | E44: mmBtu / lb
A45: Steam | B45: short ton | C45: mmBtu | D45: =D44/'Unit Conversions'!C15 -> 2.388 | E45: mmBtu / short ton

Sheet Emission Factors
A3: Tool Sheet: Emission Factors
A5: All emission factors are sourced from EPA's Emission Factors Hub, June 2024 unless otherwise noted. Fuel emission factors presented represent the combustion-only (tank-to-wheel) emissions and do not represent upstream (well-to-wheel) emissions.
A6: Reference the below link to the EPA's Emission Factors Hub for source data information and links to the methodology and technical documents associated with each table.
A7: https://www.epa.gov/climateleadership/center-corporate-climate-leadership-ghg-emission-factors-hub
A9: Stationary Combustion
A11: Fuel Type | B11: CO2 Factor (kg CO2 / mmBtu) | C11: CH4 Factor (g CH4 / mmBtu) | D11: N2O Factor (g N2O / mmBtu) | E11: CO2 Factor (kg CO2 / unit) | F11: CH4 Factor (g CH4 / unit) | G11: N2O Factor (g N2O / unit) | H11: Unit
A12: Natural Gas | B12: 53.06 | C12: 1 | D12: 0.1 | E12: 0.05444 | F12: 0.00103 | G12: 0.0001 | H12: scf
A13: Distillate Fuel Oil No. 2 | B13: 73.96 | C13: 3 | D13: 0.6 | E13: 10.21 | F13: 0.41 | G13: 0.08 | H13: gallons
A14: Residual Fuel Oil No. 6 | B14: 75.1 | C14: 3 | D14: 0.6 | E14: 11.27 | F14: 0.45 | G14: 0.09 | H14: gallons
A15: Kerosene | B15: 75.2 | C15: 3 | D15: 0.6 | E15: 10.15 | F15: 0.41 | G15: 0.08 | H15: gallons
A16: Liquefied Petroleum Gases (LPG) | B16: 61.71 | C16: 3 | D16: 0.6 | E16: 5.68 | F16: 0.28 | G16: 0.06 | H16: gallons
A17: Anthracite Coal | B17: 103.69 | C17: 11 | D17: 1.6 | E17: 2602 | F17: 276 | G17: 40 | H17: short tons
A18: Bituminous Coal | B18: 93.28 | C18: 11 | D18: 1.6 | E18: 2325 | F18: 274 | G18: 40 | H18: short tons
A19: Sub-bituminous Coal | B19: 97.17 | C19: 11 | D19: 1.6 | E19: 1676 | F19: 190 | G19: 28 | H19: short tons
A20: Lignite Coal | B20: 97.72 | C20: 11 | D20: 1.6 | E20: 1389 | F20: 156 | G20: 23 | H20: short tons
A21: Mixed (Commercial Sector) | B21: 94.27 | C21: 11 | D21: 1.6 | E21: 2016 | F21: 235 | G21: 34 | H21: short tons
A22: Mixed (Electric Power Sector) | B22: 95.52 | C22: 11 | D22: 1.6 | E22: 1885 | F22: 217 | G22: 32 | H22: short tons
A23: Mixed (Industrial Coking) | B23: 93.9 | C23: 11 | D23: 1.6 | E23: 2468 | F23: 289 | G23: 42 | H23: short tons
A24: Mixed (Industrial Sector) | B24: 94.67 | C24: 11 | D24: 1.6 | E24: 2116 | F24: 246 | G24: 36 | H24: short tons
A25: Coal Coke | B25: 113.67 | C25: 11 | D25: 1.6 | E25: 2819 | F25: 273 | G25: 40 | H25: short tons
A26: Municipal Solid Waste | B26: 90.7 | C26: 32 | D26: 4.2 | E26: 902 | F26: 318 | G26: 42 | H26: short tons
A27: Petroleum Coke (Solid) | B27: 102.41 | C27: 32 | D27: 4.2 | E27: 3072 | F27: 960 | G27: 126 | H27: short tons
A28: Plastics | B28: 75 | C28: 32 | D28: 4.2 | E28: 2850 | F28: 1216 | G28: 160 | H28: short tons
A29: Tires | B29: 85.97 | C29: 32 | D29: 4.2 | E29: 2407 | F29: 896 | G29: 118 | H29: short tons
A30: Agricultural Byproducts | B30: 118.17 | C30: 32 | D30: 4.2 | E30: 975 | F30: 264 | G30: 35 | H30: short tons
A31: Peat | B31: 111.84 | C31: 32 | D31: 4.2 | E31: 895 | F31: 256 | G31: 34 | H31: short tons
A32: Solid Byproducts | B32: 105.51 | C32: 32 | D32: 4.2 | E32: 1096 | F32: 332 | G32: 44 | H32: short tons
A33: Wood and Wood Residuals | B33: 0 | C33: 7.2 | D33: 3.6 | E33: 1640 | F33: 126 | G33: 63 | H33: short tons
A34: Propane Gas | B34: 61.46 | C34: 3 | D34: 0.6 | E34: 0.15463 | F34: 0.007548 | G34: 0.00151 | H34: scf
A35: Landfill Gas | B35: 0 | C35: 3.2 | D35: 0.63 | E35: 0.025254 | F35: 0.001552 | G35: 0.000306 | H35: scf
A36: Biodiesel (100%) | B36: 73.84 | C36: 1.1 | D36: 0.11 | E36: 9.45 | F36: 0.14 | G36: 0.01 | H36: gallons
A37: Ethanol (100%) | B37: 68.44 | C37: 1.1 | D37: 0.11 | E37: 5.75 | F37: 0.09 | G37: 0.01 | H37: gallons
A38: Rendered Animal Fat | B38: 71.06 | C38: 1.1 | D38: 0.11 | E38: 8.88 | F38: 0.14 | G38: 0.01 | H38: gallons
A39: Vegetable Oil | B39: 81.55 | C39: 1.1 | D39: 0.11 | E39: 9.79 | F39: 0.13 | G39: 0.01 | H39: gallons
A41: Mobile Combustion
A43: Mobile Combustion CO2
A44: Fuel Type | B44: CO2 Emission Factor (kg CO2 / unit) | C44: Unit
A45: Aviation Gasoline | B45: 8.31 | C45: gallon
A46: Biodiesel | B46: 9.45 | C46: gallon
A47: Compressed Natural Gas (CNG) | B47: 0.05444 | C47: scf
A48: Diesel Fuel | B48: 10.21 | C48: gallon
A49: Ethanol | B49: 5.75 | C49: gallon
A50: Kerosene-Type Jet Fuel | B50: 9.75 | C50: gallon
A51: Liquefied Natural Gas (LNG) | B51: 4.5 | C51: gallon
A52: Liquefied Petroleum Gases (LPG) | B52: 5.68 | C52: gallon
A53: Motor Gasoline | B53: 8.78 | C53: gallon
A54: Residual Fuel Oil | B54: 11.27 | C54: gallon
A56: Mobile Combustion CH4 and N2O Emissions for On-Road Gasoline Vehicles
A57: Vehicle Type | B57: Model Year | C57: CH4 Factor (g CH4 / vehicle-mile) | D57: N2O Factor (g N2O / vehicle-mile) | E57: Notes
A58: Gasoline Passenger Cars | B58: 1984-93 | C58: 0.0704 | D58: 0.0647
B59: 1994 | C59: 0.06174 | D59: 0.06034
B60: 1995 | C60: 0.05308 | D60: 0.05598
B61: 1996 | C61: 0.043394 | D61: 0.050276
B62: 1997 | C62: 0.033708 | D62: 0.044572
B63: 1998 | C63: 0.024022 | D63: 0.038868
B64: 1999 | C64: 0.021457 | D64: 0.035508
B65: 2000 | C65: 0.017524 | D65: 0.030356
B66: 2001 | C66: 0.010513 | D66: 0.021172
B67: 2002 | C67: 0.010171 | D67: 0.020724
B68: 2003 | C68: 0.009504 | D68: 0.018087
B69: 2004 | C69: 0.00784 | D69: 0.008488
B70: 2005 | C70: 0.00751 | D70: 0.006706
B71: 2006 | C71: 0.007634 | D71: 0.007451
B72: 2007 | C72: 0.007226 | D72: 0.005213
B73: 2008 | C73: 0.007172 | D73: 0.004904
B74: 2009 | C74: 0.007114 | D74: 0.004585
B75: 2010 | C75: 0.007112 | D75: 0.00458
B76: 2011 | C76: 0.007116 | D76: 0.00459
B77: 2012 | C77: 0.007118 | D77: 0.004595
B78: 2013 | C78: 0.00712 | D78: 0.0046
B79: 2014 | C79: 0.007099 | D79: 0.004579
B80: 2015 | C80: 0.006837 | D80: 0.004239
B81: 2016 | C81: 0.00649 | D81: 0.003781
B82: 2017 | C82: 0.005365 | D82: 0.00179
B83: 2018 | C83: 0.00524 | D83: 0.001585
B84: 2019 | C84: 0.005105 | D84: 0.001452
B85: 2020 | C85: 0.005 | D85: 0.00135
B86: 2021 | C86: 0.00505 | D86: 0.001412
B87: 2022 | C87: 0.00505 | D87: 0.001412 | E87: Held constant from most recent data (year 2021 factor)
B88: 2023 | C88: 0.00505 | D88: 0.001412 | E88: Held constant from most recent data (year 2021 factor)
B89: 2024 | C89: 0.00505 | D89: 0.001412 | E89: Held constant from most recent data (year 2021 factor)
A90: Gasoline Light-Duty Trucks | B90: 1987-93 | C90: 0.0813 | D90: 0.103515
A91: (Vans, Pickup Trucks, SUVs) | B91: 1994 | C91: 0.06464 | D91: 0.0982
B92: 1995 | C92: 0.05168 | D92: 0.0908
B93: 1996 | C93: 0.0452 | D93: 0.0871
B94: 1997 | C94: 0.0452 | D94: 0.0871
B95: 1998 | C95: 0.041248 | D95: 0.078676
B96: 1999 | C96: 0.033344 | D96: 0.061828
B97: 2000 | C97: 0.033952 | D97: 0.063124
B98: 2001 | C98: 0.022096 | D98: 0.037852
B99: 2002 | C99: 0.024224 | D99: 0.042388
B100: 2003 | C100: 0.022112 | D100: 0.037312
B101: 2004 | C101: 0.011472 | D101: 0.00875
B102: 2005 | C102: 0.010544 | D102: 0.00641
B103: 2006 | C103: 0.0108 | D103: 0.007956
B104: 2007 | C104: 0.010272 | D104: 0.006072
B105: 2008 | C105: 0.009456 | D105: 0.003588
B106: 2009 | C106: 0.009456 | D106: 0.003588
B107: 2010 | C107: 0.00952 | D107: 0.00346
B108: 2011 | C108: 0.009568 | D108: 0.003364
B109: 2012 | C109: 0.009616 | D109: 0.003268
B110: 2013 | C110: 0.009504 | D110: 0.003492
B111: 2014 | C111: 0.009549 | D111: 0.003319
B112: 2015 | C112: 0.009438 | D112: 0.003126
B113: 2016 | C113: 0.009104 | D113: 0.002906
B114: 2017 | C114: 0.008392 | D114: 0.001775
B115: 2018 | C115: 0.008118 | D115: 0.001515
B116: 2019 | C116: 0.007988 | D116: 0.001335
B117: 2020 | C117: 0.00785 | D117: 0.0012 | E117: These factors are used for ethanol light-duty vehicles
B118: 2021 | C118: 0.00785 | D118: 0.0012
B119: 2022 | C119: 0.00785 | D119: 0.0012 | E119: Held constant from most recent data (year 2021 factor)
B120: 2023 | C120: 0.00785 | D120: 0.0012 | E120: Held constant from most recent data (year 2021 factor)
B121: 2024 | C121: 0.00785 | D121: 0.0012 | E121: Held constant from most recent data (year 2021 factor)
A122: Gasoline Heavy-Duty Vehicles | B122: 1985-86 | C122: 0.408975 | D122: 0.05152
B123: 1987 | C123: 0.36746 | D123: 0.08489
B124: 1988-1989 | C124: 0.34921 | D124: 0.09333
B125: 1990-1995 | C125: 0.324575 | D125: 0.11417
B126: 1996 | C126: 0.127775 | D126: 0.168025
B127: 1997 | C127: 0.092385 | D127: 0.172595
B128: 1998 | C128: 0.0655 | D128: 0.175
B129: 1999 | C129: 0.06479 | D129: 0.172432
B130: 2000 | C130: 0.063015 | D130: 0.166012
B131: 2001 | C131: 0.05769 | D131: 0.146752
B132: 2002 | C132: 0.06337 | D132: 0.167296
B133: 2003 | C133: 0.060172 | D133: 0.155289
B134: 2004 | C134: 0.029799 | D134: 0.016383
B135: 2005 | C135: 0.029745 | D135: 0.008265
B136: 2006 | C136: 0.02985 | D136: 0.02405
B137: 2007 | C137: 0.032238 | D137: 0.0015
B138: 2008 | C138: 0.034024 | D138: 0.0015
B139: 2009 | C139: 0.03393 | D139: 0.0015
B140: 2010 | C140: 0.031956 | D140: 0.0015
B141: 2011 | C141: 0.030358 | D141: 0.0015
B142: 2012 | C142: 0.031298 | D142: 0.0015
B143: 2013 | C143: 0.031298 | D143: 0.0015
B144: 2014 | C144: 0.031486 | D144: 0.0015
B145: 2015 | C145: 0.033184 | D145: 0.002105
B146: 2016 | C146: 0.032073 | D146: 0.006138
B147: 2017 | C147: 0.032873 | D147: 0.008379
B148: 2018 | C148: 0.032572 | D148: 0.008231
B149: 2019 | C149: 0.03295 | D149: 0.00908
B150: 2020 | C150: 0.03315 | D150: 0.00995 | E150: These factors are used for ethanol heavy-duty vehicles and buses
B151: 2021 | C151: 0.03315 | D151: 0.00995
B152: 2022 | C152: 0.03315 | D152: 0.00995 | E152: Held constant from most recent data (year 2021 factor)
B153: 2023 | C153: 0.03315 | D153: 0.00995 | E153: Held constant from most recent data (year 2021 factor)
B154: 2024 | C154: 0.03315 | D154: 0.00995 | E154: Held constant from most recent data (year 2021 factor)
A155: Gasoline Motorcycles | B155: 1960-1995 | C155: 0.007 | D155: 0.0083
B156: 1996-2005 | C156: 0 | D156: 0
B157: 2006-2024 | C157: 0.007 | D157: 0.0083 | E157: Held constant from most recent data (year 2021 factor)
A158: Note: The latest mobile combustion factors reflect year 2021 data. Therefore, for all vehicle model years 2022 onward, the 2021 year factor is used.
A160: Mobile Combustion CH4 and N2O Emissions for On-Road Diesel and Alternative Fuel Vehicles
A161: Vehicle Type | B161: Fuel Type | C161: Model Year | D161: CH4 Factor (g CH4 / vehicle-mile) | E161: N2O Factor (g N2O / vehicle-mile) | F161: Notes
A162: Passenger Cars | B162: Diesel | C162: 1960-1982 | D162: 0.0006 | E162: 0.0012
C163: 1983-2006 | D163: 0.0005 | E163: 0.001
C164: 2007-2024 | D164: 0.0302 | E164: 0.0192 | F164: Held constant for 2022 onwards from most recent data year (year 2021 data).
A165: Light-Duty Trucks | B165: Diesel | C165: 1960-1982 | D165: 0.0011 | E165: 0.0017
C166: 1983-2006 | D166: 0.0009 | E166: 0.0014
C167: 2007-2024 | D167: 0.029 | E167: 0.0214 | F167: Held constant for 2022 onwards from most recent data year (year 2021 data).
A168: Medium- and Heavy-Duty Vehicles | B168: Diesel | C168: 1960-2006 | D168: 0.0051 | E168: 0.0048
C169: 2007-2024 | D169: 0.0095 | E169: 0.0431 | F169: Held constant for 2022 onwards from most recent data year (year 2021 data).
A170: Light-Duty Cars | B170: Methanol | D170: 0.013 | E170: 0.004
B171: Ethanol | D171: 0.013 | E171: 0.004
B172: CNG | D172: 0.133 | E172: 0.004
B173: LPG | D173: 0.013 | E173: 0.004
B174: Biodiesel | D174: 0.036 | E174: 0.001
A175: Light-Duty Trucks | B175: Ethanol | D175: 0.014 | E175: 0.005
B176: CNG | D176: 0.144 | E176: 0.005
B177: LPG | D177: 0.014 | E177: 0.005
B178: LNG | D178: 0.144 | E178: 0.005
B179: Biodiesel | D179: 0.127 | E179: 0.001
A180: Medium-Duty Trucks | B180: CNG | D180: 1.807 | E180: 0.034
B181: LPG | D181: 0.181 | E181: 0.034
B182: LNG | D182: 1.807 | E182: 0.034
B183: Biodiesel | D183: 0.04 | E183: 0.005
A184: Heavy-Duty Trucks | B184: Methanol | D184: 0.073 | E184: 0.027
B185: Ethanol | D185: 0.073 | E185: 0.027
B186: CNG | D186: 0.921 | E186: 0.017
B187: LPG | D187: 0.092 | E187: 0.017
B188: LNG | D188: 0.921 | E188: 0.017
B189: Biodiesel | D189: 0.014 | E189: 0.002
A190: Buses | B190: Methanol | D190: 0.193 | E190: 0.029
B191: Ethanol | D191: 0.193 | E191: 0.029
B192: CNG | D192: 2.753 | E192: 0.017
B193: LPG | D193: 0.275 | E193: 0.017
B194: LNG | D194: 2.753 | E194: 0.017
B195: Biodiesel | D195: 0.016 | E195: 0.003
A197: Mobile Combustion CH4 and N2O Emissions for Non-Road Vehicles
A198: Vehicle Type | B198: Fuel Type | C198: CH4 Factor (g CH4 / gallon) | D198: N2O Factor (g N2O / gallon)
A199: Ships and Boats | B199: Residual Fuel Oil | C199: 1.104561553 | D199: 0.3145676914
B200: Gasoline (2 stroke) | C200: 4.635798873 | D200: 0.07814712128
B201: Gasoline (4 stroke) | C201: 2.255102643 | D201: 0.008372905852
B202: Diesel | C202: 6.408114397 | D202: 0.1723297697
A203: Locomotives | B203: Diesel | C203: 0.7978230077 | D203: 0.2553033624
A204: Aircraft | B204: Jet Fuel | C204: 0 | D204: 0.3002252681
B205: Aviation Gasoline | C205: 7.061766784 | D205: 0.1069964664
A206: Agricultural Equipment | B206: Gasoline (2 stroke) | C206: 6.921602171 | D206: 0.4744646649
B207: Gasoline (4 stroke) | C207: 1.939723189 | D207: 1.208489411
B208: Gasoline Off-Road Trucks | C208: 1.939723189 | D208: 1.200116505
B209: Diesel Equipment | C209: 1.266942936 | D209: 1.072274122
B210: Diesel Off-Road Trucks | C210: 0.9127095208 | D210: 0.5552848133
... 219 more rows

Sheet DropDown (hidden)
A1: Tab Navigation | B1: Help Tab Navigation | C1: Fuel Combusted | D1: OnRoad | E1: NonRoad | F1: TYPE OF REFRIGERATION EQUIPMENT | G1: CHOICES FOR REFRIGERANT | H1: Fire Suppression Equipment | I1: Fire Suppression Gas | J1: GHGs | K1: Electricity eGRID Subregions | L1: Steam Fuel Type | M1: Travel by Vehicle Miles | N1: Travel by Passenger Miles | O1: Travel by Air | P1: Product Transport Vehicle Type | Q1: Product Transport Type | R1: Fuel | S1: Fuel State | T1: Gas | U1: Liquid | V1: Solid | W1: Mass | Y1: Aluminum Cans | Z1: Aluminum Ingot | AA1: Steel Cans | AB1: Copper Wire | AC1: Glass | AD1: HDPE | AE1: LDPE | AF1: PET | AG1: LLDPE | AH1: PP | AI1: PS | AJ1: PVC | AK1: PLA | AL1: Corrugated Containers | AM1: Magazines and Third class mail | AN1: Newspaper | AO1: Office Paper | AP1: Phonebooks | AQ1: Textbooks | AR1: Dimensional Lumber | AS1: Medium density Fiberboard | AT1: Food Waste non meat | AU1: Food Waste meat only | AV1: Beef | AW1: Poultry | AX1: Grains | AY1: Bread | AZ1: Fruits and Vegetables | BA1: Dairy Products | BB1: Yard Trimmings | BC1: Grass | BD1: Leaves | BE1: Branches | BF1: Mixed Paper general | BG1: Mixed Paper primarily residential | BH1: Mixed Paper primarily from offices | BI1: Mixed Metals | BJ1: Mixed Plastics | BK1: Mixed Recyclables | BL1: Food Waste | BM1: Mixed Organics | BN1: Mixed MSW municipal solid waste | BO1: Carpet | BP1: Desktop CPUs | BQ1: Portable Electronic Devices | BR1: Flat panel Displays | BS1: CRT Displays | BT1: Electronic Peripherals | BU1: Hard copy Devices | BV1: Mixed Electronics | BW1: Clay Bricks | BX1: Concrete | BY1: Fly Ash | BZ1: Tires | CA1: Asphalt Concrete | CB1: Asphalt Shingles | CC1: Drywall | CD1: Fiberglass Insulation | CE1: Structural Steel | CF1: Vinyl Flooring | CG1: Wood Flooring | CI1: Offset Scope/Category
A2: Stationary Combustion | B2: Help - Data Management | C2: Anthracite Coal | D2: Passenger Cars - Gasoline | E2: Ships and Boats - Residual Fuel Oil | F2: Domestic Refrigeration | G2: Carbon dioxide | H2: Fixed | I2: Carbon dioxide | J2: Carbon dioxide | K2: ASCC Alaska Grid | L2: Natural Gas | M2: Passenger Car | N2: ='Emission Factors'!A358 -> Intercity Rail - Northeast Corridor | O2: Air Short Haul (< 300 miles) | P2: Medium- and Heavy-duty Truck | Q2: Medium- and Heavy-Duty Truck | R2: Anthracite Coal | S2: Solid | T2: SCF | U2: Gallons | V2: Short Ton | W2: ='Unit Conversions'!A12 -> gram (g) | Y2: Recycled | Z2: Recycled | AA2: Recycled | AB2: Recycled | AC2: Recycled | AD2: Recycled | AE2: Landfilled | AF2: Recycled | AG2: Landfilled | AH2: Landfilled | AI2: Landfilled | AJ2: Landfilled | AK2: Landfilled | AL2: Recycled | AM2: Recycled | AN2: Recycled | AO2: Recycled | AP2: Recycled | AQ2: Recycled | AR2: Recycled | AS2: Recycled | AT2: Landfilled | AU2: Landfilled | AV2: Landfilled | AW2: Landfilled | AX2: Landfilled | AY2: Landfilled | AZ2: Landfilled | BA2: Landfilled | BB2: Landfilled | BC2: Landfilled | BD2: Landfilled | BE2: Landfilled | BF2: Recycled | BG2: Recycled | BH2: Recycled | BI2: Recycled | BJ2: Recycled | BK2: Recycled | BL2: Landfilled | BM2: Landfilled | BN2: Landfilled | BO2: Landfilled | BP2: Landfilled | BQ2: Landfilled | BR2: Landfilled | BS2: Landfilled | BT2: Landfilled | BU2: Landfilled | BV2: Landfilled | BW2: Landfilled | BX2: Recycled | BY2: Recycled | BZ2: Recycled | CA2: Recycled | CB2: Recycled | CC2: Landfilled | CD2: Recycled | CE2: Recycled | CF2: Landfilled | CG2: Landfilled | CI2: Scope 1
A3: Mobile Sources | B3: Help - Stationary Combustion | C3: Bituminous Coal | D3: Light-Duty Trucks - Gasoline | E3: Ships and Boats - Gasoline (2 stroke) | F3: Stand-Alone Commercial | G3: Sulfur hexafluoride | H3: Portable | I3: HFC-23 | J3: Methane | K3: ASCC Miscellaneous | L3: Distillate Fuel Oil No. 2 | M3: Light-Duty Truck | N3: ='Emission Factors'!A359 -> Intercity Rail - Other Routes | O3: Air Medium Haul (>= 300 miles, < 2300 miles) | P3: Light-Duty Truck | Q3: Rail | R3: Bituminous Coal | S3: Solid | T3: Therm | U3: MMBtu | V3: MMBtu | W3: ='Unit Conversions'!A13 -> kilogram (kg) | Y3: Landfilled | Z3: Landfilled | AA3: Landfilled | AB3: Landfilled | AC3: Landfilled | AD3: Landfilled | AE3: Combusted | AF3: Landfilled | AG3: Combusted | AH3: Combusted | AI3: Combusted | AJ3: Combusted | AK3: Combusted | AL3: Landfilled | AM3: Landfilled | AN3: Landfilled | AO3: Landfilled | AP3: Landfilled | AQ3: Landfilled | AR3: Landfilled | AS3: Landfilled | AT3: Combusted | AU3: Combusted | AV3: Combusted | AW3: Combusted | AX3: Combusted | AY3: Combusted | AZ3: Combusted | BA3: Combusted | BB3: Combusted | BC3: Combusted | BD3: Combusted | BE3: Combusted | BF3: Landfilled | BG3: Landfilled | BH3: Landfilled | BI3: Landfilled | BJ3: Landfilled | BK3: Landfilled | BL3: Combusted | BM3: Combusted | BN3: Combusted | BO3: Combusted | BP3: Combusted | BQ3: Combusted | BR3: Combusted | BS3: Combusted | BT3: Combusted | BU3: Combusted | BV3: Combusted | BX3: Landfilled | BY3: Landfilled | BZ3: Landfilled | CA3: Landfilled | CB3: Landfilled | CD3: Landfilled | CE3: Landfilled | CF3: Combusted | CG3: Combusted | CI3: Scope 2 - Location-Based
A4: Refrigeration and AC | B4: Help - Mobile Sources | C4: Sub-bituminous Coal | D4: Heavy-Duty Vehicles - Gasoline | E4: Ships and Boats - Gasoline (4 stroke) | F4: Medium/Large Commercial | G4: Nitrogen trifluoride | I4: HFC-125 | J4: Nitrous oxide | K4: WECC Southwest | L4: Residual Fuel Oil No. 6 | M4: Motorcycle | N4: ='Emission Factors'!A360 -> Intercity Rail - National Average | O4: Air Long Haul (>= 2300 miles) | P4: Passenger Car | Q4: Aircraft | R4: Sub-bituminous Coal | S4: Solid | T4: MMBtu | W4: ='Unit Conversions'!A14 -> metric ton | Y4: Combusted | Z4: Combusted | AA4: Combusted | AB4: Combusted | AC4: Combusted | AD4: Combusted | AF4: Combusted | AK4: Composted | AL4: Combusted | AM4: Combusted | AN4: Combusted | AO4: Combusted | AP4: Combusted | AQ4: Combusted | AR4: Combusted | AS4: Combusted | AT4: Composted | AU4: Anaerobically Digested (Dry Digestate with Curing) | AV4: Composted | AW4: Composted | AX4: Composted | AY4: Composted | AZ4: Composted | BA4: Composted | BB4: Composted | BC4: Composted | BD4: Composted | BE4: Composted | BF4: Combusted | BG4: Combusted | BH4: Combusted | BI4: Combusted | BJ4: Combusted | BK4: Combusted | BL4: Composted | BM4: Composted | BZ4: Combusted | CB4: Combusted | CI4: Scope 2 - Market-Based
A5: Fire Suppression | B5: Help - Refrigeration and AC | C5: Lignite Coal | D5: Motorcycles - Gasoline | E5: Ships and Boats - Diesel | F5: Transport Refrigeration | G5: HFC-23 | I5: HFC-134a | J5: HFC-23 | K5: WECC California | L5: Kerosene | N5: ='Emission Factors'!A361 -> Commuter Rail | Q5: Waterborne Craft | R5: Lignite Coal | S5: Solid | W5: ='Unit Conversions'!A15 -> pounds (lb) | AT5: Anaerobically Digested (Dry Digestate with Curing) | AU5: Anaerobically Digested (Wet Digestate with Curing) | AV5: Anaerobically Digested (Dry Digestate with Curing) | AW5: Anaerobically Digested (Dry Digestate with Curing) | AX5: Anaerobically Digested (Dry Digestate with Curing) | AY5: Anaerobically Digested (Dry Digestate with Curing) | AZ5: Anaerobically Digested (Dry Digestate with Curing) | BA5: Anaerobically Digested (Dry Digestate with Curing) | BB5: Anaerobically Digested (Dry Digestate with Curing) | BC5: Anaerobically Digested (Dry Digestate with Curing) | BD5: Anaerobically Digested (Dry Digestate with Curing) | BE5: Anaerobically Digested (Dry Digestate with Curing) | CI5: Scope 3 - Business Travel
A6: Purchased Gases | B6: Help - Fire Suppression | C6: Mixed (Commercial Sector) | D6: Passenger Cars - Diesel | E6: Locomotives - Diesel | F6: Industrial Refrigeration | G6: HFC-32 | I6: HFC-227ea | J6: HFC-32 | K6: ERCOT All | L6: Liquefied Petroleum Gases (LPG) | N6: ='Emission Factors'!A362 -> Transit Rail (i.e. Subway, Tram) | R6: Mixed (Commercial Sector) | S6: Solid | W6: ='Unit Conversions'!A16 -> short ton | AT6: Anaerobically Digested (Wet Digestate with Curing) | AV6: Anaerobically Digested (Wet Digestate with Curing) | AW6: Anaerobically Digested (Wet Digestate with Curing) | AX6: Anaerobically Digested (Wet Digestate with Curing) | AY6: Anaerobically Digested (Wet Digestate with Curing) | AZ6: Anaerobically Digested (Wet Digestate with Curing) | BA6: Anaerobically Digested (Wet Digestate with Curing) | CI6: Scope 3 - Employee Commuting
A7: Electricity | B7: Help - Purchased Gases | C7: Mixed (Electric Power Sector) | D7: Light-Duty Trucks - Diesel | E7: Aircraft - Jet Fuel | F7: Chillers | G7: HFC-41 | I7: HFC-236fa | J7: HFC-41 | K7: FRCC All | L7: Anthracite Coal | N7: ='Emission Factors'!A363 -> Bus | R7: Mixed (Electric Power Sector) | S7: Solid | CI7: Scope 3 - Upstream Transportation and Distribution
A8: Steam | B8: Help - Electricity | C8: Mixed (Industrial Coking) | D8: Medium- and Heavy-Duty Vehicles - Diesel | E8: Aircraft - Aviation Gasoline | F8: Residential/Commercial A/C | G8: HFC-125 | I8: PFC-14 | J8: HFC-125 | K8: HICC Miscellaneous | L8: Bituminous Coal | R8: Mixed (Industrial Coking) | S8: Solid | CI8: Scope 3 - Waste
A9: Business Travel | B9: Help - Steam | C9: Mixed (Industrial Sector) | D9: Light-Duty Cars - Methanol | E9: Agricultural Equipment - Gasoline (2 stroke) | F9: Maritime A/C Units | G9: HFC-134 | I9: PFC-31-10 | J9: HFC-134 | K9: HICC Oahu | L9: Sub-bituminous Coal | R9: Mixed (Industrial Sector) | S9: Solid
A10: Commuting | B10: Help - Business Travel | C10: Coal Coke | D10: Light-Duty Cars - Ethanol | E10: Agricultural Equipment - Gasoline (4 stroke) | F10: Railway A/C Units | G10: HFC-134a | J10: HFC-134a | K10: MRO East | L10: Lignite Coal | R10: Coal Coke | S10: Solid
A11: Upstream Trans and Dist | B11: Help - Commuting | C11: Municipal Solid Waste | D11: Light-Duty Cars - CNG | E11: Agricultural Equipment - Gasoline Off-Road Trucks | F11: Buses A/C Units | G11: HFC-143 | J11: HFC-143 | K11: MRO West | L11: Mixed (Electric Power Sector) | R11: Municipal Solid Waste | S11: Solid
A12: Waste | B12: Help - Upstream Trans and Dist | C12: Petroleum Coke (Solid) | D12: Light-Duty Cars - LPG | E12: Agricultural Equipment - Diesel Equipment | F12: Other Mobile A/C Units | G12: HFC-143a | J12: HFC-143a | K12: NPCC New England | L12: Coal Coke | R12: Petroleum Coke (Solid) | S12: Solid
A13: Offsets | B13: Help - Market-Based Method | C13: Plastics | D13: Light-Duty Cars - Biodiesel | E13: Agricultural Equipment - Diesel Off-Road Trucks | G13: HFC-152 | J13: HFC-152 | K13: WECC Northwest | L13: Wood and Wood Residuals | R13: Plastics | S13: Solid
B14: Help - Offsets | C14: Tires | D14: Light-Duty Trucks - Ethanol | E14: Agricultural Equipment - LPG | G14: HFC-152a | J14: HFC-152a | K14: NPCC NYC/Westchester | L14: Landfill Gas | R14: Tires | S14: Solid
C15: Agricultural Byproducts | D15: Light-Duty Trucks - CNG | E15: Construction/Mining Equipment - Gasoline (2 stroke) | G15: HFC-161 | J15: HFC-161 | K15: NPCC Long Island | R15: Agricultural Byproducts | S15: Solid
C16: Peat | D16: Light-Duty Trucks - LPG | E16: Construction/Mining Equipment - Gasoline (4 stroke) | G16: HFC-227ea | J16: HFC-227ea | K16: NPCC Upstate NY | R16: Peat | S16: Solid
C17: Solid Byproducts | D17: Light-Duty Trucks - LNG | E17: Construction/Mining Equipment - Gasoline Off-Road Trucks | G17: HFC-236cb | J17: HFC-236cb | K17: Puerto Rico Miscellaneous | R17: Solid Byproducts | S17: Solid
C18: Wood and Wood Residuals | D18: Light-Duty Trucks - Biodiesel | E18: Construction/Mining Equipment - Diesel Equipment | G18: HFC-236ea | J18: HFC-236ea | K18: RFC East | R18: Wood and Wood Residuals | S18: Solid
C19: Natural Gas | D19: Medium-Duty Trucks - CNG | E19: Construction/Mining Equipment - Diesel Off-Road Trucks | G19: HFC-236fa | J19: HFC-236fa | K19: RFC Michigan | R19: Natural Gas | S19: Gas
C20: Propane Gas | D20: Medium-Duty Trucks - LPG | E20: Construction/Mining Equipment - LPG | G20: HFC-245ca | J20: HFC-245ca | K20: RFC West | R20: Propane Gas | S20: Gas
C21: Landfill Gas | D21: Medium-Duty Trucks - LNG | E21: Lawn and Garden Equipment - Gasoline (2 stroke) | G21: HFC-245fa | J21: HFC-245fa | K21: WECC Rockies | R21: Landfill Gas | S21: Gas
C22: Distillate Fuel Oil No. 2 | D22: Medium-Duty Trucks - Biodiesel | E22: Lawn and Garden Equipment - Gasoline (4 stroke) | G22: HFC-365mfc | J22: HFC-365mfc | K22: SPP North | R22: Distillate Fuel Oil No. 2 | S22: Liquid
C23: Residual Fuel Oil No. 6 | D23: Heavy-Duty Trucks - Methanol | E23: Lawn and Garden Equipment - Diesel | G23: HFC-43-10mee | J23: HFC-43-10mee | K23: SPP South | R23: Residual Fuel Oil No. 6 | S23: Liquid
C24: Kerosene | D24: Heavy-Duty Trucks - Ethanol | E24: Lawn and Garden Equipment - LPG | G24: PFC-14 | J24: Sulfur hexafluoride | K24: SERC Mississippi Valley | R24: Kerosene | S24: Liquid
C25: Liquefied Petroleum Gases (LPG) | D25: Heavy-Duty Trucks - CNG | E25: Airport Equipment - Gasoline | G25: PFC-116 | J25: Nitrogen trifluoride | K25: SERC Midwest | R25: Liquefied Petroleum Gases (LPG) | S25: Liquid
C26: Biodiesel (100%) | D26: Heavy-Duty Trucks - LPG | E26: Airport Equipment - Diesel | G26: PFC-218 | J26: PFC-14 | K26: SERC South | R26: Biodiesel (100%) | S26: Liquid
C27: Ethanol (100%) | D27: Heavy-Duty Trucks - LNG | E27: Airport Equipment - LPG | G27: PFC-318 | J27: PFC-116 | K27: SERC Tennessee Valley | R27: Ethanol (100%) | S27: Liquid
C28: Rendered Animal Fat | D28: Heavy-Duty Trucks - Biodiesel | E28: Industrial/Commercial Equipment - Gasoline (2 stroke) | G28: PFC-31-10 | J28: PFC-218 | K28: SERC Virginia/Carolina | R28: Rendered Animal Fat | S28: Liquid
C29: Vegetable Oil | D29: Buses - Methanol | E29: Industrial/Commercial Equipment - Gasoline (4 stroke) | G29: PFC-41-12 | J29: PFC-318 | K29: US Average | R29: Vegetable Oil | S29: Liquid
D30: Buses - Ethanol | E30: Industrial/Commercial Equipment - Diesel | G30: PFC-51-14 | J30: PFC-31-10
D31: Buses - CNG | E31: Industrial/Commercial Equipment - LPG | G31: PFC-91-18 | J31: PFC-41-12
D32: Buses - LPG | E32: Logging Equipment - Gasoline (2 stroke) | G32: R-401A | J32: PFC-51-14
D33: Buses - LNG | E33: Logging Equipment - Gasoline (4 stroke) | G33: R-401B | J33: PFC-91-18
D34: Buses - Biodiesel | E34: Logging Equipment - Diesel | G34: R-401C
E35: Railroad Equipment - Gasoline | G35: R-402A
E36: Railroad Equipment - Diesel | G36: R-402B
E37: Railroad Equipment - LPG | G37: R-403B
E38: Recreational Equipment - Gasoline (2 stroke) | G38: R-404A
E39: Recreational Equipment - Gasoline (4 stroke) | G39: R-406A
E40: Recreational Equipment - Diesel | G40: R-407A
E41: Recreational Equipment - LPG | G41: R-407B
G42: R-407C
G43: R-407D
G44: R-408A
G45: R-409A
G46: R-410A
G47: R-410B
G48: R-411A
G49: R-411B
G50: R-414A
G51: R-414B
G52: R-417A
G53: R-422A
G54: R-422D
G55: R-424A
G56: R-426A
G57: R-428A
G58: R-434A
G59: R-507A
G60: R-508A
G61: R-508B

Sheet Help - Data Management
C2: Stationary Combustion
A4: Data Management - HELP SHEET
A6: On this sheet you will find general suggestions regarding GHG inventory data management.
A8: DATA MANAGEMENT
A9: This Calculator provides the calculations to quantify your organization's GHG emissions based on annual totals for activity data, which are entered in the ORANGE data entry cells in this workbook. It is good practice to use a spreadsheet or database to track more detailed activity data, such as monthly energy consumption, and aggregate that detailed data into annual totals for entry into the Calculator. This approach provides an "audit trail" that retraces the steps completed to arrive at the annual usage numbers you enter into the Calculator. ENERGY STAR's Portfolio Manager is one database option if your business is already using this tool. (More information on Portfolio Manager is available in the Guide to GHG Management). The bullets below suggest the type of data you may want to store in the data management spreadsheet or database.
B11: A List of Facilities and Attributes | E11: Purchased Gas Data
B12: * Facility Name or Site ID | E12: * Types of Gas Purchased
B13: * Address (including zip code) | E13: * Amount of Gas Purchased
B14: * Floor area (sq ft) | E14: Steam Data
B15: * Number of Employees | E15: * Monthly Consumption Data by Meter or Facility
B16: * Open and Close Date of Facility | E16: * Monthly Cost Data by Meter or Facility
B17: * Type of Facility | E17: * Steam Provider Emission Factors
B18: Electricity Data | E18: * Fuel Type Used to Generate Steam
B19: * Monthly Consumption Data by Meter or Facility | E19: * Boiler Efficiency
B20: * Monthly Cost Data by Meter or Facility | E20: Business Travel
B21: * Record of renewable energy purchased through contractual instruments | E21: * Mode of Transportation
B22: Stationary Fuel Data (for each Fuel Type) | E22: * Mileage by Trip (i.e., for each leg of transport)
B23: * Monthly Consumption Data by Meter or Facility | E23: Commuting
B24: * Monthly Cost Data by Meter or Facility | E24: * Mode of Transportation per Employee
B25: Mobile Fuel Data | E25: * Mileage by Trip (i.e., for each leg of transport)
B26: * List of Vehicles (Year, Make, Model, Fuel Type) | E26: Product Transport
B27: * Fuel Consumption by Vehicle | E27: * Mode of Transportation for each Shipment
B28: * Fuel Cost by Vehicle | E28: * Weight of Product Transported for each Shipment
B29: * Miles Traveled by Vehicle | E29: * Distance Product Transported for each Shipment
B30: Refrigeration and AC Data
B31: * Inventory of Equipment by Facility
B32: * Refrigerant Capacity of Equipment
B33: * Refrigerant Purchase, Inventory, and Disposal Data
B34: Fire Suppression Data
B35: * Inventory of Equipment by Facility
B36: * Fire Suppressant Capacity of Equipment
B37: * Fire Suppressant Purchase, Inventory, and Disposal Data
B38: Disposal Data
A40: QUALITY ASSURANCE/QUALITY CONTROL (QA/QC) - Suggested Checks
A41: The accuracy of a GHG inventory depends on the accuracy of the activity data. Here are a few quick checks to make sure your data are realistic. If any of these checks lead to questions, it is best to review the data month by month to look for data points that are significantly higher or lower than other points. Checking data sources such as utility bills can confirm data entry accuracy.
B43: Benchmarks
B44: Compare your energy consumption data against typical benchmarks.
B45: 1. Compare your energy consumption data per square foot of floor area against the averages by building type and region in the tables below. See below for building type definitions.
B46: 2. Does any facility look significantly higher or lower than these averages? If so, can the difference be explained?
B48: Electricity Intensity | C48: kWh electricity / sq ft / year
B49: Principal Building Activity | C49: Northeast | D49: Midwest | E49: South | F49: West
B50: Education | C50: 7.9 | D50: 8.1 | E50: 11.4 | F50: 9
B51: Food sales | C51: Insufficient Data | D51: 67.3 | E51: 53.7 | F51: Insufficient Data
B52: Food service | C52: 29.7 | D52: 43 | E52: 52.7 | F52: 36.9
B53: Health care | C53: 19 | D53: 25 | E53: 27.3 | F53: 22.2
B54: Inpatient | C54: 22.4 | D54: 28.3 | E54: 32.2 | F54: 29.5
B55: Outpatient | C55: 15.9 | D55: 18.6 | E55: 19.6 | F55: 15.9
B56: Lodging | C56: 13.7 | D56: 14.8 | E56: 15.2 | F56: 13.2
B57: Mercantile | C57: 15.1 | D57: 15.4 | E57: 17.8 | F57: 17.2
B58: Retail (other than mall) | C58: 11.3 | D58: 12.7 | E58: 15.3 | F58: 13
B59: Enclosed and strip malls | C59: 17.9 | D59: 18.9 | E59: 20.2 | F59: 20.1
B60: Office | C60: 13.8 | D60: 12 | E60: 15.4 | F60: 12.5
B61: Public assembly | C61: 9.6 | D61: 11.6 | E61: 15.1 | F61: 9.4
B62: Public order and safety | C62: Insufficient Data | D62: Insufficient Data | E62: 16.7 | F62: 11.6
B63: Religious worship | C63: 5.1 | D63: 4.2 | E63: 5.4 | F63: 4.2
B64: Service | C64: 7.3 | D64: 5.7 | E64: 9 | F64: 7.6
B65: Warehouse and storage | C65: 6 | D65: 5.2 | E65: 6.5 | F65: 5.5
B66: Other | C66: 31.4 | D66: 24 | E66: 25.3 | F66: 45.5
B67: Vacant | C67: Insufficient Data | D67: 4.2 | E67: 4.9 | F67: Insufficient Data
B69: Natural Gas Intensity | C69: standard cubic feet (scf) natural gas / sq ft / year
B70: Principal Building Activity | C70: Northeast | D70: Midwest | E70: South | F70: West
B71: Education | C71: 41.5 | D71: 38.7 | E71: 21.2 | F71: 21.9
B72: Food sales | C72: Insufficient Data | D72: 75.4 | E72: Insufficient Data | F72: Insufficient Data
B73: Food service | C73: Insufficient Data | D73: 212 | E73: 152.2 | F73: 106.4
B74: Health care | C74: 58.2 | D74: 59.4 | E74: 63.5 | F74: 54.2
B75: Inpatient | C75: 89.5 | D75: 71.1 | E75: 76 | F75: 84
B76: Outpatient | C76: 30.9 | D76: 34 | E76: 22.8 | F76: 22.4
B77: Lodging | C77: 45.7 | D77: 44.1 | E77: 27.1 | F77: 38.6
B78: Mercantile | C78: 41.9 | D78: 41.4 | E78: 28.9 | F78: 37.1
B79: Retail (other than mall) | C79: 25 | D79: 26.4 | E79: 20 | F79: 22.5
B80: Enclosed and strip malls | C80: 49.2 | D80: 58.9 | E80: 34.2 | F80: 43.9
B81: Office | C81: 20.6 | D81: 26.3 | E81: 18.7 | F81: 18.6
B82: Public assembly | C82: 52.6 | D82: 48.5 | E82: 28.7 | F82: 33.5
B83: Public order and safety | C83: Insufficient Data | D83: Insufficient Data | E83: 40.2 | F83: 34.8
B84: Religious worship | C84: 33.8 | D84: 28.6 | E84: 16.7 | F84: 17.4
B85: Service | C85: 38.2 | D85: 38.3 | E85: 51.3 | F85: 39.1
B86: Warehouse and storage | C86: 19.3 | D86: 27.7 | E86: 13.5 | F86: 10.4
B87: Other | C87: 38.7 | D87: Insufficient Data | E87: 21.2 | F87: Insufficient Data
B88: Vacant | C88: Insufficient Data | D88: Insufficient Data | E88: Insufficient Data | F88: Insufficient Data
B90: Fuel Oil Intensity | C90: gallons fuel oil / sq ft / year
B91: Principal Building Activity | C91: Northeast | D91: Midwest | E91: South | F91: West
B92: Education | C92: 0.1305 | D92: 0.0288 | E92: 0.0432 | F92: Insufficient Data
B93: Health care | C93: 0.048 | D93: 0.0201 | E93: 0.0099 | F93: Insufficient Data
B94: Office | C94: 0.0445 | D94: 0.0052 | E94: 0.0057 | F94: 0.002
B95: All others | C95: 0.0915 | D95: 0.017 | E95: 0.0145 | F95: Insufficient Data
B96: Source:
B97: 1. Source- EIA's 2018 Commercial Buildings Energy Consumption Survey, Table C15 (Electricity), Table C25 ( Natural Gas), Table C35 (Fuel Oil). https://www.eia.gov/consumption/commercial/data/2018/index.php?view=consumption#c33-c36
B98: 2. Building Type Definitions Source- http://www.eia.gov/consumption/commercial/building-type-definitions.cfm
B100: Calculated Unit Costs
B101: Calculated unit costs that are out of expected ranges can indicate data entry errors.
B102: 1. Use the cost and consumption data entered into your data management file to calculate the cost per unit of consumption for each month and each emissions source.
B103: 2. Is the unit cost within expected ranges? Is it fairly constant month to month? Keep in mind that very low consumption (such as with heating fuel during the summer) can skew the unit cost due to fixed monthly fees.
B104: 3. If the calculated unit cost is not reasonable, is there an error in either the consumption data or the cost data?
B106: Year Over Year Comparison
B107: Compare usage data from one year to the next.
B108: 1. Is there a significant change in consumption data year over year? If so, hone in on the facilities causing the change.
B109: 2. If there is a significant change, can it be explained?
B110: 3. If this amount is not reasonable, is there an error in either the consumption data or the data entry? Check monthly data by facility.
B112: Building Types
B114: Building Type | C114: Description | F114: Examples
B115: Education | C115: Buildings used for academic or technical classroom instruction, such as elementary, middle, or high schools, and classroom buildings on college or university campuses. Buildings on education campuses for which the main use is not classroom are included in the category relating to their use. For example, administration buildings are part of "Office," dormitories are "Lodging," and libraries are "Public Assembly." | F115: elementary or middle school, high school, college or university, preschool or daycare, adult education, career or vocational training, religious education
B116: Food Sales | C116: Buildings used for retail or wholesale of food. | F116: grocery store or food market, gas station with a convenience store, convenience store,
B117: Food Service | C117: Buildings used for preparation and sale of food and beverages for consumption. | F117: fast food, restaurant or cafeteria, bar, catering service or reception hall, coffee, bagel, or doughnut shop, ice cream or frozen yogurt shop
B118: Health Care (Inpatient) | C118: Buildings used as diagnostic and treatment facilities for inpatient care. | F118: hospital, inpatient rehabilitation
B119: Health Care (Outpatient) | C119: Buildings used as diagnostic and treatment facilities for outpatient care. Medical offices are included here if they use any type of diagnostic medical equipment (if they do not, they are categorized as an office building). | F119: medical office (see previous column), clinic or other outpatient health care, outpatient rehabilitation, veterinarian
B120: Lodging | C120: Buildings used to offer multiple accommodations for short-term or long-term residents, including skilled nursing and other residential care buildings. | F120: motel or inn, hotel, dormitory, fraternity, or sorority, retirement home, nursing home, assisted living, or other residential care, convent or monastery, shelter, orphanage, or children's home, halfway house
B121: Mercantile (Retail Other Than Mall) | C121: Buildings used for the sale and display of goods other than food. | F121: retail store, beer, wine, or liquor store, rental center, dealership or showroom for vehicles or boats, studio/gallery
B122: Mercantile (Enclosed and Strip Malls) | C122: Shopping malls comprised of multiple connected establishments. | F122: enclosed mall, strip shopping center
B123: Office | C123: Buildings used for general office space, professional office, or administrative offices. Medical offices are included here if they do not use any type of diagnostic medical equipment (if they do, they are categorized as an outpatient health care building). | F123: administrative or professional office, government office, mixed-use office, bank or other financial institution, medical office (see previous column), sales office, contractor's office (e.g. construction, plumbing, HVAC), non-profit or social services, city hall or city center, religious office, call center
B124: Public Assembly | C124: Buildings in which people gather for social or recreational activities, whether in private or non-private meeting halls. | F124: social or meeting (e.g. community center, lodge, meeting hall, convention center,senior center), recreation (e.g. gymnasium, health club, bowling alley, ice rink, field house, indoor racquet sports), entertainment or culture (e.g. museum, theater, cinema, sports arena, casino, night club), library, funeral home, student activities center, armory, exhibition hall, broadcasting studio, transportation terminal
B125: Public Order and Safety | C125: Buildings used for the preservation of law and order or public safety. | F125: police station, fire station, jail, reformatory, or penitentiary, courthouse or probation office
B126: Religious Worship | C126: Buildings in which people gather for religious activities, (such as chapels, churches, mosques, synagogues, and temples). | F126: No subcategories collected
B127: Service | C127: Buildings in which some type of service is provided, other than food service or retail sales of goods | F127: vehicle service or vehicle repair shop, vehicle storage/ maintenance (car barn), repair shop, dry cleaner or laundromat, post office or postal center, car wash, gas station, photo processing shop, beauty parlor or barber shop, tanning salon, copy center or printing shop, kennel
B128: Warehouse and Storage | C128: Buildings used to store goods, manufactured products, merchandise, raw materials, or personal belongings (such as self-storage). | F128: refrigerated warehouse, non-refrigerated warehouse, distribution or shipping center
B129: Other | C129: Buildings that are industrial or agricultural with some retail space; buildings having several different commercial activities that, together, comprise 50 percent or more of the floorspace, but whose largest single activity is agricultural, industrial/ manufacturing, or residential; and all other miscellaneous buildings that do not fit into any other category. | F129: airplane hangar, crematorium, laboratory, telephone switching, agricultural with some retail space, manufacturing or industrial with some retail space, data center or server farm
B130: Vacant | C130: Buildings in which more floorspace was vacant than was used for any single commercial activity at the time of interview. Therefore, a vacant building may have some occupied floorspace. | F130: No subcategories collected, but a question was asked to determine whether the building was completely vacant.

Sheet Help - Stationary Combustion
A3: Scope 1 Emissions from Stationary Combustion Sources - HELP SHEET
A5: DEFINITION
A6: Combustion emission sources are stationary sources that combust fuel, like a natural gas hot water heater for an office building or an oil burning boiler. Emissions result from the actual combustion of the fuels to produce useful products, like heat and hot water.
A8: COLLECT
A9: To account for these sources, collect information about the type of fuel used and the quantity of fuel combusted at each facility. Sources of data can vary, but the data are often provided by the utility organization that supplies the fuel to the organization. A monthly natural gas bill, for example, can be used to provide information regarding how much natural gas was purchased for the previous billing cycle.
A10: Data Collection Checklist (for all facilities)
A11: - | B11: Type of fuel consumed
A12: - | B12: Amount of fuel consumed
A14: QUANTIFY
A15: After the data has been collected, it should be entered into the appropriate orange colored boxes of the Calculator section titled “Stationary Combustion.” The fuel type can be selected from the form. After the data are entered into the Calculator, the CO2 equivalent emissions are displayed in the blue colored box.
A18: Items to Note
A19: - | B19: Use the heat content sheet to convert units provided on the invoice into the units the Calculator requires.
A20: - | B20: If you are one of many tenants in a facility and you do not have the actual amount of fuel used in your space, you may estimate your fuel usage by multiplying the fuel usage of the entire facility by the percentage of the floor area that your organization occupies.
A21: - | B21: Companies with home offices can optionally include these spaces in their inventory if the energy use associated with business activities can be reasonably estimated.
A22: - | B22: The Energy Information Administration conducts a Commercial Building Energy Consumption Survey and provides average energy consumption by building type per square foot. Use the numbers below to compare against your data or to estimate for natural gas if no data are available. For example, if you have a 1,000 sq ft office suite in the Northeast multiply by 20.6 to get an estimation of 20,600 scf natural gas for a year.
B24: Natural Gas Intensity | C24: standard cubic feet (scf) natural gas / sq ft / year
B25: Principal Building Activity | C25: Northeast | D25: Midwest | E25: South | F25: West
B26: Education | C26: 41.5 | D26: 38.7 | E26: 21.2 | F26: 21.9
B27: Food sales | C27: Insufficient Data | D27: 75.4 | E27: Insufficient Data | F27: Insufficient Data
B28: Food service | C28: Insufficient Data | D28: 212 | E28: 152.2 | F28: 106.4
B29: Health care | C29: 58.2 | D29: 59.4 | E29: 63.5 | F29: 54.2
B30: Inpatient | C30: 89.5 | D30: 71.1 | E30: 76 | F30: 84
B31: Outpatient | C31: 30.9 | D31: 34 | E31: 22.8 | F31: 22.4
B32: Lodging | C32: 45.7 | D32: 44.1 | E32: 27.1 | F32: 38.6
B33: Mercantile | C33: 41.9 | D33: 41.4 | E33: 28.9 | F33: 37.1
B34: Retail (other than mall) | C34: 25 | D34: 26.4 | E34: 20 | F34: 22.5
B35: Enclosed and strip malls | C35: 49.2 | D35: 58.9 | E35: 34.2 | F35: 43.9
B36: Office | C36: 20.6 | D36: 26.3 | E36: 18.7 | F36: 18.6
B37: Public assembly | C37: 52.6 | D37: 48.5 | E37: 28.7 | F37: 33.5
B38: Public order and safety | C38: Insufficient Data | D38: Insufficient Data | E38: 40.2 | F38: 34.8
B39: Religious worship | C39: 33.8 | D39: 28.6 | E39: 16.7 | F39: 17.4
B40: Service | C40: 38.2 | D40: 38.3 | E40: 51.3 | F40: 39.1
B41: Warehouse and storage | C41: 19.3 | D41: 27.7 | E41: 13.5 | F41: 10.4
B42: Other | C42: 38.7 | D42: Insufficient Data | E42: 21.2 | F42: Insufficient Data
B43: Vacant | C43: Insufficient Data | D43: Insufficient Data | E43: Insufficient Data | F43: Insufficient Data
B44: Source: EIA's Commercial Buildings Energy Consumption Survey (CBECS) 2018, Released September 2022. Table C25: Natural gas consumption and conditional energy intensity by Census region, 2018
B45: https://www.eia.gov/consumption/commercial/data/2018/index.php?view=characteristics

Sheet Help - Mobile Sources
A3: Scope 1 Emissions from Mobile Sources - HELP SHEET
A5: DEFINITION
A6: Mobile sources, like owned or leased cars and heavy duty vehicles generate emissions by burning fuel. The fuel usage for any vehicle that is under the organization's operational control should be reported here as scope 1 emissions. As required by GHG Protocol these emissions are only calculated for the combustion of the fuel (e.g., tank-to-wheel).
A8: COLLECT
A9: Determine the types of vehicles, types and amount of fuel, and the miles driven for each vehicle or vehicle type. Data sources vary but fuel usage is often determined from fuel receipts or purchase records and provided in gallons, and mileage from vehicle records. Mileage or fuel use can also be estimated based on vehicle fuel economy from the manufacturer or www.fueleconomy.gov if the other data sources are not readily available.
A10: www.fueleconomy.gov
A12: Data Collection Checklist (for all vehicles)
A13: - | B13: Type and year of vehicle
A14: - | B14: Amount of fuel consumed for the inventory reporting period
A15: - | B15: Total miles driven for the inventory reporting period
A17: QUANTIFY
A18: Enter the data into the appropriate orange colored boxes of the Calculator section titled “Mobile Sources.” If the organization owns or leases biofuel or ethanol vehicles, the percentage of biologically-based fuel should be entered into the boxes provided; default values are available if needed. Once the data are entered into the Calculator, the CO2 equivalent emissions are calculated and summarized in the blue colored box. Biomass CO2 emissions are calculated and summarized in the green colored box, and are typically not summed into the organization’s total GHG emissions because they are considered to be a net zero emission source.
A20: Items to Note
A21: - | B21: Select On-Road or Non-Road first, to populate the list of Vehicle Types
A22: - | B22: Vehicle Classification Guidelines
B23: Passenger cars are automobiles used primarily to transport 12 people or less for personal travel, and are less than 8,500 lbs in gross vehicle weight.
B24: Light-duty trucks are vehicles that primarily transport passengers such as sport utility vehicles (SUVs) and minivans. This category also includes vehicles used for transporting light-weight cargo which are equipped with special features such as four-wheel drive for off-road operation. The gross vehicle weight normally ranges around 8,500 pounds or less.
B25: Medium- and heavy-duty trucks are vehicles with a gross vehicle weight of more than around 8,500 pounds, such as single unit trucks, combination trucks, tractor-trailers, and box trucks used for freight transportation. In addition, this category includes some vehicles that are not typically used for freight movement such as service and utility trucks.
A26: - | B26: Fuel usage and mileage is reported the same for hybrid vehicles as for conventional vehicles. If you are estimating mileage or fuel usage keep in mind the fuel efficiency.
A27: - | B27: If your organization owns a private jet or plane it should be included here. Depending on the fuel it uses, pick the appropriate type from the drop down menu (i.e., Aviation Gasoline Aircraft, Jet Fuel Aircraft).
A28: - | B28: If you are using biodiesel or ethanol, the percentage of biodiesel and ethanol should be filled out accordingly. If you are using these fuels in pure form, then you would enter 100%. If you are using a mixture of biodiesel and petroleum diesel, or a mixture of ethanol and gasoline then you would enter the biodiesel or ethanol percentage in that mixture. For example, B100 is 100% biodiesel, likewise B20 is 20% biodiesel. This is similar for ethanol; E85 is 85% ethanol.
A29: - | B29: The Vehicle Type column is organized in order of most common vehicle types and their fuels.

Sheet Help - Refrigeration and AC
A3: Scope 1 Emissions from Refrigeration and Air Conditioning Equipment - HELP SHEET
A5: DEFINITION
A6: Refrigeration and Air Conditioning (AC) equipment sources can vary in size based on the type of organization. Emissions from refrigeration and AC devices, in facilities or vehicles, are caused by the leakage of chemicals with global warming impact during use, maintenance and/or disposal of the device. They are often small sources for office-based organizations. For example, a small office building may have one rooftop AC unit while a grocery store chain may have several rooftop AC units per store as well as a multitude of other refrigeration equipment.
A8: COLLECT
A9: Choose one of three different calculation methods available in the “Refrigeration and AC” section of the Calculator. The types of refrigerants along with the data needs for each method are listed in the Calculator. Data for these sources is often collected from maintenance and inspection records, work orders, or invoices from contractors that service this equipment. Refrigerants not included on the list may be chemicals that do not need to be included in the inventory. For example, ozone depleting substances, such as chlorofluorocarbons (CFCs) or “freon” and hydrochlorofluorocarbons (HCFCs), are regulated internationally and are typically excluded from a GHG inventory or reported as a memo item. A reason to track these sources is to provide explanation for the increase of HFCs and PFCs when they replace the phased out CFCs and HCFCs.
A10: Data Collection Checklist (by equipment)
A11: - | B11: Refrigerant purchase, inventory, and disposal data
A12: - | B12: Inventory of equipment by facility
A13: - | B13: Refrigerant capacity of equipment
A14: - | B14: Amount of refrigerant (HFC and PFC) emitted over the inventory reporting period
A15: - | B15: Optional: Track HCFC and CFCs, such as R-22
A17: QUANTIFY
A18: Determine which of the three options is suitable for your business and enter the data into the appropriate orange colored boxes of the Calculator section titled “Refrigeration and AC.” Once the data are entered into the Calculator, the CO2 equivalent emissions are calculated and summarized in the blue colored box.
B19: Option 1: The Detailed Material Balance Method is recommended for companies who maintain their own equipment. This method requires data from inventories, purchase and service records, and the full and proper charges of equipment. It includes emissions from equipment operation, servicing, and disposal.
B20: Option 2: The Simplified Material Balance Method is recommended for companies who have contractors service their HFC/PFC containing equipment. This method tracks emissions from equipment operation, servicing, and disposal. The method requires data on the quantity of refrigerant: (a) used to fill new equipment during installation, (b) used to service equipment, and (c) recovered from retiring equipment, as well as the full and proper charges of new and retiring equipment. If notified in advance of the need for this information, the contractor should be able to provide it.
B21: Option 3: It is recommended that the Screening Method be used only as a screening tool because the emission factors used in the approach are highly uncertain. Emission factors vary between individual pieces of equipment and over time. Even if the amount of refrigerant added to a piece of equipment has been tracked carefully, permitting the previous leak rate of that equipment to be established, that leak rate can change after a leak is repaired or as the equipment ages.
A23: Items to Note
A24: - | B24: If you are one of many tenants in a facility and you cannot quantify the refrigerant emissions specific to your space, you may estimate them based on the percentage of the floor area that your organization occupies.
A25: - | B25: Emissions from refrigerants in an office-based organization are typically less than 2 percent of emissions. Consider this as you decide which Option is most appropriate.
A26: - | B26: If your organization uses a refrigerant that is not listed, the user may need to determine the constituent blend. This website lists common refrigerant compositions:
B27: http://www.epa.gov/ozone/snap/refrigerants/refblend.html
A28: - | B28: R-134a is the predominantly used refrigerant in vehicle AC systems. If you are uncertain of which refrigerant your vehicles use, you can assume R-134a.

Sheet Help - Fire Suppression
A3: Scope 1 Emissions from Fire Suppression Equipment - HELP SHEET
A5: DEFINITION
A6: Fire suppression emission sources can range in scale from a small portable fire extinguisher to a large scale fire suppression system for an office building or warehouse. The emissions are caused by chemicals (e.g., HFCs or CO2) emitted from fire suppression devices during use, maintenance, and disposal.
A8: COLLECT
A9: Choose one of three different calculation methods available in the “Fire Suppression” section of the Calculator. In each method, choose the types of fire suppression gases used and then gather the corresponding emissions data. Data for these sources is often collected from maintenance and inspection records, work orders, or invoices from contractors that service this equipment.
A10: Data Collection Checklist (by equipment and/or facility)
A11: - | B11: Fire suppressant purchase, inventory, and disposal data
A12: - | B12: Inventory of equipment by facility
A13: - | B13: Fire suppressant capacity of equipment
A14: - | B14: Amount of fire suppressant (HFC and PFC) emitted over the inventory reporting period
A16: QUANTIFY
A17: Enter the data into the appropriate orange colored boxes of the Calculator section titled “Fire Suppression.” Once the data are entered into the Calculator, the CO2 equivalent emissions are calculated and summarized in the blue colored box.
A19: Items to Note
A20: - | B20: Contact the manufacturer if you cannot find the list of propellants or chemicals used in the fire extinguisher.

Sheet Help - Purchased Gases
A3: Scope 1 Emissions from Purchased Gases - HELP SHEET
A5: DEFINITION
A6: Industrial gases are sometimes used in processes such as manufacturing, testing, or laboratory uses. For example, CO2 gas is often used in welding operations. These gases are typically released to the atmosphere after use. Any releases of the seven major greenhouse gases (CO2, CH4, N2O, PFCs, HFCs, SF6, and NF3) must be included in the GHG inventory. Ozone depleting substances, such as CFCs and HCFCs, are regulated internationally and are typically excluded from a GHG inventory or reported as a memo item.
A8: COLLECT
A9: Determine if CO2, CH4, N2O, PFCs, HFCs, SF6 or NF3 are used in processes such as those mentioned above. If so, collect the mass of gas purchased. If data are not available in mass units, the user may need to convert from volume to mass using the density of the specific gas.
A11: Data Collection Checklist (for all applicable facilities)
A12: - | B12: Type of gas purchased
A13: - | B13: Amount of gas purchased
A14: - | B14: Purpose for the gas
A16: QUANTIFY
A17: Enter the data into the appropriate orange colored boxes of the Calculator section titled “Gas.” Once the data are entered into the Calculator, the CO2 equivalent emissions are calculated and summarized in the blue colored box.
A19: Items to Note
A20: - | B20: If your business makes bulk purchases and plans on using the gas for several years, you should divide the bulk amount by the years of usage and report that amount.

Sheet Help - Electricity
A3: Scope 2 Emissions from Purchase of Electricity - HELP SHEET
A5: DEFINITION
A6: GHGs are emitted when fossil fuels are combusted to generate electricity. Companies account for their responsibility for these emissions by reporting them as scope 2 indirect emissions. This Calculator quantifies emissions from both the location-based method and the market-based method, and both totals should be reported. The location-based method considers average emission factors for the electricity grids that provide electricity. The market-based method considers contractual arrangements under which the organization procures power from specific sources, such as renewable energy. Market-based emission factors reflect these arrangements. Examples of market-based emission factors are: renewable energy certificates (RECs), power purchase agreements (PPAs), and supplier-specific factors. For detailed information on the location-based method and the market-based method review EPA's Indirect Emissions from Purchased Electricity Guidance (link at the bottom of this sheet).
A8: COLLECT
A9: Collect electricity purchase information in units of kWh for each facility. The best data source is typically its electricity bill or invoice. In the Calculator, there is a map at the bottom of the “Electricity” section which divides the United States into subregions based on the electric grid. Select the subregion(s) in which the organization’s facilities are located to determine the correct CO2, CH4, and N2O emission factors to use, since different parts of the country use different fuels to generate electricity. Multiple facility locations can be entered as separate line items in the Calculator. If a facility is on the border of a subregion, enter the zip code into EPA's Power Profiler (https://oaspub.epa.gov/powpro/ept_pack.charts) to find the correct subregion.
A10: Data Collection Checklist (for all facilities)
A11: - | B11: Amount of electricity purchased
A12: - | B12: Amount of electricity purchased using contractual arrangements
A13: - | B13: Emission factors (CO2, CH4 and N2O) for contractual arrangements
A15: QUANTIFY
A16: There are two methods to quantify emissions from electricity: location-based and market-based. Both must be quantified to be in accordance with the Center for Corporate Climate Leadership Greenhouse Gas Inventory Guidance.
A17: Location-based: Enter the data into the appropriate orange colored boxes (Table 1) of the Calculator section titled "Electricity.” Once the data are entered into the Calculator, the CO2 equivalent emissions are calculated and summarized in the blue colored box for the location based method.
A18: Market-based: Enter applicable market-based emission factors (lb/MWh) for the purchased electricity in the yellow cells (Table 1) of the Calculator section titled "Electricity.” See the market-based method Help sheet for additional guidance. Once the data are entered into the Calculator, the CO2 equivalent emissions are calculated and summarized in the blue colored box for the market-based method.
A21: Items to Note
A22: - | B22: If you are one of many tenants in a facility and you do not have the actual amount of electricity used in your space, you may estimate your usage by multiplying the electricity usage of the entire facility by the percentage of the floor area that your organization occupies.
A23: - | B23: The number off the utility bill to use is the total usage amount (i.e., the difference between the meter reading at the beginning of the month and the end of the month).
A24: - | B24: Companies with home offices can optionally include these spaces in their inventory if the energy use associated with business activities can be reasonably estimated.
A25: - | B25: The Energy Information Administration conducts a Commercial Building Energy Consumption Survey and provides average energy consumption by building type per square foot. Use the numbers below to compare against your data or to estimate if no data are available. For example, if you have a 1,000 sq ft office suite in the Northeast multiply by 17.1 to get an estimation of 17,100 kWh electricity for a year.
B27: Electricity Intensity | C27: kWh electricity / sq ft / year
B28: Principal Building Activity | C28: Northeast | D28: Midwest | E28: South | F28: West
B29: Education | C29: 7.9 | D29: 8.1 | E29: 11.4 | F29: 9
B30: Food sales | C30: Insufficient Data | D30: 67.3 | E30: 53.7 | F30: Insufficient Data
B31: Food service | C31: 29.7 | D31: 43 | E31: 52.7 | F31: 36.9
B32: Health care | C32: 19 | D32: 25 | E32: 27.3 | F32: 22.2
B33: Inpatient | C33: 22.4 | D33: 28.3 | E33: 32.2 | F33: 29.5
B34: Outpatient | C34: 15.9 | D34: 18.6 | E34: 19.6 | F34: 15.9
B35: Lodging | C35: 13.7 | D35: 14.8 | E35: 15.2 | F35: 13.2
B36: Mercantile | C36: 15.1 | D36: 15.4 | E36: 17.8 | F36: 17.2
B37: Retail (other than mall) | C37: 11.3 | D37: 12.7 | E37: 15.3 | F37: 13
B38: Enclosed and strip malls | C38: 17.9 | D38: 18.9 | E38: 20.2 | F38: 20.1
B39: Office | C39: 13.8 | D39: 12 | E39: 15.4 | F39: 12.5
B40: Public assembly | C40: 9.6 | D40: 11.6 | E40: 15.1 | F40: 9.4
B41: Public order and safety | C41: Insufficient Data | D41: Insufficient Data | E41: 16.7 | F41: 11.6
B42: Religious worship | C42: 5.1 | D42: 4.2 | E42: 5.4 | F42: 4.2
B43: Service | C43: 7.3 | D43: 5.7 | E43: 9 | F43: 7.6
B44: Warehouse and storage | C44: 6 | D44: 5.2 | E44: 6.5 | F44: 5.5
B45: Other | C45: 31.4 | D45: 24 | E45: 25.3 | F45: 45.5
B46: Vacant | C46: Insufficient Data | D46: 4.2 | E46: 4.9 | F46: Insufficient Data
B47: Source: Commercial Buildings Energy Consumption Survey (CBECS) 2012, Released September 2022. Table C15: Electricity consumption and conditional energy intensity by Census region, 2018
B48: https://www.eia.gov/consumption/commercial/data/2018/index.php?view=characteristics
A50: Refer to the Greenhouse Gas Inventory Guidance: Indirect Emissions from Purchased Electricity Guidance for more information.
B51: https://www.epa.gov/climateleadership/scope-1-and-scope-2-inventory-guidance

Sheet Help - Market-Based Method
A3: Market-Based Method - HELP SHEET
A5: Market-Based Electricity Emission Factors
A6: The market-based method considers contractual arrangements under which the organization procures electricity from specific sources, such as fossil, renewable, or other generation facilities. Market-based emission factors reflect these arrangements. The following are the types of market-based emission factors available, listed in order of preference based on the precision of the factors. If any of the first four types of emission factors are applicable, enter the factors in the yellow cells marked as "<enter factor>". If not, leave the yellow cells as is, and eGRID subregion factors will be used for market-based emissions.
A7: (1) | B7: Energy Attribute Certificates | D7: If an energy attribute certificate carries with it an emission factor, that factor can be used to quantify emissions in the market-based method. Examples are renewable energy certificates (RECs) or Guarantees of Origin (GOs). The emission factor is based on the specific source that the certificate represents, regardless of the energy resource used. Typically these certificates represent renewable energy and may have an emission factor of zero, but they may in some cases have a non-zero emission factor (e.g., if there is a fossil-fuel or biomass generation component).
A8: (2) | B8: Contracts | D8: An organization may have a contract, such as a power purchase agreement (PPA), to purchase electricity from a specified generating facility, which may be located at the organization's facility, at a nearby location with a direct line connection to the organization, or located remotely. If there are no certificates available, the contract itself carries the emission factor associated with the generation facility, regardless of the energy resource used. If certificates are used, see Energy Attribute Certificates above.
A9: (3) | B9: Supplier-Specific Emission Factor | D9: An electricity supplier, such as a regulated utility or a deregulated supplier, may provide information to its customers on the emission factor associated with its electricity product. To be used in the market-based method, the emission factor must include all the electricity delivered by the supplier, including electricity it generates as well as electricity it purchases from others.
A10: (4) | B10: Residual Mix Factor | D10: A residual mix emission factor represents the emissions and generation that remain after certificates, contracts, and supplier-specific factors have been claimed and removed from the calculation. Residual mix emission factors are currently not widely available. Organizations are encouraged to check for available residual mix factors each year when their GHG inventory is completed, if the options above are not available or relevant.
A11: (5) | B11: Regional Emission Factor | D11: If residual mix factors are not available, organizations can use a regional grid average emission factor as the default. This Calculator will use eGRID subregion emission factors in this case.
A12: (6) | B12: National Emission Factor | D12: This should not be applicable for any companies reporting US based emissions, due to the availability of regional emission factors.
A14: Quality Criteria for Contractual Instruments
A15: All contractual instruments used in the market-based method must meet the following criteria:
A16: (1) Convey the direct GHG emission rate attribute associated with the unit of electricity produced.
A17: (2) Be the only instruments that carry the GHG emission rate attribute claim associated with that quantity of electricity generation. See the "Items to Note" section of the Help sheet for suggested estimation approaches.
A18: (3) Be tracked and redeemed, retired, or canceled by or on behalf of the reporting entity. This can be done through a tracking system, an audit of contracts, third-party certification, or other means.
A19: (4) Have a vintage that matches as closely as possible to the date of the reporting period to which the instruments are applied. The vintage of the instrument is based on the date of the energy generation that the instrument represents.
A20: (5) Be sourced from the same market in which the reporting entity’s electricity-consuming operations are located and to which the instrument is applied. A market is defined as a geographical area which has a common system for trading and retiring contractual instruments. For this purpose the U.S. constitutes a single market, despite regional grid boundaries.
A21: The Indirect Emissions from Purchased Electricity Guidance defines EPA best-practice quality recommendations that go beyond these minimum requirements.
A23: Items to Note
A24: - | B24: EPA encourages organizations to use renewable energy as a way to reduce the environmental impacts associated with the electricity they purchase. Organizations can reduce their market-based scope 2 emissions by purchasing renewable energy, or “green power.” They can do this by choosing a differentiated electricity product from their utility or electricity supplier, by contracting directly with a renewable energy generator (if the regulatory rules allow), or by purchasing unbundled renewable energy certificates (RECs). In any case, the RECs must be acquired and retired.
A26: An Example
A27: In a situation where an organization has procured electricity from a specific source that is relevant to report for the market-based method, but the source supplies less than 100% of the kWh consumed by the facility, it is important to enter the data correctly. Consider the following scenario:
B28: - 100,000 kWh total facility consumption for Building A. 25,000 kWh purchased with energy attribute certificates such as renewable energy certificates (RECs).
B29: - 50,000 kWh total facility consumption for Building B. All electricity purchased from the local utility.
B30: - Emission factors for RECs from many RE sources are zero.
B31: - No other market-based emission factors are available.
A33: The table below shows how to enter the data for these example sites. There are two rows entered for the Building A in order to allocate the market-based emissions to the appropriate kWh.
A34: The total Electricity Purchased (kWh) of the two rows adds up to Building A's total consumption. Be careful not to double count kWh.
A35: The REC emission factors are entered in the first row. In the second row, the supplier-specific emission factor for the local utility is entered.
A36: In the third row, electricity is purchased from the grid with no market-based mechanism, so market-based emissions are equal to location-based emissions.
F38: Market-Based Use these cells to enter contractual or supplier specific emission factors | L38: Location-Based
A39: Table 1. Total Amount of Electricity Purchased by eGRID Subregion | F39: Emission Factors | I39: Emissions | L39: Emission Factors | O39: Emissions
A40: Source | B40: Source | C40: Source | D40: eGRID Subregion | E40: Electricity | F40: CO2 | G40: CH4 | H40: N2O | I40: CO2 | J40: CH4 | K40: N2O | L40: CO2 | M40: CH4 | N40: N2O | O40: CO2 | P40: CH4 | Q40: N2O
A41: ID | B41: Description | C41: Area (sq ft) | D41: where electricity is consumed | E41: Purchased | F41: Emissions | G41: Emissions | H41: Emissions | I41: Emissions | J41: Emissions | K41: Emissions | L41: Emissions | M41: Emissions | N41: Emissions | O41: Emissions | P41: Emissions | Q41: Emissions
E42: (kWh) | F42: (lb/MWh) | G42: (lb/MWh) | H42: (lb/MWh) | I42: (lb) | J42: (lb) | K42: (lb) | L42: (lb/MWh) | M42: (lb/MWh) | N42: (lb/MWh) | O42: (lb) | P42: (lb) | Q42: (lb)
A43: Building A | B43: Wind Farm RECs | C43: 6000 | D43: RFC West | E43: 25000 | F43: 0 | G43: 0 | H43: 0 | I43: =IFERROR(IF(OR(ISBLANK(F43),F43="<enter factor>"),O43,$E43/1000*F43),"") -> 0 | J43: =IFERROR(IF(OR(ISBLANK(G43),G43="<enter factor>"),P43,$E43/1000*G43),"") -> 0 | K43: =IFERROR(IF(OR(ISBLANK(H43),H43="<enter factor>"),Q43,$E43/1000*H43),"") -> 0 | L43: =VLOOKUP($D43,eGRID_em_Fctrs,4,FALSE) -> 1000.053 | M43: =VLOOKUP($D43,eGRID_em_Fctrs,5,FALSE) -> 0.087 | N43: =VLOOKUP($D43,eGRID_em_Fctrs,6,FALSE) -> 0.012 | O43: =IF(ISNA(VLOOKUP($D43,eGRID_em_Fctrs,4,FALSE)),"",VLOOKUP($D43,eGRID_em_Fctrs,4,FALSE)*$E43/1000) -> 25001.325 | P43: =IF(ISNA(VLOOKUP($D43,eGRID_em_Fctrs,5,FALSE)),"",VLOOKUP($D43,eGRID_em_Fctrs,5,FALSE)*$E43/1000) -> 2.175 | Q43: =IF(ISNA(VLOOKUP($D43,eGRID_em_Fctrs,6,FALSE)),"",VLOOKUP($D43,eGRID_em_Fctrs,6,FALSE)*$E43/1000) -> 0.3
A44: Building A | B44: Local Utility Specific Factor | C44: 6000 | D44: RFC West | E44: 75000 | F44: 800.2 | G44: 0.06 | H44: 0.01 | I44: 60015 | J44: 4.5 | K44: 0.75 | L44: =VLOOKUP($D44,eGRID_em_Fctrs,4,FALSE) -> 1000.053 | M44: =VLOOKUP($D44,eGRID_em_Fctrs,5,FALSE) -> 0.087 | N44: =VLOOKUP($D44,eGRID_em_Fctrs,6,FALSE) -> 0.012 | O44: =IF(ISNA(VLOOKUP($D44,eGRID_em_Fctrs,4,FALSE)),"",VLOOKUP($D44,eGRID_em_Fctrs,4,FALSE)*$E44/1000) -> 75003.975 | P44: 6.525 | Q44: 0.9
A45: Building B | B45: Unknown | C45: 2000 | D45: ERCOT All | E45: 50000 | F45: <enter factor> | G45: <enter factor> | H45: <enter factor> | I45: =IFERROR(IF(OR(ISBLANK(F45),F45="<enter factor>"),O45,$E45/1000*F45),"") -> 38554.15 | J45: =IFERROR(IF(OR(ISBLANK(G45),G45="<enter factor>"),P45,$E45/1000*G45),"") -> 2.45 | K45: =IFERROR(IF(OR(ISBLANK(H45),H45="<enter factor>"),Q45,$E45/1000*H45),"") -> 0.35 | L45: =VLOOKUP($D45,eGRID_em_Fctrs,4,FALSE) -> 771.083 | M45: =VLOOKUP($D45,eGRID_em_Fctrs,5,FALSE) -> 0.049 | N45: =VLOOKUP($D45,eGRID_em_Fctrs,6,FALSE) -> 0.007 | O45: =IF(ISNA(VLOOKUP($D45,eGRID_em_Fctrs,4,FALSE)),"",VLOOKUP($D45,eGRID_em_Fctrs,4,FALSE)*$E45/1000) -> 38554.15 | P45: 2.45 | Q45: 0.35
A46: Total Emissions for All Sources | I46: =SUM(I43:I45) -> 98569.15 | J46: =SUM(J43:J45) -> 6.95 | K46: 1.1 | O46: =SUM(O43:O45) -> 138559.45 | P46: =SUM(P43:P45) -> 11.15 | Q46: =SUM(Q43:Q45) -> 1.55
A48: GHG Emissions
A50: CO2 Equivalent Emissions (metric tons)
A51: Location-Based Electricity Emissions | E51: =($O$46+$P$46*CH4_GWP+$Q$46*N2O_GWP)*kg_per_lb/1000 -> 63.17849664
A52: Market-Based Electricity Emissions | E52: =($I$46+$J$46*CH4_GWP+$K$46*N2O_GWP)*kg_per_lb/1000 -> 44.9314614
A54: Refer to the Greenhouse Gas Inventory Guidance: Indirect Emissions from Purchased Electricity Guidance for more information.
B55: https://www.epa.gov/climateleadership/center-corporate-climate-leadership-greenhouse-gas-inventory-guidance

Sheet Help - Steam
A3: Scope 2 Emissions from Purchase of Steam - HELP SHEET
A5: DEFINITION
A6: Similar to electricity production, GHGs are emitted when fossil fuels are combusted to generate heat or steam. If the organization purchases heat or steam, the emissions are accounted for as scope 2 indirect emissions. Also similar to electricity, both the location-based method and the market-based method should be calculated and reported as done in this Calculator. Typically supplier-specific emission factors for steam will apply to both location-based and market-based emissions, and no market-based emission factors need to be entered. If needed, see the market-based method Help Sheet for more information.
A8: COLLECT
A9: Determine the amount of steam purchased, the types of fuel that the steam supplier uses to generate the steam, and either the emission factors provided by the steam supplier or the boiler efficiency. If values for boiler efficiency are unavailable, a default of 80% is provided in the Calculator.
A10: Data Collection Checklist (for all facilities)
A11: - | B11: Amount of steam purchased
A12: - | B12: Fuel type used to generate steam
A13: - | B13: Boiler efficiency or supplier-specific emission factors
A15: QUANTIFY
A16: Enter the data into the appropriate orange colored boxes (Table 1) of the Calculator section titled “Steam.” Once the data are entered into the Calculator, the CO2 equivalent emissions are calculated and summarized in the blue colored box. Enter the market-based emission factors in the yellow cells if applicable.
A18: Items to Note
A19: - | B19: Use the heat content sheet to convert units provided on the invoice into the units the Calculator requires.
A20: - | B20: If you are one of many tenants in a facility and you do not have the actual amount of steam used in your space, you may estimate your usage by multiplying the steam usage of the entire facility by the percentage of the floor area that your organization occupies.

Sheet Help - Business Travel
A3: Scope 3 Emissions from Business Travel - HELP SHEET
A5: DEFINITION
A6: Scope 3 business travel emissions differ from the scope 1 mobile source emission reporting in that they account for business travel in vehicles not owned or leased by the organization, such as taxis, trains, commercial airplanes, and personal vehicles used for sales.
A8: COLLECT
A9: Collect information about business travel method. Travel by vehicle-miles is used when the employee is traveling in a personal vehicle. Travel by passenger-mile is used when the employee is traveling in a vehicle shared with many other people (i.e., bus, train or plane). For travelers that use a personal vehicle, choose the vehicle type from the Calculator and collect data for the vehicle miles during the reporting period. For rail, bus, and air travel, the mode of travel should be selected from the Calculator options and an estimate of the passenger mileage data provided for each.
A10: Data Collection Checklist (for all employee travel)
A11: - | B11: Type of transport (personal vehicle, train, bus, plane)
A12: - | B12: Miles traveled for each transport type. For air travel, mileage should ideally be determined considering each flight segment individually. If you use a travel agent, they may have these data in their records.
A14: QUANTIFY
A15: Enter the data into the appropriate orange colored boxes (Tables 1-3) of the Calculator section titled “Business Travel.” Once the data are entered into the Calculator, the CO2 equivalent emissions are calculated and summarized in the green colored box. The emission factors included for air travel do not include radiative forcing. Per the GHG Protocol, for air travel emission factors, multipliers or other corrections to account for radiative forcing may be applied to the GWP of emissions arising from aircraft transport. If applied, companies should disclose the specific factor used.

Sheet Help - Commuting
A3: Scope 3 Emissions from Employee Commuting - HELP SHEET
A5: DEFINITION
A6: Employee commuting emissions differ from the required mobile source emission reporting in that they account for employee travel to and from work in vehicles not owned or leased by the organization, including personal vehicles, buses, and trains.
A8: COLLECT
A9: Collect information about each employee’s commuting method. If not all employees can provide information on their commuting habits, you can calculate an average per employee and multiply by total employees to estimate. For commuters that use a personal vehicle, the appropriate vehicle type should be selected from the Calculator and data collected for the vehicle-miles during the reporting period. For rail, bus, and air travel, the mode of transport should be selected from the Calculator options and an estimate of the passenger mileage data provided for each.
A10: Data Collection Checklist (per Employee)
A11: - | B11: Commuting days per year (consider vacation, sick time and business travel)
A12: - | B12: Mode of transport (this may be multiple modes of transport)
A13: - | B13: Round trip mileage
A15: QUANTIFY
A16: After the data has been collected, enter the data into the appropriate orange colored boxes (Tables 1-2) of the Calculator section titled “Commuting.” Once the data are entered into the Calculator, the CO2 equivalent emissions are calculated and summarized in the green colored box.
A18: Items to Note
A19: - | B19: Commuting by vehicle-miles is used when the employee is traveling in their own vehicle. Travel by passenger-mile is used when the employee is traveling in a vehicle shared with many other people (i.e., bus, train or plane).
A20: - | B20: If employees carpool, only their portion of the mileage should be included in the GHG inventory. For example, if one of your employees drives 10 miles alone to meet two other people (not employees) to carpool and then drives 30 miles to work then the organization should include 20 miles (10 miles + 30 (1/3)) in the corporate inventory.
A21: - | B21: If collecting data from all your employees is not possible due to the size of your organization, you may collect data from as many employees as possible, and use that sample to estimate for the rest of the employees. Make sure the sample size is adequate, and keep in mind this will calculate less accurate results.

Sheet Help - Upstream Trans and Dist
A3: Scope 3 Emissions from Upstream Transportation and Distribution - HELP SHEET
A5: DEFINITION
A6: Scope 3 emissions from upstream transportation and distribution include all product transportation between product/materials origin to end customers by vehicles not owned or leased by the organization. For example, the organization could hire another company to transport product from the manufacturing location to distribution centers or final markets. (Note: If an organization owns or leases the trucks or other transport vehicles, these would be part of its scope 1 mobile source emissions). Another example of product transport is paying a courier to transport documents from one office to another. While this category does include emissions from warehousing of products, there is not currently a place to account for those emissions in this Calculator.
A8: COLLECT
A9: Collect information about shipment methods (on-road vehicle, waterborne craft, freight rail, or aircraft). For road shipments the user may enter data based on vehicle mileage or ton-miles of product transported. If the vehicle mileage option is chosen, then the organization should select the type of vehicle and enter the total mileage for that vehicle type. The ton-miles option is only applicable for heavy-duty trucks and the organization need only enter the total ton-miles traveled. For product transport via freight rail, waterborne, or air transport, the organization should enter the total ton-miles data.
A10: Data Collection Checklist
A11: - | B11: All product transport legs (origin and destination) and mileage
A12: - | B12: Mode of transport per leg
A13: - | B13: Weight transported per shipment for ton-mile calculation
A15: QUANTIFY
A16: Enter the data into the appropriate orange colored boxes (Tables 1-2) of the Calculator section titled “Upstream Transpt. and Dist.” Once the data are entered into the Calculator, the CO2 equivalent emissions are calculated and summarized in the green colored box.
A18: Items to Note
A19: - | B19: To calculate ton-miles, multiply the weight transported (short tons) by the distance (miles) for each individual shipment. In Table 2, you can enter data either for individual shipments, or for the sum of ton-miles for multiple shipments.
A20: - | B20: If you do not have shipment-by-shipment data, you may multiply total tons transported by the average miles per shipment. You may also multiply average tons transported per shipment times the total miles transported. Do not multiply total tons by total miles, as this will give an incorrect result.
A21: - | B21: Example: Every week a company ships 10 short tons of product 100 miles. That equates to 52 shipments per year of 1,000 ton-miles each. The sum of the individual shipments is 52,000 ton-miles per year. Multiplying the total tons transported (520 tons) by the average miles per shipment (100 miles) provides the correct result of 52,000 ton-miles. Multiplying the average tons transported per shipment (10 tons) times the total miles (5,200 miles) also gives the correct result. Multiplying total tons (520 tons) by total miles (5,200 miles) gives an incorrect result.

Sheet Help - Waste
A3: Scope 3 Emissions from Waste - HELP SHEET
A5: DEFINITION
A6: Scope 3 emissions from waste include the disposal and treatment of waste generated in the reporting company’s operations in the reporting year in facilities not owned or controlled by the reporting company. These emission factors align with the requirements of the GHG Protocol Scope 3 Standard. The emission factors do not include any avoided emissions impact from any of the disposal methods. All the factors presented include transportation emissions, which are optional in the Scope 3 Calculation Guidance, with an assumed average distance traveled to the processing facility. Thus the WARM factors presented in the Emission Factor Hub and used here will not directly match the published WARM factors, since adjustments are made to exclude any avoided emission impact. AR4 GWP values are used to convert all waste emission factors into CO2e.
A8: COLLECT
A9: Collect information on the amount of weight disposed at your facilities, by the type of waste (plastics, paper, etc.) and disposal method (recycling, incineration, etc.). Refer to the Emission Factors tab for a complete list of materials and available disposal methods.
A10: Data Collection Checklist
A11: - | B11: Weight of waste disposed by material type and disposal method
A13: QUANTIFY
A14: Enter the data into the appropriate orange colored boxes (Tables 1) of the Calculator section titled “Waste.” Once the data are entered into the Calculator, the CO2 equivalent emissions are calculated and summarized in the green colored box.

Sheet Help - Offsets
A3: Purchased Offsets - HELP SHEET
A5: DEFINITION
A6: Offsets are project-based emission reductions and/or removals that occur outside the organizational boundary of the reporting organization. Offsets can be purchased by an organization to offset emissions from scope 1, scope 2, and/or scope 3 sources.
A8: COLLECT
A9: Quantity of offsets purchased in metric tons CO2 equivalent for each offset project by scope 1, 2, or scope 3 category.
A11: QUANTIFY
A12: Enter the data into the appropriate orange colored boxes (Table 1) of the Calculator section titled "Offsets.” Once the data are entered into the Calculator, the CO2 equivalent emissions are summarized in the green colored box by scope and category.
